Body Name,Vendor Number,Vendor Name,Cost Centre,Service Label,BV Code,Amount,Period
Slough Borough Council,806064,24 X 7 Buckinghamshire Ltd,F123,Education & Inclusion,Supplies and Services,"2,123.20",Nov-22
Slough Borough Council,806064,24 X 7 Buckinghamshire Ltd,F123,Education & Inclusion,Supplies and Services,"1,698.56",Nov-22
Slough Borough Council,804709,247 Careservices Ltd,M44D,Adult Social Care Operations,Supplies and Services,"10,800.00",Nov-22
Slough Borough Council,804709,247 Careservices Ltd,M44D,Adult Social Care Operations,Supplies and Services,"11,160.00",Nov-22
Slough Borough Council,1869,3Ms Gold Services Limited,P006,Capital,Capital Charges,"6,321.45",Nov-22
Slough Borough Council,806901,4way Consulting Ltd,P240,Capital,Capital Charges,"2,231.45",Nov-22
Slough Borough Council,1055,A J Chapman,F123,Education & Inclusion,Supplies and Services,"1,014.00",Nov-22
Slough Borough Council,1055,A J Chapman,F123,Education & Inclusion,Supplies and Services,"59,185.71",Nov-22
Slough Borough Council,536,Ability Housing Association,M42E,Adult Social Care Operations,Supplies and Services,"3,023.04",Nov-22
Slough Borough Council,536,Ability Housing Association,M42E,Adult Social Care Operations,Supplies and Services,"3,580.54",Nov-22
Slough Borough Council,536,Ability Housing Association,M42E,Adult Social Care Operations,Supplies and Services,"2,788.84",Nov-22
Slough Borough Council,536,Ability Housing Association,M42E,Adult Social Care Operations,Supplies and Services,"2,895.29",Nov-22
Slough Borough Council,536,Ability Housing Association,M42E,Adult Social Care Operations,Supplies and Services,"2,852.71",Nov-22
Slough Borough Council,536,Ability Housing Association,M42E,Adult Social Care Operations,Supplies and Services,"2,592.36",Nov-22
Slough Borough Council,536,Ability Housing Association,M42E,Adult Social Care Operations,Supplies and Services,"1,532.71",Nov-22
Slough Borough Council,536,Ability Housing Association,M42E,Adult Social Care Operations,Supplies and Services,"2,010.66",Nov-22
Slough Borough Council,536,Ability Housing Association,M42E,Adult Social Care Operations,Supplies and Services,"2,585.50",Nov-22
Slough Borough Council,536,Ability Housing Association,M42E,Adult Social Care Operations,Supplies and Services,"1,967.08",Nov-22
Slough Borough Council,536,Ability Housing Association,M42E,Adult Social Care Operations,Supplies and Services,"3,261.53",Nov-22
Slough Borough Council,536,Ability Housing Association,M42E,Adult Social Care Operations,Supplies and Services,"2,968.73",Nov-22
Slough Borough Council,536,Ability Housing Association,M42E,Adult Social Care Operations,Supplies and Services,"2,613.44",Nov-22
Slough Borough Council,536,Ability Housing Association,M42E,Adult Social Care Operations,Supplies and Services,"1,350.66",Nov-22
Slough Borough Council,536,Ability Housing Association,M42E,Adult Social Care Operations,Supplies and Services,"3,224.21",Nov-22
Slough Borough Council,536,Ability Housing Association,M42E,Adult Social Care Operations,Supplies and Services,"2,862.28",Nov-22
Slough Borough Council,536,Ability Housing Association,M42E,Adult Social Care Operations,Supplies and Services,"2,835.72",Nov-22
Slough Borough Council,536,Ability Housing Association,M44E,Adult Social Care Operations,Supplies and Services,"2,439.88",Nov-22
Slough Borough Council,536,Ability Housing Association,M44E,Adult Social Care Operations,Supplies and Services,"1,997.04",Nov-22
Slough Borough Council,536,Ability Housing Association,M44E,Adult Social Care Operations,Supplies and Services,"2,354.72",Nov-22
Slough Borough Council,536,Ability Housing Association,M44E,Adult Social Care Operations,Supplies and Services,"1,924.65",Nov-22
Slough Borough Council,808047,Access UK Limited,M99C,Children & Families,Supplies and Services,"21,857.08",Nov-22
Slough Borough Council,3292,Achieving For Children,F416,Education & Inclusion,Supplies and Services,"63,910.00",Nov-22
Slough Borough Council,807554,Acorn Care & Education Ltd,F462,Children & Families,Supplies and Services,"4,827.14",Nov-22
Slough Borough Council,807554,Acorn Care & Education Ltd,F462,Children & Families,Supplies and Services,"4,671.43",Nov-22
Slough Borough Council,805529,Action First Recrutiment Ltd,A02A,Adult Social Care Operations,Supplies and Services,"5,460.00",Nov-22
Slough Borough Council,808610,Action for People CIC,F210,Community,Salaries and Wages-Employees Expenses,"3,000.00",Nov-22
Slough Borough Council,2855,Advance Housing & Support Ltd,M27F,Adult Social Care Operations,Supplies and Services,"-1,737.52",Nov-22
Slough Borough Council,2855,Advance Housing & Support Ltd,M27F,Adult Social Care Operations,Supplies and Services,"1,978.08",Nov-22
Slough Borough Council,2855,Advance Housing & Support Ltd,M42F,Adult Social Care Operations,Supplies and Services,"1,902.16",Nov-22
Slough Borough Council,2855,Advance Housing & Support Ltd,M42F,Adult Social Care Operations,Supplies and Services,731.60,Nov-22
Slough Borough Council,2855,Advance Housing & Support Ltd,M42F,Adult Social Care Operations,Supplies and Services,"1,170.56",Nov-22
Slough Borough Council,2855,Advance Housing & Support Ltd,M42F,Adult Social Care Operations,Supplies and Services,"1,864.72",Nov-22
Slough Borough Council,2855,Advance Housing & Support Ltd,M42F,Adult Social Care Operations,Supplies and Services,"1,864.72",Nov-22
Slough Borough Council,2855,Advance Housing & Support Ltd,M42F,Adult Social Care Operations,Supplies and Services,"1,864.72",Nov-22
Slough Borough Council,2855,Advance Housing & Support Ltd,M42F,Adult Social Care Operations,Supplies and Services,"1,097.40",Nov-22
Slough Borough Council,2855,Advance Housing & Support Ltd,M42F,Adult Social Care Operations,Supplies and Services,"1,673.76",Nov-22
Slough Borough Council,807002,Advanced Card Bureau LTD,J020,Place Management,Supplies and Services,"5,136.84",Nov-22
Slough Borough Council,2135,Adventure Learning Childcare Limited,F909,Children & Families,Supplies and Services,"11,268.87",Nov-22
Slough Borough Council,2135,Adventure Learning Childcare Limited,F909,Children & Families,Supplies and Services,"11,268.87",Nov-22
Slough Borough Council,805178,AFM Transport Limited,D880,Place Operations,Supplies and Services,602.24,Nov-22
Slough Borough Council,805178,AFM Transport Limited,D880,Place Operations,Supplies and Services,"4,949.00",Nov-22
Slough Borough Council,805178,AFM Transport Limited,D880,Place Operations,Supplies and Services,"1,026.24",Nov-22
Slough Borough Council,805178,AFM Transport Limited,D880,Place Operations,Supplies and Services,"2,066.00",Nov-22
Slough Borough Council,805178,AFM Transport Limited,D880,Place Operations,Supplies and Services,848.00,Nov-22
Slough Borough Council,805178,AFM Transport Limited,D880,Place Operations,Supplies and Services,"4,400.06",Nov-22
Slough Borough Council,805178,AFM Transport Limited,D880,Place Operations,Supplies and Services,"4,157.81",Nov-22
Slough Borough Council,805178,AFM Transport Limited,D880,Place Operations,Supplies and Services,"2,119.59",Nov-22
Slough Borough Council,805178,AFM Transport Limited,D880,Place Operations,Supplies and Services,"3,311.05",Nov-22
Slough Borough Council,805178,AFM Transport Limited,D880,Place Operations,Supplies and Services,"1,609.08",Nov-22
Slough Borough Council,805178,AFM Transport Limited,D880,Place Operations,Supplies and Services,"5,064.15",Nov-22
Slough Borough Council,805178,AFM Transport Limited,D880,Place Operations,Supplies and Services,"4,922.26",Nov-22
Slough Borough Council,805178,AFM Transport Limited,D880,Place Operations,Supplies and Services,"7,292.82",Nov-22
Slough Borough Council,805178,AFM Transport Limited,D880,Place Operations,Supplies and Services,"3,529.27",Nov-22
Slough Borough Council,805178,AFM Transport Limited,D880,Place Operations,Supplies and Services,"5,000.00",Nov-22
Slough Borough Council,805178,AFM Transport Limited,D880,Place Operations,Supplies and Services,"1,874.24",Nov-22
Slough Borough Council,805178,AFM Transport Limited,D880,Place Operations,Supplies and Services,"1,574.00",Nov-22
Slough Borough Council,805178,AFM Transport Limited,D880,Place Operations,Supplies and Services,"7,460.00",Nov-22
Slough Borough Council,805178,AFM Transport Limited,D880,Place Operations,Supplies and Services,"11,054.39",Nov-22
Slough Borough Council,805178,AFM Transport Limited,D880,Place Operations,Supplies and Services,"5,535.15",Nov-22
Slough Borough Council,222,Altwood Church Of England School,F552,Children & Families,Supplies and Services,"6,000.00",Nov-22
Slough Borough Council,222,Altwood Church Of England School,F552,Children & Families,Supplies and Services,"8,500.00",Nov-22
Slough Borough Council,2197,Altwood Housing Ltd,H205,Housing (People) Services,Supplies and Services,825.00,Nov-22
Slough Borough Council,2197,Altwood Housing Ltd,H205,Housing (People) Services,Supplies and Services,930.00,Nov-22
Slough Borough Council,2197,Altwood Housing Ltd,H205,Housing (People) Services,Supplies and Services,900.00,Nov-22
Slough Borough Council,2197,Altwood Housing Ltd,H205,Housing (People) Services,Supplies and Services,"1,650.00",Nov-22
Slough Borough Council,2197,Altwood Housing Ltd,H205,Housing (People) Services,Supplies and Services,"1,740.00",Nov-22
Slough Borough Council,2197,Altwood Housing Ltd,H205,Housing (People) Services,Supplies and Services,720.00,Nov-22
Slough Borough Council,2197,Altwood Housing Ltd,H205,Housing (People) Services,Supplies and Services,"2,250.00",Nov-22
Slough Borough Council,2197,Altwood Housing Ltd,H205,Housing (People) Services,Supplies and Services,720.00,Nov-22
Slough Borough Council,2197,Altwood Housing Ltd,H205,Housing (People) Services,Supplies and Services,990.00,Nov-22
Slough Borough Council,2197,Altwood Housing Ltd,H205,Housing (People) Services,Supplies and Services,900.00,Nov-22
Slough Borough Council,2197,Altwood Housing Ltd,H205,Housing (People) Services,Supplies and Services,900.00,Nov-22
Slough Borough Council,2197,Altwood Housing Ltd,H205,Housing (People) Services,Supplies and Services,900.00,Nov-22
Slough Borough Council,2197,Altwood Housing Ltd,H205,Housing (People) Services,Supplies and Services,900.00,Nov-22
Slough Borough Council,2197,Altwood Housing Ltd,H205,Housing (People) Services,Supplies and Services,"1,200.00",Nov-22
Slough Borough Council,2197,Altwood Housing Ltd,H205,Housing (People) Services,Supplies and Services,"1,650.00",Nov-22
Slough Borough Council,2197,Altwood Housing Ltd,H205,Housing (People) Services,Supplies and Services,900.00,Nov-22
Slough Borough Council,2197,Altwood Housing Ltd,H205,Housing (People) Services,Supplies and Services,"1,200.00",Nov-22
Slough Borough Council,2197,Altwood Housing Ltd,H205,Housing (People) Services,Supplies and Services,900.00,Nov-22
Slough Borough Council,2197,Altwood Housing Ltd,H205,Housing (People) Services,Supplies and Services,930.00,Nov-22
Slough Borough Council,2197,Altwood Housing Ltd,H205,Housing (People) Services,Supplies and Services,"1,705.00",Nov-22
Slough Borough Council,2197,Altwood Housing Ltd,H205,Housing (People) Services,Supplies and Services,"1,798.00",Nov-22
Slough Borough Council,2197,Altwood Housing Ltd,H205,Housing (People) Services,Supplies and Services,759.00,Nov-22
Slough Borough Council,2197,Altwood Housing Ltd,H205,Housing (People) Services,Supplies and Services,544.00,Nov-22
Slough Borough Council,2197,Altwood Housing Ltd,H205,Housing (People) Services,Supplies and Services,930.00,Nov-22
Slough Borough Council,2197,Altwood Housing Ltd,H205,Housing (People) Services,Supplies and Services,800.00,Nov-22
Slough Borough Council,2197,Altwood Housing Ltd,H205,Housing (People) Services,Supplies and Services,930.00,Nov-22
Slough Borough Council,2197,Altwood Housing Ltd,H205,Housing (People) Services,Supplies and Services,"2,325.00",Nov-22
Slough Borough Council,2197,Altwood Housing Ltd,H205,Housing (People) Services,Supplies and Services,930.00,Nov-22
Slough Borough Council,2197,Altwood Housing Ltd,H205,Housing (People) Services,Supplies and Services,930.00,Nov-22
Slough Borough Council,2197,Altwood Housing Ltd,H205,Housing (People) Services,Supplies and Services,744.00,Nov-22
Slough Borough Council,2197,Altwood Housing Ltd,H205,Housing (People) Services,Supplies and Services,880.00,Nov-22
Slough Borough Council,2197,Altwood Housing Ltd,H205,Housing (People) Services,Supplies and Services,930.00,Nov-22
Slough Borough Council,2197,Altwood Housing Ltd,H205,Housing (People) Services,Supplies and Services,"1,240.00",Nov-22
Slough Borough Council,2197,Altwood Housing Ltd,H205,Housing (People) Services,Supplies and Services,744.00,Nov-22
Slough Borough Council,86,Altwood Properties Ltd,H205,Housing (People) Services,Premises,"52,875.62",Nov-22
Slough Borough Council,807515,Always Growing Together Community Interest Company Limited,F909,Children & Families,Supplies and Services,"9,888.06",Nov-22
Slough Borough Council,807515,Always Growing Together Community Interest Company Limited,F909,Children & Families,Supplies and Services,"9,888.06",Nov-22
Slough Borough Council,808191,Ambrose Adrian Healthcare Ltd,M44E,Adult Social Care Operations,Supplies and Services,"3,800.00",Nov-22
Slough Borough Council,806033,Amon Dsane,F253,Children & Families,Agency Staff,"1,088.00",Nov-22
Slough Borough Council,808368,Anthony Toby Homes Trust,M26E,Adult Social Care Operations,Supplies and Services,"5,239.15",Nov-22
Slough Borough Council,3137,Applegarth Care Home Ltd,M25C,Adult Social Care Operations,Supplies and Services,"3,400.00",Nov-22
Slough Borough Council,3137,Applegarth Care Home Ltd,M25C,Adult Social Care Operations,Supplies and Services,"3,200.00",Nov-22
Slough Borough Council,3137,Applegarth Care Home Ltd,M27C,Adult Social Care Operations,Supplies and Services,"3,780.00",Nov-22
Slough Borough Council,3137,Applegarth Care Home Ltd,M27C,Adult Social Care Operations,Supplies and Services,"3,500.00",Nov-22
Slough Borough Council,808206,Applenet Care & Support,M81D,Adult Social Care Operations,Supplies and Services,"7,950.00",Nov-22
Slough Borough Council,808415,APTUS EA LTD,H205,Housing (People) Services,Supplies and Services,"89,309.00",Nov-22
Slough Borough Council,3350,Arbour Vale School,E610,Children & Families,Supplies and Services,"450,482.74",Nov-22
Slough Borough Council,2073,Arc Preschool,F909,Children & Families,Supplies and Services,"5,820.15",Nov-22
Slough Borough Council,2073,Arc Preschool,F909,Children & Families,Supplies and Services,"3,153.66",Nov-22
Slough Borough Council,831,Argos Business Solutions Ltd,H055,Finance & Commercial,Supplies and Services,"7,113.56",Nov-22
Slough Borough Council,420,Ashburn Estate Agents,H205,Housing (People) Services,Premises,"120,628.00",Nov-22
Slough Borough Council,3666,Assisted Living South West,M26E,Adult Social Care Operations,Supplies and Services,"4,816.04",Nov-22
Slough Borough Council,1292,Association Of Electoral Administrators,B246,Governance,Salaries and Wages,"2,448.00",Nov-22
Slough Borough Council,804324,Astoria Healthcare,M27F,Adult Social Care Operations,Supplies and Services,"4,275.00",Nov-22
Slough Borough Council,570,Atkins Limited,P187,Capital,Capital Charges,"22,858.00",Nov-22
Slough Borough Council,808330,Avison Young,P242,Capital,Capital Charges,"11,475.00",Nov-22
Slough Borough Council,803408,Basingstoke and Deane Borough Council,B079,Place Strategy & Infrastructure,External Receipts,"15,205.64",Nov-22
Slough Borough Council,808535,Baylis Community Media CIC,D124,Place Strategy & Infrastructure,Supplies and Services,695.64,Nov-22
Slough Borough Council,808535,Baylis Community Media CIC,D124,Place Strategy & Infrastructure,Supplies and Services,673.20,Nov-22
Slough Borough Council,3370,Baylis Court School,E610,Children & Families,Supplies and Services,"3,833.34",Nov-22
Slough Borough Council,1681,Bcq,B246,Governance,Supplies and Services,604.00,Nov-22
Slough Borough Council,1681,Bcq,D610,Place Operations,Supplies and Services,"1,166.00",Nov-22
Slough Borough Council,1681,Bcq,D610,Place Operations,Supplies and Services,"1,352.00",Nov-22
Slough Borough Council,1681,Bcq,D610,Place Operations,Supplies and Services,"2,845.00",Nov-22
Slough Borough Council,1681,Bcq,D610,Place Operations,Supplies and Services,692.00,Nov-22
Slough Borough Council,3208,Be Happy Pre School,F909,Children & Families,Supplies and Services,"8,019.49",Nov-22
Slough Borough Council,3208,Be Happy Pre School,F909,Children & Families,Supplies and Services,"4,118.26",Nov-22
Slough Borough Council,3208,Be Happy Pre School,F909,Children & Families,Supplies and Services,"8,019.49",Nov-22
Slough Borough Council,3208,Be Happy Pre School,F909,Children & Families,Supplies and Services,"4,118.26",Nov-22
Slough Borough Council,1818,Bear Buses,D512,Place Strategy & Infrastructure,Supplies and Services,995.54,Nov-22
Slough Borough Council,805539,Beech Haven Ltd,M27C,Adult Social Care Operations,Supplies and Services,"3,277.14",Nov-22
Slough Borough Council,805539,Beech Haven Ltd,M27C,Adult Social Care Operations,Supplies and Services,"3,171.43",Nov-22
Slough Borough Council,609,Beechwood Secondary School,E610,Children & Families,Supplies and Services,"6,125.00",Nov-22
Slough Borough Council,804588,BEN Motor & Allied Trades Bev.Fnd,M15D,Adult Social Care Operations,Supplies and Services,"6,400.00",Nov-22
Slough Borough Council,804588,BEN Motor & Allied Trades Bev.Fnd,M27C,Adult Social Care Operations,Supplies and Services,"5,600.00",Nov-22
Slough Borough Council,804588,BEN Motor & Allied Trades Bev.Fnd,M27C,Adult Social Care Operations,Supplies and Services,"5,600.00",Nov-22
Slough Borough Council,804588,BEN Motor & Allied Trades Bev.Fnd,M28C,Adult Social Care Operations,Supplies and Services,"3,728.57",Nov-22
Slough Borough Council,804588,BEN Motor & Allied Trades Bev.Fnd,M28C,Adult Social Care Operations,Supplies and Services,"5,800.00",Nov-22
Slough Borough Council,804588,BEN Motor & Allied Trades Bev.Fnd,M28C,Adult Social Care Operations,Supplies and Services,"5,800.00",Nov-22
Slough Borough Council,804588,BEN Motor & Allied Trades Bev.Fnd,M28C,Adult Social Care Operations,Supplies and Services,"5,800.00",Nov-22
Slough Borough Council,804588,BEN Motor & Allied Trades Bev.Fnd,M28C,Adult Social Care Operations,Supplies and Services,"5,800.00",Nov-22
Slough Borough Council,804588,BEN Motor & Allied Trades Bev.Fnd,M28C,Adult Social Care Operations,Supplies and Services,"5,800.00",Nov-22
Slough Borough Council,804588,BEN Motor & Allied Trades Bev.Fnd,M28C,Adult Social Care Operations,Supplies and Services,"5,800.00",Nov-22
Slough Borough Council,612,Berkshire Healthcare Nhs Foundation Trust,A07M,Mental Health Services,Agency Staff,"8,252.33",Nov-22
Slough Borough Council,612,Berkshire Healthcare Nhs Foundation Trust,A07M,Mental Health Services,Agency Staff,"4,781.33",Nov-22
Slough Borough Council,612,Berkshire Healthcare Nhs Foundation Trust,A07R,Adult Social Care Operations,Supplies and Services,"6,582.00",Nov-22
Slough Borough Council,808116,BeSpoke Cycling Instruction Ltd,D500,Place Strategy & Infrastructure,Supplies and Services,"5,299.00",Nov-22
Slough Borough Council,808116,BeSpoke Cycling Instruction Ltd,D500,Place Strategy & Infrastructure,Supplies and Services,"4,230.00",Nov-22
Slough Borough Council,2308,Bespoke Supportive Tenancies Ltd,A04L,Adult Social Care Operations,Supplies and Services,"1,725.90",Nov-22
Slough Borough Council,2308,Bespoke Supportive Tenancies Ltd,A04L,Adult Social Care Operations,Supplies and Services,"1,783.43",Nov-22
Slough Borough Council,808148,BEST CHOICE CARE LTD,A07R,Adult Social Care Operations,Supplies and Services,"1,758.98",Nov-22
Slough Borough Council,808148,BEST CHOICE CARE LTD,A07R,Adult Social Care Operations,Supplies and Services,831.39,Nov-22
Slough Borough Council,808148,BEST CHOICE CARE LTD,A07R,Adult Social Care Operations,Supplies and Services,"1,102.64",Nov-22
Slough Borough Council,808148,BEST CHOICE CARE LTD,A07R,Adult Social Care Operations,Supplies and Services,967.00,Nov-22
Slough Borough Council,808148,BEST CHOICE CARE LTD,A07R,Adult Social Care Operations,Supplies and Services,"2,205.28",Nov-22
Slough Borough Council,808148,BEST CHOICE CARE LTD,A07R,Adult Social Care Operations,Supplies and Services,735.00,Nov-22
Slough Borough Council,808148,BEST CHOICE CARE LTD,A07R,Adult Social Care Operations,Supplies and Services,538.25,Nov-22
Slough Borough Council,808148,BEST CHOICE CARE LTD,A07R,Adult Social Care Operations,Supplies and Services,682.64,Nov-22
Slough Borough Council,808148,BEST CHOICE CARE LTD,M44C,Adult Social Care Operations,Supplies and Services,857.70,Nov-22
Slough Borough Council,808148,BEST CHOICE CARE LTD,M44C,Adult Social Care Operations,Supplies and Services,831.25,Nov-22
Slough Borough Council,808148,BEST CHOICE CARE LTD,M44C,Adult Social Care Operations,Supplies and Services,"1,225.00",Nov-22
Slough Borough Council,808148,BEST CHOICE CARE LTD,M44C,Adult Social Care Operations,Supplies and Services,638.89,Nov-22
Slough Borough Council,808148,BEST CHOICE CARE LTD,M44C,Adult Social Care Operations,Supplies and Services,612.64,Nov-22
Slough Borough Council,808148,BEST CHOICE CARE LTD,M44C,Adult Social Care Operations,Supplies and Services,630.00,Nov-22
Slough Borough Council,808148,BEST CHOICE CARE LTD,M44C,Adult Social Care Operations,Supplies and Services,630.14,Nov-22
Slough Borough Council,808148,BEST CHOICE CARE LTD,M44C,Adult Social Care Operations,Supplies and Services,857.64,Nov-22
Slough Borough Council,808148,BEST CHOICE CARE LTD,M44C,Adult Social Care Operations,Supplies and Services,603.89,Nov-22
Slough Borough Council,808148,BEST CHOICE CARE LTD,M44C,Adult Social Care Operations,Supplies and Services,787.58,Nov-22
Slough Borough Council,808148,BEST CHOICE CARE LTD,M44C,Adult Social Care Operations,Supplies and Services,673.85,Nov-22
Slough Borough Council,808148,BEST CHOICE CARE LTD,M44C,Adult Social Care Operations,Supplies and Services,857.64,Nov-22
Slough Borough Council,808148,BEST CHOICE CARE LTD,M44C,Adult Social Care Operations,Supplies and Services,612.64,Nov-22
Slough Borough Council,808148,BEST CHOICE CARE LTD,M44C,Adult Social Care Operations,Supplies and Services,"1,102.64",Nov-22
Slough Borough Council,808148,BEST CHOICE CARE LTD,M44C,Adult Social Care Operations,Supplies and Services,735.00,Nov-22
Slough Borough Council,808148,BEST CHOICE CARE LTD,M44D,Adult Social Care Operations,Supplies and Services,857.64,Nov-22
Slough Borough Council,808148,BEST CHOICE CARE LTD,M44D,Adult Social Care Operations,Supplies and Services,"2,467.50",Nov-22
Slough Borough Council,808148,BEST CHOICE CARE LTD,M44D,Adult Social Care Operations,Supplies and Services,"2,205.28",Nov-22
Slough Borough Council,808148,BEST CHOICE CARE LTD,M44F,Adult Social Care Operations,Supplies and Services,665.00,Nov-22
Slough Borough Council,808148,BEST CHOICE CARE LTD,M45C,Adult Social Care Operations,Supplies and Services,660.73,Nov-22
Slough Borough Council,808148,BEST CHOICE CARE LTD,M48C,Adult Social Care Operations,Supplies and Services,577.72,Nov-22
Slough Borough Council,808148,BEST CHOICE CARE LTD,M48C,Adult Social Care Operations,Supplies and Services,630.00,Nov-22
Slough Borough Council,1736,Bevan Brittan Llp,B086,Place Strategy & Infrastructure,Capital Charges,"6,027.00",Nov-22
Slough Borough Council,808379,BHARANI ENTERPRISES (UK) LTD,B088,Place Strategy & Infrastructure,Supplies and Services,"31,506.84",Nov-22
Slough Borough Council,803449,Bibliotheca Limited,P084,Capital,Capital Charges,"-3,068.40",Nov-22
Slough Borough Council,803449,Bibliotheca Limited,P084,Capital,Capital Charges,"8,250.00",Nov-22
Slough Borough Council,1224,Big Yellow Self Storage,D303,Place Regulation,Supplies and Services,"9,139.00",Nov-22
Slough Borough Council,808452,Black Swan International Limited,M25C,Adult Social Care Operations,Supplies and Services,"3,214.20",Nov-22
Slough Borough Council,803828,Blue Willow Day Nursery Ltd,F909,Children & Families,Supplies and Services,"21,852.39",Nov-22
Slough Borough Council,803828,Blue Willow Day Nursery Ltd,F909,Children & Families,Supplies and Services,"21,852.39",Nov-22
Slough Borough Council,805160,Bouygues E&S FM UK Limited,K521,Business Services,Premises,"19,329.52",Nov-22
Slough Borough Council,805160,Bouygues E&S FM UK Limited,K521,Business Services,Premises,"37,741.96",Nov-22
Slough Borough Council,805160,Bouygues E&S FM UK Limited,K521,Business Services,Premises,"67,718.53",Nov-22
Slough Borough Council,805160,Bouygues E&S FM UK Limited,K521,Business Services,Premises,"32,564.75",Nov-22
Slough Borough Council,805160,Bouygues E&S FM UK Limited,K521,Business Services,Premises,"64,598.63",Nov-22
Slough Borough Council,805160,Bouygues E&S FM UK Limited,K522,Business Services,Premises,"47,118.93",Nov-22
Slough Borough Council,805160,Bouygues E&S FM UK Limited,K523,Business Services,Premises,"47,041.09",Nov-22
Slough Borough Council,805160,Bouygues E&S FM UK Limited,K525,Business Services,Premises,"3,149.03",Nov-22
Slough Borough Council,805160,Bouygues E&S FM UK Limited,K522,Business Services,Supplies and Services,"6,822.13",Nov-22
Slough Borough Council,805160,Bouygues E&S FM UK Limited,B060,Business Services,Transport,"5,631.02",Nov-22
Slough Borough Council,805060,BPS Dorking Ltd t/a BPS Chartered Surveyors,D224,Place Regulation,Supplies and Services,"2,000.00",Nov-22
Slough Borough Council,805060,BPS Dorking Ltd t/a BPS Chartered Surveyors,D224,Place Regulation,Supplies and Services,"9,760.00",Nov-22
Slough Borough Council,807490,Bramble Hub Limited,B126,Place Regulation,Supplies and Services,"16,194.00",Nov-22
Slough Borough Council,805179,Braywood Tree Surgery Ltd,P220,Capital,Capital Charges,"4,000.00",Nov-22
Slough Borough Council,805817,Bright World Nurseries,F909,Children & Families,Supplies and Services,"10,530.54",Nov-22
Slough Borough Council,805817,Bright World Nurseries,F909,Children & Families,Supplies and Services,"10,380.54",Nov-22
Slough Borough Council,615,British Red Cross,B409,People,Indirect Employee Expenses,598.00,Nov-22
Slough Borough Council,615,British Red Cross,B409,People,Indirect Employee Expenses,897.00,Nov-22
Slough Borough Council,617,British Telecommunications,D122,Place Strategy & Infrastructure,Supplies and Services,"1,422.31",Nov-22
Slough Borough Council,504,Britwell Baptist Pre School,F909,Children & Families,Supplies and Services,"6,127.32",Nov-22
Slough Borough Council,504,Britwell Baptist Pre School,F909,Children & Families,Supplies and Services,"6,127.32",Nov-22
Slough Borough Council,807947,Browns CS Ltd,H235,Place Regulation,Supplies and Services,"50,000.00",Nov-22
Slough Borough Council,803873,Buckinghamshire County Council,B203,Finance & Commercial,Supplies and Services,"2,300.00",Nov-22
Slough Borough Council,803873,Buckinghamshire County Council,D512,Place Strategy & Infrastructure,Supplies and Services,864.27,Nov-22
Slough Borough Council,806892,Bucks & Berks SLT Consultancy,F417,Education & Inclusion,Supplies and Services,592.20,Nov-22
Slough Borough Council,806892,Bucks & Berks SLT Consultancy,F417,Education & Inclusion,Supplies and Services,535.45,Nov-22
Slough Borough Council,805404,Building Futures Together,F210,Community,Indirect Employee Expenses,"3,000.00",Nov-22
Slough Borough Council,805404,Building Futures Together,F210,Community,TP-Other Bodies,"3,000.00",Nov-22
Slough Borough Council,805404,Building Futures Together,F210,Community,TP-Other Bodies,"9,412.00",Nov-22
Slough Borough Council,741,Bunnies Pre-School,F909,Children & Families,Supplies and Services,"6,920.89",Nov-22
Slough Borough Council,741,Bunnies Pre-School,F909,Children & Families,Supplies and Services,"6,920.89",Nov-22
Slough Borough Council,804448,Bupa Care Homes (ANS) Ltd,M15D,Adult Social Care Operations,Supplies and Services,"5,821.18",Nov-22
Slough Borough Council,804448,Bupa Care Homes (ANS) Ltd,M15D,Adult Social Care Operations,Supplies and Services,"5,821.18",Nov-22
Slough Borough Council,804448,Bupa Care Homes (ANS) Ltd,M15D,Adult Social Care Operations,Supplies and Services,"5,821.18",Nov-22
Slough Borough Council,804448,Bupa Care Homes (ANS) Ltd,M26E,Adult Social Care Operations,Supplies and Services,"7,528.57",Nov-22
Slough Borough Council,804448,Bupa Care Homes (ANS) Ltd,M26E,Adult Social Care Operations,Supplies and Services,"7,528.57",Nov-22
Slough Borough Council,804448,Bupa Care Homes (ANS) Ltd,M26E,Adult Social Care Operations,Supplies and Services,"7,528.57",Nov-22
Slough Borough Council,629,C.H.O.I.C.E Limited,M26E,Adult Social Care Operations,Supplies and Services,"5,000.90",Nov-22
Slough Borough Council,629,C.H.O.I.C.E Limited,M26E,Adult Social Care Operations,Supplies and Services,"12,502.24",Nov-22
Slough Borough Council,629,C.H.O.I.C.E Limited,M26E,Adult Social Care Operations,Supplies and Services,"12,918.98",Nov-22
Slough Borough Council,629,C.H.O.I.C.E Limited,M42E,Adult Social Care Operations,Supplies and Services,"6,235.03",Nov-22
Slough Borough Council,629,C.H.O.I.C.E Limited,M42E,Adult Social Care Operations,Supplies and Services,"5,677.03",Nov-22
Slough Borough Council,629,C.H.O.I.C.E Limited,M42E,Adult Social Care Operations,Supplies and Services,"6,108.82",Nov-22
Slough Borough Council,629,C.H.O.I.C.E Limited,M42E,Adult Social Care Operations,Supplies and Services,"6,145.35",Nov-22
Slough Borough Council,629,C.H.O.I.C.E Limited,M42E,Adult Social Care Operations,Supplies and Services,"1,107.14",Nov-22
Slough Borough Council,629,C.H.O.I.C.E Limited,M44F,Adult Social Care Operations,Supplies and Services,"2,608.07",Nov-22
Slough Borough Council,629,C.H.O.I.C.E Limited,M44F,Adult Social Care Operations,Supplies and Services,"2,581.90",Nov-22
Slough Borough Council,806459,Cambridgeshire County Council,F123,Education & Inclusion,Supplies and Services,"1,756.13",Nov-22
Slough Borough Council,806459,Cambridgeshire County Council,F123,Education & Inclusion,Supplies and Services,"5,254.00",Nov-22
Slough Borough Council,623,Canon (Uk) Ltd,K059,Business Services,Supplies and Services,"2,603.25",Nov-22
Slough Borough Council,623,Canon (Uk) Ltd,K059,Business Services,Supplies and Services,807.61,Nov-22
Slough Borough Council,804861,Care Management Group Ltd- Account closed see 629,M26E,Adult Social Care Operations,Supplies and Services,"14,268.39",Nov-22
Slough Borough Council,804861,Care Management Group Ltd- Account closed see 629,M26E,Adult Social Care Operations,Supplies and Services,"14,744.00",Nov-22
Slough Borough Council,804861,Care Management Group Ltd- Account closed see 629,M26E,Adult Social Care Operations,Supplies and Services,"14,088.53",Nov-22
Slough Borough Council,804861,Care Management Group Ltd- Account closed see 629,M26E,Adult Social Care Operations,Supplies and Services,"-6,658.58",Nov-22
Slough Borough Council,804861,Care Management Group Ltd- Account closed see 629,M26E,Adult Social Care Operations,Supplies and Services,"-14,268.39",Nov-22
Slough Borough Council,804861,Care Management Group Ltd- Account closed see 629,M26E,Adult Social Care Operations,Supplies and Services,"-4,494.25",Nov-22
Slough Borough Council,804861,Care Management Group Ltd- Account closed see 629,M42F,Adult Social Care Operations,Supplies and Services,"1,864.59",Nov-22
Slough Borough Council,805621,Care Staff Services,A07R,Adult Social Care Operations,Supplies and Services,"2,205.00",Nov-22
Slough Borough Council,805621,Care Staff Services,A07R,Adult Social Care Operations,Supplies and Services,"1,032.50",Nov-22
Slough Borough Council,805621,Care Staff Services,A07R,Adult Social Care Operations,Supplies and Services,555.63,Nov-22
Slough Borough Council,805621,Care Staff Services,A07R,Adult Social Care Operations,Supplies and Services,726.25,Nov-22
Slough Borough Council,805621,Care Staff Services,A07R,Adult Social Care Operations,Supplies and Services,"2,082.50",Nov-22
Slough Borough Council,805621,Care Staff Services,A07R,Adult Social Care Operations,Supplies and Services,"2,310.00",Nov-22
Slough Borough Council,805621,Care Staff Services,A07R,Adult Social Care Operations,Supplies and Services,901.25,Nov-22
Slough Borough Council,805621,Care Staff Services,A07R,Adult Social Care Operations,Supplies and Services,708.75,Nov-22
Slough Borough Council,805621,Care Staff Services,A07R,Adult Social Care Operations,Supplies and Services,"1,732.50",Nov-22
Slough Borough Council,805621,Care Staff Services,A07R,Adult Social Care Operations,Supplies and Services,"1,986.25",Nov-22
Slough Borough Council,805621,Care Staff Services,A07R,Adult Social Care Operations,Supplies and Services,"1,015.00",Nov-22
Slough Borough Council,805621,Care Staff Services,A07R,Adult Social Care Operations,Supplies and Services,"1,165.50",Nov-22
Slough Borough Council,805621,Care Staff Services,A07R,Adult Social Care Operations,Supplies and Services,805.00,Nov-22
Slough Borough Council,805621,Care Staff Services,M44C,Adult Social Care Operations,Supplies and Services,"2,144.52",Nov-22
Slough Borough Council,805621,Care Staff Services,M44C,Adult Social Care Operations,Supplies and Services,721.50,Nov-22
Slough Borough Council,805621,Care Staff Services,M44C,Adult Social Care Operations,Supplies and Services,"1,406.00",Nov-22
Slough Borough Council,805621,Care Staff Services,M44C,Adult Social Care Operations,Supplies and Services,599.38,Nov-22
Slough Borough Council,805621,Care Staff Services,M44C,Adult Social Care Operations,Supplies and Services,647.50,Nov-22
Slough Borough Council,805621,Care Staff Services,M44C,Adult Social Care Operations,Supplies and Services,"2,331.00",Nov-22
Slough Borough Council,805621,Care Staff Services,M44C,Adult Social Care Operations,Supplies and Services,936.25,Nov-22
Slough Borough Council,805621,Care Staff Services,M44C,Adult Social Care Operations,Supplies and Services,743.75,Nov-22
Slough Borough Council,805621,Care Staff Services,M44C,Adult Social Care Operations,Supplies and Services,568.75,Nov-22
Slough Borough Council,805621,Care Staff Services,M44C,Adult Social Care Operations,Supplies and Services,857.50,Nov-22
Slough Borough Council,805621,Care Staff Services,M44C,Adult Social Care Operations,Supplies and Services,752.50,Nov-22
Slough Borough Council,805621,Care Staff Services,M44C,Adult Social Care Operations,Supplies and Services,675.25,Nov-22
Slough Borough Council,805621,Care Staff Services,M44C,Adult Social Care Operations,Supplies and Services,666.00,Nov-22
Slough Borough Council,805621,Care Staff Services,M44C,Adult Social Care Operations,Supplies and Services,"1,813.00",Nov-22
Slough Borough Council,805621,Care Staff Services,M44C,Adult Social Care Operations,Supplies and Services,795.00,Nov-22
Slough Borough Council,805621,Care Staff Services,M44C,Adult Social Care Operations,Supplies and Services,"1,102.50",Nov-22
Slough Borough Council,805621,Care Staff Services,M44C,Adult Social Care Operations,Supplies and Services,"1,715.00",Nov-22
Slough Borough Council,805621,Care Staff Services,M44C,Adult Social Care Operations,Supplies and Services,"1,120.00",Nov-22
Slough Borough Council,805621,Care Staff Services,M44C,Adult Social Care Operations,Supplies and Services,"1,535.50",Nov-22
Slough Borough Council,805621,Care Staff Services,M44C,Adult Social Care Operations,Supplies and Services,777.00,Nov-22
Slough Borough Council,805621,Care Staff Services,M44C,Adult Social Care Operations,Supplies and Services,857.50,Nov-22
Slough Borough Council,805621,Care Staff Services,M44C,Adult Social Care Operations,Supplies and Services,778.75,Nov-22
Slough Borough Council,805621,Care Staff Services,M44C,Adult Social Care Operations,Supplies and Services,"2,331.00",Nov-22
Slough Borough Council,805621,Care Staff Services,M44C,Adult Social Care Operations,Supplies and Services,"2,205.00",Nov-22
Slough Borough Council,805621,Care Staff Services,M44C,Adult Social Care Operations,Supplies and Services,665.00,Nov-22
Slough Borough Council,805621,Care Staff Services,M44C,Adult Social Care Operations,Supplies and Services,"1,102.50",Nov-22
Slough Borough Council,805621,Care Staff Services,M44C,Adult Social Care Operations,Supplies and Services,848.75,Nov-22
Slough Borough Council,805621,Care Staff Services,M44C,Adult Social Care Operations,Supplies and Services,791.88,Nov-22
Slough Borough Council,805621,Care Staff Services,M44C,Adult Social Care Operations,Supplies and Services,857.50,Nov-22
Slough Borough Council,805621,Care Staff Services,M44C,Adult Social Care Operations,Supplies and Services,564.25,Nov-22
Slough Borough Council,805621,Care Staff Services,M44C,Adult Social Care Operations,Supplies and Services,"1,230.25",Nov-22
Slough Borough Council,805621,Care Staff Services,M44C,Adult Social Care Operations,Supplies and Services,"2,664.00",Nov-22
Slough Borough Council,805621,Care Staff Services,M44C,Adult Social Care Operations,Supplies and Services,522.63,Nov-22
Slough Borough Council,805621,Care Staff Services,M44C,Adult Social Care Operations,Supplies and Services,518.00,Nov-22
Slough Borough Council,805621,Care Staff Services,M44C,Adult Social Care Operations,Supplies and Services,"2,187.50",Nov-22
Slough Borough Council,805621,Care Staff Services,M44C,Adult Social Care Operations,Supplies and Services,525.00,Nov-22
Slough Borough Council,805621,Care Staff Services,M44C,Adult Social Care Operations,Supplies and Services,984.38,Nov-22
Slough Borough Council,805621,Care Staff Services,M44C,Adult Social Care Operations,Supplies and Services,"1,093.75",Nov-22
Slough Borough Council,805621,Care Staff Services,M44C,Adult Social Care Operations,Supplies and Services,581.88,Nov-22
Slough Borough Council,805621,Care Staff Services,M44C,Adult Social Care Operations,Supplies and Services,726.25,Nov-22
Slough Borough Council,805621,Care Staff Services,M44C,Adult Social Care Operations,Supplies and Services,906.50,Nov-22
Slough Borough Council,805621,Care Staff Services,M44C,Adult Social Care Operations,Supplies and Services,"2,275.00",Nov-22
Slough Borough Council,805621,Care Staff Services,M44C,Adult Social Care Operations,Supplies and Services,735.00,Nov-22
Slough Borough Council,805621,Care Staff Services,M44C,Adult Social Care Operations,Supplies and Services,796.25,Nov-22
Slough Borough Council,805621,Care Staff Services,M44C,Adult Social Care Operations,Supplies and Services,857.50,Nov-22
Slough Borough Council,805621,Care Staff Services,M44C,Adult Social Care Operations,Supplies and Services,"1,190.00",Nov-22
Slough Borough Council,805621,Care Staff Services,M44D,Adult Social Care Operations,Supplies and Services,949.38,Nov-22
Slough Borough Council,805621,Care Staff Services,M44D,Adult Social Care Operations,Supplies and Services,"1,592.50",Nov-22
Slough Borough Council,805621,Care Staff Services,M44D,Adult Social Care Operations,Supplies and Services,"1,190.00",Nov-22
Slough Borough Council,805621,Care Staff Services,M44D,Adult Social Care Operations,Supplies and Services,"1,165.50",Nov-22
Slough Borough Council,805621,Care Staff Services,M44D,Adult Social Care Operations,Supplies and Services,619.75,Nov-22
Slough Borough Council,805621,Care Staff Services,M44D,Adult Social Care Operations,Supplies and Services,832.50,Nov-22
Slough Borough Council,805621,Care Staff Services,M44D,Adult Social Care Operations,Supplies and Services,"1,837.50",Nov-22
Slough Borough Council,805621,Care Staff Services,M44D,Adult Social Care Operations,Supplies and Services,857.50,Nov-22
Slough Borough Council,805621,Care Staff Services,M44F,Adult Social Care Operations,Supplies and Services,666.00,Nov-22
Slough Borough Council,805621,Care Staff Services,M44F,Adult Social Care Operations,Supplies and Services,"1,242.50",Nov-22
Slough Borough Council,805621,Care Staff Services,M44F,Adult Social Care Operations,Supplies and Services,533.75,Nov-22
Slough Borough Council,805621,Care Staff Services,M44F,Adult Social Care Operations,Supplies and Services,980.00,Nov-22
Slough Borough Council,805621,Care Staff Services,M44F,Adult Social Care Operations,Supplies and Services,"2,590.00",Nov-22
Slough Borough Council,805621,Care Staff Services,M44F,Adult Social Care Operations,Supplies and Services,934.25,Nov-22
Slough Borough Council,805621,Care Staff Services,M44F,Adult Social Care Operations,Supplies and Services,740.00,Nov-22
Slough Borough Council,805621,Care Staff Services,M45C,Adult Social Care Operations,Supplies and Services,783.13,Nov-22
Slough Borough Council,805621,Care Staff Services,M45C,Adult Social Care Operations,Supplies and Services,638.75,Nov-22
Slough Borough Council,805621,Care Staff Services,M45C,Adult Social Care Operations,Supplies and Services,"1,163.75",Nov-22
Slough Borough Council,805621,Care Staff Services,M45C,Adult Social Care Operations,Supplies and Services,"2,205.00",Nov-22
Slough Borough Council,805621,Care Staff Services,M45C,Adult Social Care Operations,Supplies and Services,735.00,Nov-22
Slough Borough Council,805621,Care Staff Services,M48C,Adult Social Care Operations,Supplies and Services,"1,715.00",Nov-22
Slough Borough Council,805621,Care Staff Services,M48C,Adult Social Care Operations,Supplies and Services,"1,960.00",Nov-22
Slough Borough Council,1162,Care Uk Community Partnership Ltd,A02E,Adult Social Care Operations,Supplies and Services,"52,267.80",Nov-22
Slough Borough Council,1162,Care Uk Community Partnership Ltd,A02E,Adult Social Care Operations,Supplies and Services,"52,267.80",Nov-22
Slough Borough Council,1162,Care Uk Community Partnership Ltd,A03E,Adult Social Care Operations,Supplies and Services,"3,842.56",Nov-22
Slough Borough Council,1162,Care Uk Community Partnership Ltd,A03E,Adult Social Care Operations,Supplies and Services,"3,842.56",Nov-22
Slough Borough Council,1162,Care Uk Community Partnership Ltd,M15D,Adult Social Care Operations,Supplies and Services,"3,849.16",Nov-22
Slough Borough Council,1162,Care Uk Community Partnership Ltd,M15D,Adult Social Care Operations,Supplies and Services,"3,849.16",Nov-22
Slough Borough Council,1162,Care Uk Community Partnership Ltd,M15D,Adult Social Care Operations,Supplies and Services,"3,849.16",Nov-22
Slough Borough Council,1162,Care Uk Community Partnership Ltd,M15D,Adult Social Care Operations,Supplies and Services,"3,849.16",Nov-22
Slough Borough Council,1162,Care Uk Community Partnership Ltd,M15D,Adult Social Care Operations,Supplies and Services,"3,969.72",Nov-22
Slough Borough Council,1162,Care Uk Community Partnership Ltd,M15D,Adult Social Care Operations,Supplies and Services,"3,849.16",Nov-22
Slough Borough Council,1162,Care Uk Community Partnership Ltd,M15D,Adult Social Care Operations,Supplies and Services,"2,827.20",Nov-22
Slough Borough Council,1162,Care Uk Community Partnership Ltd,M15D,Adult Social Care Operations,Supplies and Services,"3,849.16",Nov-22
Slough Borough Council,1162,Care Uk Community Partnership Ltd,M15D,Adult Social Care Operations,Supplies and Services,"3,849.16",Nov-22
Slough Borough Council,1162,Care Uk Community Partnership Ltd,M15D,Adult Social Care Operations,Supplies and Services,"3,849.16",Nov-22
Slough Borough Council,1162,Care Uk Community Partnership Ltd,M15D,Adult Social Care Operations,Supplies and Services,"3,969.72",Nov-22
Slough Borough Council,1162,Care Uk Community Partnership Ltd,M15F,Adult Social Care Operations,Supplies and Services,"3,849.16",Nov-22
Slough Borough Council,1162,Care Uk Community Partnership Ltd,M15F,Adult Social Care Operations,Supplies and Services,"2,837.14",Nov-22
Slough Borough Council,1162,Care Uk Community Partnership Ltd,M15F,Adult Social Care Operations,Supplies and Services,"2,931.71",Nov-22
Slough Borough Council,1162,Care Uk Community Partnership Ltd,M15F,Adult Social Care Operations,Supplies and Services,"2,931.71",Nov-22
Slough Borough Council,1162,Care Uk Community Partnership Ltd,M15F,Adult Social Care Operations,Supplies and Services,"3,849.16",Nov-22
Slough Borough Council,1162,Care Uk Community Partnership Ltd,M17C,Adult Social Care Operations,Supplies and Services,"5,757.14",Nov-22
Slough Borough Council,1162,Care Uk Community Partnership Ltd,M17C,Adult Social Care Operations,Supplies and Services,"3,969.72",Nov-22
Slough Borough Council,1162,Care Uk Community Partnership Ltd,M17C,Adult Social Care Operations,Supplies and Services,"3,969.72",Nov-22
Slough Borough Council,1162,Care Uk Community Partnership Ltd,M17C,Adult Social Care Operations,Supplies and Services,"7,621.44",Nov-22
Slough Borough Council,1162,Care Uk Community Partnership Ltd,M17C,Adult Social Care Operations,Supplies and Services,"3,969.72",Nov-22
Slough Borough Council,1162,Care Uk Community Partnership Ltd,M17C,Adult Social Care Operations,Supplies and Services,"3,969.72",Nov-22
Slough Borough Council,1162,Care Uk Community Partnership Ltd,M17C,Adult Social Care Operations,Supplies and Services,"3,969.72",Nov-22
Slough Borough Council,1162,Care Uk Community Partnership Ltd,M17C,Adult Social Care Operations,Supplies and Services,"3,969.72",Nov-22
Slough Borough Council,1162,Care Uk Community Partnership Ltd,M17C,Adult Social Care Operations,Supplies and Services,"9,748.08",Nov-22
Slough Borough Council,1162,Care Uk Community Partnership Ltd,M17C,Adult Social Care Operations,Supplies and Services,"3,969.72",Nov-22
Slough Borough Council,1162,Care Uk Community Partnership Ltd,M17C,Adult Social Care Operations,Supplies and Services,"3,969.72",Nov-22
Slough Borough Council,1162,Care Uk Community Partnership Ltd,M17C,Adult Social Care Operations,Supplies and Services,"3,969.72",Nov-22
Slough Borough Council,1162,Care Uk Community Partnership Ltd,M17C,Adult Social Care Operations,Supplies and Services,"3,969.72",Nov-22
Slough Borough Council,1162,Care Uk Community Partnership Ltd,M18C,Adult Social Care Operations,Supplies and Services,"3,849.16",Nov-22
Slough Borough Council,1162,Care Uk Community Partnership Ltd,M18C,Adult Social Care Operations,Supplies and Services,"3,849.16",Nov-22
Slough Borough Council,1162,Care Uk Community Partnership Ltd,M18C,Adult Social Care Operations,Supplies and Services,"3,849.16",Nov-22
Slough Borough Council,1162,Care Uk Community Partnership Ltd,M18C,Adult Social Care Operations,Supplies and Services,"3,969.72",Nov-22
Slough Borough Council,1162,Care Uk Community Partnership Ltd,M18C,Adult Social Care Operations,Supplies and Services,"3,849.16",Nov-22
Slough Borough Council,1162,Care Uk Community Partnership Ltd,M18C,Adult Social Care Operations,Supplies and Services,"2,126.64",Nov-22
Slough Borough Council,1162,Care Uk Community Partnership Ltd,M18C,Adult Social Care Operations,Supplies and Services,"3,969.72",Nov-22
Slough Borough Council,1162,Care Uk Community Partnership Ltd,M18C,Adult Social Care Operations,Supplies and Services,"3,969.72",Nov-22
Slough Borough Council,1162,Care Uk Community Partnership Ltd,M18C,Adult Social Care Operations,Supplies and Services,"3,849.16",Nov-22
Slough Borough Council,1162,Care Uk Community Partnership Ltd,M18C,Adult Social Care Operations,Supplies and Services,"3,969.72",Nov-22
Slough Borough Council,1162,Care Uk Community Partnership Ltd,M18C,Adult Social Care Operations,Supplies and Services,"3,849.16",Nov-22
Slough Borough Council,1162,Care Uk Community Partnership Ltd,M18C,Adult Social Care Operations,Supplies and Services,"3,969.72",Nov-22
Slough Borough Council,1162,Care Uk Community Partnership Ltd,M18C,Adult Social Care Operations,Supplies and Services,"3,849.16",Nov-22
Slough Borough Council,1162,Care Uk Community Partnership Ltd,M18C,Adult Social Care Operations,Supplies and Services,"111,625.64",Nov-22
Slough Borough Council,1162,Care Uk Community Partnership Ltd,M18C,Adult Social Care Operations,Supplies and Services,"-13,594.60",Nov-22
Slough Borough Council,1162,Care Uk Community Partnership Ltd,M18C,Adult Social Care Operations,Supplies and Services,"3,849.16",Nov-22
Slough Borough Council,1162,Care Uk Community Partnership Ltd,M18C,Adult Social Care Operations,Supplies and Services,"3,849.16",Nov-22
Slough Borough Council,1162,Care Uk Community Partnership Ltd,M18C,Adult Social Care Operations,Supplies and Services,"3,849.16",Nov-22
Slough Borough Council,1162,Care Uk Community Partnership Ltd,M18C,Adult Social Care Operations,Supplies and Services,"3,849.16",Nov-22
Slough Borough Council,1162,Care Uk Community Partnership Ltd,M18C,Adult Social Care Operations,Supplies and Services,"3,849.16",Nov-22
Slough Borough Council,1162,Care Uk Community Partnership Ltd,M18C,Adult Social Care Operations,Supplies and Services,"3,849.16",Nov-22
Slough Borough Council,1162,Care Uk Community Partnership Ltd,M18C,Adult Social Care Operations,Supplies and Services,"3,969.72",Nov-22
Slough Borough Council,1162,Care Uk Community Partnership Ltd,M18C,Adult Social Care Operations,Supplies and Services,"3,969.72",Nov-22
Slough Borough Council,1162,Care Uk Community Partnership Ltd,M18C,Adult Social Care Operations,Supplies and Services,"3,849.16",Nov-22
Slough Borough Council,1162,Care Uk Community Partnership Ltd,M18C,Adult Social Care Operations,Supplies and Services,"3,969.72",Nov-22
Slough Borough Council,1162,Care Uk Community Partnership Ltd,M18C,Adult Social Care Operations,Supplies and Services,"3,969.72",Nov-22
Slough Borough Council,1162,Care Uk Community Partnership Ltd,M18C,Adult Social Care Operations,Supplies and Services,"-82,216.84",Nov-22
Slough Borough Council,1162,Care Uk Community Partnership Ltd,M18C,Adult Social Care Operations,Supplies and Services,"3,969.72",Nov-22
Slough Borough Council,1162,Care Uk Community Partnership Ltd,M18C,Adult Social Care Operations,Supplies and Services,"3,969.72",Nov-22
Slough Borough Council,1162,Care Uk Community Partnership Ltd,M18C,Adult Social Care Operations,Supplies and Services,"3,849.16",Nov-22
Slough Borough Council,1162,Care Uk Community Partnership Ltd,M18C,Adult Social Care Operations,Supplies and Services,"3,849.16",Nov-22
Slough Borough Council,1162,Care Uk Community Partnership Ltd,M18C,Adult Social Care Operations,Supplies and Services,"3,849.16",Nov-22
Slough Borough Council,1162,Care Uk Community Partnership Ltd,M18C,Adult Social Care Operations,Supplies and Services,"112,038.05",Nov-22
Slough Borough Council,1162,Care Uk Community Partnership Ltd,M18C,Adult Social Care Operations,Supplies and Services,"3,849.16",Nov-22
Slough Borough Council,1162,Care Uk Community Partnership Ltd,M18C,Adult Social Care Operations,Supplies and Services,"3,849.16",Nov-22
Slough Borough Council,1162,Care Uk Community Partnership Ltd,M18C,Adult Social Care Operations,Supplies and Services,"-13,594.60",Nov-22
Slough Borough Council,1162,Care Uk Community Partnership Ltd,M18C,Adult Social Care Operations,Supplies and Services,"3,849.16",Nov-22
Slough Borough Council,1162,Care Uk Community Partnership Ltd,M18C,Adult Social Care Operations,Supplies and Services,"3,849.16",Nov-22
Slough Borough Council,1162,Care Uk Community Partnership Ltd,M18C,Adult Social Care Operations,Supplies and Services,"3,969.72",Nov-22
Slough Borough Council,1162,Care Uk Community Partnership Ltd,M18C,Adult Social Care Operations,Supplies and Services,"3,969.72",Nov-22
Slough Borough Council,1162,Care Uk Community Partnership Ltd,M18C,Adult Social Care Operations,Supplies and Services,"3,849.16",Nov-22
Slough Borough Council,1162,Care Uk Community Partnership Ltd,M18C,Adult Social Care Operations,Supplies and Services,"3,969.72",Nov-22
Slough Borough Council,1162,Care Uk Community Partnership Ltd,M18C,Adult Social Care Operations,Supplies and Services,"3,969.72",Nov-22
Slough Borough Council,1162,Care Uk Community Partnership Ltd,M18C,Adult Social Care Operations,Supplies and Services,"3,969.72",Nov-22
Slough Borough Council,1162,Care Uk Community Partnership Ltd,M18C,Adult Social Care Operations,Supplies and Services,"3,849.16",Nov-22
Slough Borough Council,1162,Care Uk Community Partnership Ltd,M18C,Adult Social Care Operations,Supplies and Services,"-82,216.84",Nov-22
Slough Borough Council,1162,Care Uk Community Partnership Ltd,M18C,Adult Social Care Operations,Supplies and Services,"3,849.16",Nov-22
Slough Borough Council,1162,Care Uk Community Partnership Ltd,M18C,Adult Social Care Operations,Supplies and Services,"3,849.16",Nov-22
Slough Borough Council,1162,Care Uk Community Partnership Ltd,M18C,Adult Social Care Operations,Supplies and Services,"3,849.16",Nov-22
Slough Borough Council,1162,Care Uk Community Partnership Ltd,M18C,Adult Social Care Operations,Supplies and Services,"3,849.16",Nov-22
Slough Borough Council,1162,Care Uk Community Partnership Ltd,M18C,Adult Social Care Operations,Supplies and Services,"3,969.72",Nov-22
Slough Borough Council,1162,Care Uk Community Partnership Ltd,M18C,Adult Social Care Operations,Supplies and Services,"3,969.72",Nov-22
Slough Borough Council,1162,Care Uk Community Partnership Ltd,M18C,Adult Social Care Operations,Supplies and Services,"3,849.16",Nov-22
Slough Borough Council,1162,Care Uk Community Partnership Ltd,M25C,Adult Social Care Operations,Supplies and Services,"3,484.52",Nov-22
Slough Borough Council,1162,Care Uk Community Partnership Ltd,M25C,Adult Social Care Operations,Supplies and Services,"3,484.52",Nov-22
Slough Borough Council,1162,Care Uk Community Partnership Ltd,M25C,Adult Social Care Operations,Supplies and Services,"76,659.44",Nov-22
Slough Borough Council,1162,Care Uk Community Partnership Ltd,M25C,Adult Social Care Operations,Supplies and Services,"3,484.52",Nov-22
Slough Borough Council,1162,Care Uk Community Partnership Ltd,M25C,Adult Social Care Operations,Supplies and Services,"-73,174.36",Nov-22
Slough Borough Council,1162,Care Uk Community Partnership Ltd,M25C,Adult Social Care Operations,Supplies and Services,"3,484.52",Nov-22
Slough Borough Council,1162,Care Uk Community Partnership Ltd,M25C,Adult Social Care Operations,Supplies and Services,"3,484.52",Nov-22
Slough Borough Council,1162,Care Uk Community Partnership Ltd,M25C,Adult Social Care Operations,Supplies and Services,"76,659.44",Nov-22
Slough Borough Council,1162,Care Uk Community Partnership Ltd,M25C,Adult Social Care Operations,Supplies and Services,"3,484.52",Nov-22
Slough Borough Council,1162,Care Uk Community Partnership Ltd,M25C,Adult Social Care Operations,Supplies and Services,"3,484.52",Nov-22
Slough Borough Council,1162,Care Uk Community Partnership Ltd,M25C,Adult Social Care Operations,Supplies and Services,"-73,174.36",Nov-22
Slough Borough Council,1162,Care Uk Community Partnership Ltd,M25C,Adult Social Care Operations,Supplies and Services,"3,484.52",Nov-22
Slough Borough Council,1162,Care Uk Community Partnership Ltd,M26E,Adult Social Care Operations,Supplies and Services,"3,849.16",Nov-22
Slough Borough Council,1162,Care Uk Community Partnership Ltd,M26E,Adult Social Care Operations,Supplies and Services,"3,849.16",Nov-22
Slough Borough Council,1162,Care Uk Community Partnership Ltd,M26E,Adult Social Care Operations,Supplies and Services,"3,849.16",Nov-22
Slough Borough Council,1162,Care Uk Community Partnership Ltd,M26E,Adult Social Care Operations,Supplies and Services,"3,849.16",Nov-22
Slough Borough Council,1162,Care Uk Community Partnership Ltd,M27C,Adult Social Care Operations,Supplies and Services,"3,484.52",Nov-22
Slough Borough Council,1162,Care Uk Community Partnership Ltd,M27C,Adult Social Care Operations,Supplies and Services,"3,484.52",Nov-22
Slough Borough Council,1162,Care Uk Community Partnership Ltd,M27C,Adult Social Care Operations,Supplies and Services,"3,484.52",Nov-22
Slough Borough Council,1162,Care Uk Community Partnership Ltd,M27C,Adult Social Care Operations,Supplies and Services,"3,181.40",Nov-22
Slough Borough Council,1162,Care Uk Community Partnership Ltd,M27C,Adult Social Care Operations,Supplies and Services,"3,484.52",Nov-22
Slough Borough Council,1162,Care Uk Community Partnership Ltd,M27C,Adult Social Care Operations,Supplies and Services,"3,484.52",Nov-22
Slough Borough Council,1162,Care Uk Community Partnership Ltd,M27C,Adult Social Care Operations,Supplies and Services,"3,181.40",Nov-22
Slough Borough Council,1162,Care Uk Community Partnership Ltd,M27C,Adult Social Care Operations,Supplies and Services,"3,484.52",Nov-22
Slough Borough Council,1162,Care Uk Community Partnership Ltd,M27C,Adult Social Care Operations,Supplies and Services,"35,790.75",Nov-22
Slough Borough Council,1162,Care Uk Community Partnership Ltd,M27C,Adult Social Care Operations,Supplies and Services,"3,181.40",Nov-22
Slough Borough Council,1162,Care Uk Community Partnership Ltd,M27C,Adult Social Care Operations,Supplies and Services,"1,022.59",Nov-22
Slough Borough Council,1162,Care Uk Community Partnership Ltd,M27C,Adult Social Care Operations,Supplies and Services,"3,484.52",Nov-22
Slough Borough Council,1162,Care Uk Community Partnership Ltd,M27C,Adult Social Care Operations,Supplies and Services,"3,484.52",Nov-22
Slough Borough Council,1162,Care Uk Community Partnership Ltd,M27C,Adult Social Care Operations,Supplies and Services,"3,484.52",Nov-22
Slough Borough Council,1162,Care Uk Community Partnership Ltd,M27C,Adult Social Care Operations,Supplies and Services,"3,181.40",Nov-22
Slough Borough Council,1162,Care Uk Community Partnership Ltd,M27C,Adult Social Care Operations,Supplies and Services,"3,484.52",Nov-22
Slough Borough Council,1162,Care Uk Community Partnership Ltd,M27C,Adult Social Care Operations,Supplies and Services,"5,314.29",Nov-22
Slough Borough Council,1162,Care Uk Community Partnership Ltd,M27C,Adult Social Care Operations,Supplies and Services,"5,142.86",Nov-22
Slough Borough Council,1162,Care Uk Community Partnership Ltd,M27C,Adult Social Care Operations,Supplies and Services,"5,314.29",Nov-22
Slough Borough Council,1162,Care Uk Community Partnership Ltd,M27C,Adult Social Care Operations,Supplies and Services,"3,484.52",Nov-22
Slough Borough Council,1162,Care Uk Community Partnership Ltd,M27C,Adult Social Care Operations,Supplies and Services,"38,176.80",Nov-22
Slough Borough Council,1162,Care Uk Community Partnership Ltd,M27C,Adult Social Care Operations,Supplies and Services,"3,484.52",Nov-22
Slough Borough Council,1162,Care Uk Community Partnership Ltd,M27C,Adult Social Care Operations,Supplies and Services,"3,181.40",Nov-22
Slough Borough Council,1162,Care Uk Community Partnership Ltd,M27C,Adult Social Care Operations,Supplies and Services,"3,484.52",Nov-22
Slough Borough Council,1162,Care Uk Community Partnership Ltd,M27C,Adult Social Care Operations,Supplies and Services,"3,181.40",Nov-22
Slough Borough Council,1162,Care Uk Community Partnership Ltd,M27C,Adult Social Care Operations,Supplies and Services,"3,484.52",Nov-22
Slough Borough Council,1162,Care Uk Community Partnership Ltd,M27C,Adult Social Care Operations,Supplies and Services,"3,484.52",Nov-22
Slough Borough Council,1162,Care Uk Community Partnership Ltd,M27C,Adult Social Care Operations,Supplies and Services,"3,484.52",Nov-22
Slough Borough Council,1162,Care Uk Community Partnership Ltd,M27C,Adult Social Care Operations,Supplies and Services,"3,484.52",Nov-22
Slough Borough Council,1162,Care Uk Community Partnership Ltd,M27C,Adult Social Care Operations,Supplies and Services,"3,181.40",Nov-22
Slough Borough Council,1162,Care Uk Community Partnership Ltd,M27C,Adult Social Care Operations,Supplies and Services,"3,484.52",Nov-22
Slough Borough Council,1162,Care Uk Community Partnership Ltd,M27C,Adult Social Care Operations,Supplies and Services,"3,181.40",Nov-22
Slough Borough Council,1162,Care Uk Community Partnership Ltd,M27C,Adult Social Care Operations,Supplies and Services,"3,484.52",Nov-22
Slough Borough Council,1162,Care Uk Community Partnership Ltd,M27C,Adult Social Care Operations,Supplies and Services,"3,484.52",Nov-22
Slough Borough Council,1162,Care Uk Community Partnership Ltd,M27F,Adult Social Care Operations,Supplies and Services,"-3,181.40",Nov-22
Slough Borough Council,1162,Care Uk Community Partnership Ltd,M27F,Adult Social Care Operations,Supplies and Services,"-3,181.40",Nov-22
Slough Borough Council,1162,Care Uk Community Partnership Ltd,M28C,Adult Social Care Operations,Supplies and Services,"3,849.16",Nov-22
Slough Borough Council,1162,Care Uk Community Partnership Ltd,M28C,Adult Social Care Operations,Supplies and Services,"1,363.46",Nov-22
Slough Borough Council,1162,Care Uk Community Partnership Ltd,M28C,Adult Social Care Operations,Supplies and Services,"3,436.75",Nov-22
Slough Borough Council,804413,Castle Water,B184,Business Services,Premises,952.82,Nov-22
Slough Borough Council,804413,Castle Water,D152,Place Strategy & Infrastructure,Premises,798.56,Nov-22
Slough Borough Council,418,Castleview School,E620,Children & Families,Supplies and Services,"45,502.24",Nov-22
Slough Borough Council,803560,Centennial Property Limited T/A Rent Connect,H205,Housing (People) Services,Premises,"40,142.00",Nov-22
Slough Borough Council,3609,Centurion Healthcare Ltd,M26E,Adult Social Care Operations,Supplies and Services,"5,837.10",Nov-22
Slough Borough Council,805174,Certas Energy,D900,Place Operations,Supplies and Services,"23,395.32",Nov-22
Slough Borough Council,805174,Certas Energy,D900,Place Operations,Supplies and Services,"21,415.14",Nov-22
Slough Borough Council,805174,Certas Energy,D900,Place Operations,Supplies and Services,"1,320.00",Nov-22
Slough Borough Council,805174,Certas Energy,D750,Place Operations,Supplies and Services,"2,919.63",Nov-22
Slough Borough Council,2892,Chalfont Lodge,M15D,Adult Social Care Operations,Supplies and Services,"5,785.71",Nov-22
Slough Borough Council,2892,Chalfont Lodge,M15D,Adult Social Care Operations,Supplies and Services,"3,214.29",Nov-22
Slough Borough Council,2892,Chalfont Lodge,M15F,Adult Social Care Operations,Supplies and Services,"8,571.43",Nov-22
Slough Borough Council,2608,Chandos Lodge Nursing Home,M18C,Adult Social Care Operations,Supplies and Services,"3,600.00",Nov-22
Slough Borough Council,808500,Chartwell Care Services,M26E,Adult Social Care Operations,Supplies and Services,"12,601.84",Nov-22
Slough Borough Council,807017,Chelmsford Safety Supplies Ltd,D610,Place Operations,Supplies and Services,"2,464.57",Nov-22
Slough Borough Council,807017,Chelmsford Safety Supplies Ltd,D610,Place Operations,Supplies and Services,"1,280.00",Nov-22
Slough Borough Council,807017,Chelmsford Safety Supplies Ltd,D750,Place Operations,Supplies and Services,537.59,Nov-22
Slough Borough Council,807017,Chelmsford Safety Supplies Ltd,D750,Place Operations,Supplies and Services,720.60,Nov-22
Slough Borough Council,3114,Cherry Trees Day Nursery,F909,Children & Families,Supplies and Services,"26,273.52",Nov-22
Slough Borough Council,3114,Cherry Trees Day Nursery,F909,Children & Families,Supplies and Services,"26,273.52",Nov-22
Slough Borough Council,2871,Cherry Trees Residential Care,M42F,Adult Social Care Operations,Supplies and Services,"1,607.14",Nov-22
Slough Borough Council,2871,Cherry Trees Residential Care,M42F,Adult Social Care Operations,Supplies and Services,"3,214.29",Nov-22
Slough Borough Council,2871,Cherry Trees Residential Care,M42F,Adult Social Care Operations,Supplies and Services,"3,214.29",Nov-22
Slough Borough Council,807225,Chiltern Way Academy,F551,Children & Families,Supplies and Services,"2,155.08",Nov-22
Slough Borough Council,807225,Chiltern Way Academy,F551,Children & Families,Supplies and Services,"9,227.60",Nov-22
Slough Borough Council,807225,Chiltern Way Academy,F551,Children & Families,Supplies and Services,"9,227.60",Nov-22
Slough Borough Council,808527,Chiron Care (Uk) Limited,M44F,Adult Social Care Operations,Supplies and Services,"2,560.50",Nov-22
Slough Borough Council,808527,Chiron Care (Uk) Limited,M44F,Adult Social Care Operations,Supplies and Services,"2,645.85",Nov-22
Slough Borough Council,808527,Chiron Care (Uk) Limited,M44F,Adult Social Care Operations,Supplies and Services,"1,868.68",Nov-22
Slough Borough Council,808527,Chiron Care (Uk) Limited,M44F,Adult Social Care Operations,Supplies and Services,"2,645.85",Nov-22
Slough Borough Council,808527,Chiron Care (Uk) Limited,M44F,Adult Social Care Operations,Supplies and Services,512.22,Nov-22
Slough Borough Council,1573,Cipfa Business Limited,B015,Finance & Commercial,Salaries and Wages,"4,387.50",Nov-22
Slough Borough Council,807491,Cippenham School,E620,Children & Families,Supplies and Services,"15,041.66",Nov-22
Slough Borough Council,806550,City Homecare Ltd,A07R,Adult Social Care Operations,Supplies and Services,822.50,Nov-22
Slough Borough Council,806550,City Homecare Ltd,A07R,Adult Social Care Operations,Supplies and Services,"1,408.75",Nov-22
Slough Borough Council,806550,City Homecare Ltd,A07R,Adult Social Care Operations,Supplies and Services,748.13,Nov-22
Slough Borough Council,806550,City Homecare Ltd,A07R,Adult Social Care Operations,Supplies and Services,857.50,Nov-22
Slough Borough Council,806550,City Homecare Ltd,M44C,Adult Social Care Operations,Supplies and Services,857.50,Nov-22
Slough Borough Council,806550,City Homecare Ltd,M44C,Adult Social Care Operations,Supplies and Services,"1,470.00",Nov-22
Slough Borough Council,806550,City Homecare Ltd,M44C,Adult Social Care Operations,Supplies and Services,980.00,Nov-22
Slough Borough Council,806550,City Homecare Ltd,M44C,Adult Social Care Operations,Supplies and Services,"1,102.50",Nov-22
Slough Borough Council,806550,City Homecare Ltd,M44C,Adult Social Care Operations,Supplies and Services,612.50,Nov-22
Slough Borough Council,806550,City Homecare Ltd,M44C,Adult Social Care Operations,Supplies and Services,"1,960.00",Nov-22
Slough Borough Council,806550,City Homecare Ltd,M44C,Adult Social Care Operations,Supplies and Services,"1,102.50",Nov-22
Slough Borough Council,806550,City Homecare Ltd,M44C,Adult Social Care Operations,Supplies and Services,"2,205.00",Nov-22
Slough Borough Council,806550,City Homecare Ltd,M44C,Adult Social Care Operations,Supplies and Services,980.00,Nov-22
Slough Borough Council,806550,City Homecare Ltd,M44C,Adult Social Care Operations,Supplies and Services,"1,102.50",Nov-22
Slough Borough Council,806550,City Homecare Ltd,M44C,Adult Social Care Operations,Supplies and Services,"1,225.00",Nov-22
Slough Borough Council,806550,City Homecare Ltd,M44C,Adult Social Care Operations,Supplies and Services,"1,715.00",Nov-22
Slough Borough Council,806550,City Homecare Ltd,M44C,Adult Social Care Operations,Supplies and Services,"2,345.00",Nov-22
Slough Borough Council,806550,City Homecare Ltd,M44C,Adult Social Care Operations,Supplies and Services,"1,960.00",Nov-22
Slough Borough Council,806550,City Homecare Ltd,M44C,Adult Social Care Operations,Supplies and Services,857.50,Nov-22
Slough Borough Council,806550,City Homecare Ltd,M44C,Adult Social Care Operations,Supplies and Services,857.50,Nov-22
Slough Borough Council,806550,City Homecare Ltd,M44C,Adult Social Care Operations,Supplies and Services,892.50,Nov-22
Slough Borough Council,806550,City Homecare Ltd,M44C,Adult Social Care Operations,Supplies and Services,"1,715.00",Nov-22
Slough Borough Council,806550,City Homecare Ltd,M44C,Adult Social Care Operations,Supplies and Services,735.00,Nov-22
Slough Borough Council,806550,City Homecare Ltd,M44C,Adult Social Care Operations,Supplies and Services,"1,102.50",Nov-22
Slough Borough Council,806550,City Homecare Ltd,M44C,Adult Social Care Operations,Supplies and Services,612.50,Nov-22
Slough Borough Council,806550,City Homecare Ltd,M44C,Adult Social Care Operations,Supplies and Services,717.50,Nov-22
Slough Borough Council,806550,City Homecare Ltd,M44C,Adult Social Care Operations,Supplies and Services,"2,205.00",Nov-22
Slough Borough Council,806550,City Homecare Ltd,M44C,Adult Social Care Operations,Supplies and Services,857.50,Nov-22
Slough Borough Council,806550,City Homecare Ltd,M44C,Adult Social Care Operations,Supplies and Services,857.50,Nov-22
Slough Borough Council,806550,City Homecare Ltd,M44C,Adult Social Care Operations,Supplies and Services,892.50,Nov-22
Slough Borough Council,806550,City Homecare Ltd,M44C,Adult Social Care Operations,Supplies and Services,980.00,Nov-22
Slough Borough Council,806550,City Homecare Ltd,M44C,Adult Social Care Operations,Supplies and Services,"3,675.00",Nov-22
Slough Borough Council,806550,City Homecare Ltd,M44C,Adult Social Care Operations,Supplies and Services,"1,715.00",Nov-22
Slough Borough Council,806550,City Homecare Ltd,M44C,Adult Social Care Operations,Supplies and Services,735.00,Nov-22
Slough Borough Council,806550,City Homecare Ltd,M44C,Adult Social Care Operations,Supplies and Services,612.50,Nov-22
Slough Borough Council,806550,City Homecare Ltd,M44C,Adult Social Care Operations,Supplies and Services,717.50,Nov-22
Slough Borough Council,806550,City Homecare Ltd,M44C,Adult Social Care Operations,Supplies and Services,"1,960.00",Nov-22
Slough Borough Council,806550,City Homecare Ltd,M44C,Adult Social Care Operations,Supplies and Services,"1,102.50",Nov-22
Slough Borough Council,806550,City Homecare Ltd,M44C,Adult Social Care Operations,Supplies and Services,"2,205.00",Nov-22
Slough Borough Council,806550,City Homecare Ltd,M44C,Adult Social Care Operations,Supplies and Services,"1,225.00",Nov-22
Slough Borough Council,806550,City Homecare Ltd,M44C,Adult Social Care Operations,Supplies and Services,980.00,Nov-22
Slough Borough Council,806550,City Homecare Ltd,M44C,Adult Social Care Operations,Supplies and Services,"2,205.00",Nov-22
Slough Borough Council,806550,City Homecare Ltd,M44C,Adult Social Care Operations,Supplies and Services,857.50,Nov-22
Slough Borough Council,806550,City Homecare Ltd,M44C,Adult Social Care Operations,Supplies and Services,"1,102.50",Nov-22
Slough Borough Council,806550,City Homecare Ltd,M44C,Adult Social Care Operations,Supplies and Services,"1,225.00",Nov-22
Slough Borough Council,806550,City Homecare Ltd,M44C,Adult Social Care Operations,Supplies and Services,"1,715.00",Nov-22
Slough Borough Council,806550,City Homecare Ltd,M44C,Adult Social Care Operations,Supplies and Services,"2,345.00",Nov-22
Slough Borough Council,806550,City Homecare Ltd,M44C,Adult Social Care Operations,Supplies and Services,"1,960.00",Nov-22
Slough Borough Council,806550,City Homecare Ltd,M44C,Adult Social Care Operations,Supplies and Services,"1,470.00",Nov-22
Slough Borough Council,806550,City Homecare Ltd,M44C,Adult Social Care Operations,Supplies and Services,"1,960.00",Nov-22
Slough Borough Council,806550,City Homecare Ltd,M44C,Adult Social Care Operations,Supplies and Services,783.13,Nov-22
Slough Borough Council,806550,City Homecare Ltd,M44C,Adult Social Care Operations,Supplies and Services,"1,347.50",Nov-22
Slough Borough Council,806550,City Homecare Ltd,M44C,Adult Social Care Operations,Supplies and Services,"2,310.00",Nov-22
Slough Borough Council,806550,City Homecare Ltd,M44C,Adult Social Care Operations,Supplies and Services,962.50,Nov-22
Slough Borough Council,806550,City Homecare Ltd,M44C,Adult Social Care Operations,Supplies and Services,866.25,Nov-22
Slough Borough Council,806550,City Homecare Ltd,M44C,Adult Social Care Operations,Supplies and Services,511.88,Nov-22
Slough Borough Council,806550,City Homecare Ltd,M44D,Adult Social Care Operations,Supplies and Services,612.50,Nov-22
Slough Borough Council,806550,City Homecare Ltd,M44D,Adult Social Care Operations,Supplies and Services,980.00,Nov-22
Slough Borough Council,806550,City Homecare Ltd,M44D,Adult Social Care Operations,Supplies and Services,"2,030.00",Nov-22
Slough Borough Council,806550,City Homecare Ltd,M44D,Adult Social Care Operations,Supplies and Services,560.00,Nov-22
Slough Borough Council,806550,City Homecare Ltd,M44D,Adult Social Care Operations,Supplies and Services,"2,380.00",Nov-22
Slough Borough Council,806550,City Homecare Ltd,M44D,Adult Social Care Operations,Supplies and Services,980.00,Nov-22
Slough Borough Council,806550,City Homecare Ltd,M44D,Adult Social Care Operations,Supplies and Services,"2,940.00",Nov-22
Slough Borough Council,806550,City Homecare Ltd,M44D,Adult Social Care Operations,Supplies and Services,980.00,Nov-22
Slough Borough Council,806550,City Homecare Ltd,M44D,Adult Social Care Operations,Supplies and Services,980.00,Nov-22
Slough Borough Council,806550,City Homecare Ltd,M44D,Adult Social Care Operations,Supplies and Services,857.50,Nov-22
Slough Borough Council,806550,City Homecare Ltd,M44D,Adult Social Care Operations,Supplies and Services,"2,030.00",Nov-22
Slough Borough Council,806550,City Homecare Ltd,M44D,Adult Social Care Operations,Supplies and Services,"2,940.00",Nov-22
Slough Borough Council,806550,City Homecare Ltd,M44D,Adult Social Care Operations,Supplies and Services,560.00,Nov-22
Slough Borough Council,806550,City Homecare Ltd,M44D,Adult Social Care Operations,Supplies and Services,612.50,Nov-22
Slough Borough Council,806550,City Homecare Ltd,M44D,Adult Social Care Operations,Supplies and Services,612.50,Nov-22
Slough Borough Council,806550,City Homecare Ltd,M44D,Adult Social Care Operations,Supplies and Services,717.50,Nov-22
Slough Borough Council,806550,City Homecare Ltd,M44D,Adult Social Care Operations,Supplies and Services,743.75,Nov-22
Slough Borough Council,806550,City Homecare Ltd,M44F,Adult Social Care Operations,Supplies and Services,"1,540.00",Nov-22
Slough Borough Council,806550,City Homecare Ltd,M44F,Adult Social Care Operations,Supplies and Services,840.00,Nov-22
Slough Borough Council,806550,City Homecare Ltd,M44F,Adult Social Care Operations,Supplies and Services,875.00,Nov-22
Slough Borough Council,806550,City Homecare Ltd,M44F,Adult Social Care Operations,Supplies and Services,"1,540.00",Nov-22
Slough Borough Council,806550,City Homecare Ltd,M44F,Adult Social Care Operations,Supplies and Services,840.00,Nov-22
Slough Borough Council,806550,City Homecare Ltd,M44F,Adult Social Care Operations,Supplies and Services,875.00,Nov-22
Slough Borough Council,806550,City Homecare Ltd,M45C,Adult Social Care Operations,Supplies and Services,857.50,Nov-22
Slough Borough Council,806550,City Homecare Ltd,M45C,Adult Social Care Operations,Supplies and Services,612.50,Nov-22
Slough Borough Council,806550,City Homecare Ltd,M48C,Adult Social Care Operations,Supplies and Services,577.50,Nov-22
Slough Borough Council,1083,Civica Uk Limited,C104,Community,Supplies and Services,871.58,Nov-22
Slough Borough Council,1151,Claycots Primary School,E200,Children & Families,Supplies and Services,"771,636.10",Nov-22
Slough Borough Council,805044,CMS Supatrak Limited,D620,Place Operations,Supplies and Services,"1,378.73",Nov-22
Slough Borough Council,805044,CMS Supatrak Limited,D750,Place Operations,Supplies and Services,"2,681.94",Nov-22
Slough Borough Council,805044,CMS Supatrak Limited,D880,Place Operations,Supplies and Services,651.40,Nov-22
Slough Borough Council,3685,Coghlan Lodges Limited,M44D,Adult Social Care Operations,Supplies and Services,"2,116.04",Nov-22
Slough Borough Council,3685,Coghlan Lodges Limited,M44F,Adult Social Care Operations,Supplies and Services,"1,870.00",Nov-22
Slough Borough Council,459,Colliers Cre,J006,Place Management,Supplies and Services,"3,666.67",Nov-22
Slough Borough Council,459,Colliers Cre,J006,Place Management,Supplies and Services,"1,250.00",Nov-22
Slough Borough Council,286,Colnbrook C Of E Primary School,E620,Children & Families,Supplies and Services,"21,911.39",Nov-22
Slough Borough Council,2535,Comfort Care Services,M27F,Adult Social Care Operations,Supplies and Services,"1,336.45",Nov-22
Slough Borough Council,2535,Comfort Care Services,M42E,Adult Social Care Operations,Supplies and Services,750.00,Nov-22
Slough Borough Council,2535,Comfort Care Services,M42E,Adult Social Care Operations,Supplies and Services,"2,482.07",Nov-22
Slough Borough Council,2535,Comfort Care Services,M42E,Adult Social Care Operations,Supplies and Services,"1,128.21",Nov-22
Slough Borough Council,2535,Comfort Care Services,M42E,Adult Social Care Operations,Supplies and Services,"4,949.92",Nov-22
Slough Borough Council,2535,Comfort Care Services,M42E,Adult Social Care Operations,Supplies and Services,"1,128.21",Nov-22
Slough Borough Council,2535,Comfort Care Services,M42E,Adult Social Care Operations,Supplies and Services,"1,489.24",Nov-22
Slough Borough Council,2535,Comfort Care Services,M42E,Adult Social Care Operations,Supplies and Services,546.00,Nov-22
Slough Borough Council,2535,Comfort Care Services,M42E,Adult Social Care Operations,Supplies and Services,"2,250.00",Nov-22
Slough Borough Council,2535,Comfort Care Services,M42E,Adult Social Care Operations,Supplies and Services,"3,089.06",Nov-22
Slough Borough Council,2535,Comfort Care Services,M42E,Adult Social Care Operations,Supplies and Services,"2,550.00",Nov-22
Slough Borough Council,2535,Comfort Care Services,M42F,Adult Social Care Operations,Supplies and Services,812.14,Nov-22
Slough Borough Council,2535,Comfort Care Services,M42F,Adult Social Care Operations,Supplies and Services,"2,550.00",Nov-22
Slough Borough Council,2535,Comfort Care Services,M42F,Adult Social Care Operations,Supplies and Services,"2,550.00",Nov-22
Slough Borough Council,2535,Comfort Care Services,M42F,Adult Social Care Operations,Supplies and Services,812.14,Nov-22
Slough Borough Council,2535,Comfort Care Services,M42F,Adult Social Care Operations,Supplies and Services,974.57,Nov-22
Slough Borough Council,2535,Comfort Care Services,M42F,Adult Social Care Operations,Supplies and Services,"1,430.31",Nov-22
Slough Borough Council,2535,Comfort Care Services,M42F,Adult Social Care Operations,Supplies and Services,"2,550.00",Nov-22
Slough Borough Council,2535,Comfort Care Services,M42F,Adult Social Care Operations,Supplies and Services,"1,579.50",Nov-22
Slough Borough Council,2535,Comfort Care Services,M42F,Adult Social Care Operations,Supplies and Services,"3,768.21",Nov-22
Slough Borough Council,2535,Comfort Care Services,M42F,Adult Social Care Operations,Supplies and Services,"1,692.86",Nov-22
Slough Borough Council,2535,Comfort Care Services,M42F,Adult Social Care Operations,Supplies and Services,"2,550.00",Nov-22
Slough Borough Council,2535,Comfort Care Services,M42F,Adult Social Care Operations,Supplies and Services,"1,258.84",Nov-22
Slough Borough Council,2535,Comfort Care Services,M42F,Adult Social Care Operations,Supplies and Services,812.14,Nov-22
Slough Borough Council,2535,Comfort Care Services,M42F,Adult Social Care Operations,Supplies and Services,"2,550.00",Nov-22
Slough Borough Council,2535,Comfort Care Services,M42F,Adult Social Care Operations,Supplies and Services,"3,362.14",Nov-22
Slough Borough Council,2535,Comfort Care Services,M42F,Adult Social Care Operations,Supplies and Services,812.14,Nov-22
Slough Borough Council,2535,Comfort Care Services,M42F,Adult Social Care Operations,Supplies and Services,776.55,Nov-22
Slough Borough Council,2535,Comfort Care Services,M44C,Adult Social Care Operations,Supplies and Services,"2,274.00",Nov-22
Slough Borough Council,2535,Comfort Care Services,M44E,Adult Social Care Operations,Supplies and Services,"2,072.57",Nov-22
Slough Borough Council,2535,Comfort Care Services,M44E,Adult Social Care Operations,Supplies and Services,"4,317.64",Nov-22
Slough Borough Council,2535,Comfort Care Services,M44F,Adult Social Care Operations,Supplies and Services,"2,843.10",Nov-22
Slough Borough Council,2535,Comfort Care Services,M44F,Adult Social Care Operations,Supplies and Services,899.14,Nov-22
Slough Borough Council,2535,Comfort Care Services,M44F,Adult Social Care Operations,Supplies and Services,"2,262.43",Nov-22
Slough Borough Council,2535,Comfort Care Services,M44F,Adult Social Care Operations,Supplies and Services,"1,128.21",Nov-22
Slough Borough Council,2535,Comfort Care Services,M44F,Adult Social Care Operations,Supplies and Services,"1,275.00",Nov-22
Slough Borough Council,2535,Comfort Care Services,M44F,Adult Social Care Operations,Supplies and Services,"3,249.17",Nov-22
Slough Borough Council,2535,Comfort Care Services,M44F,Adult Social Care Operations,Supplies and Services,"1,275.00",Nov-22
Slough Borough Council,2535,Comfort Care Services,M44F,Adult Social Care Operations,Supplies and Services,"3,362.14",Nov-22
Slough Borough Council,2535,Comfort Care Services,M44F,Adult Social Care Operations,Supplies and Services,"1,827.34",Nov-22
Slough Borough Council,2535,Comfort Care Services,M44F,Adult Social Care Operations,Supplies and Services,"2,550.00",Nov-22
Slough Borough Council,2535,Comfort Care Services,M44F,Adult Social Care Operations,Supplies and Services,"1,275.00",Nov-22
Slough Borough Council,2535,Comfort Care Services,M44F,Adult Social Care Operations,Supplies and Services,"2,843.10",Nov-22
Slough Borough Council,2535,Comfort Care Services,M81D,Adult Social Care Operations,Supplies and Services,"2,550.00",Nov-22
Slough Borough Council,2585,Comitted Care Services Limited,M26E,Adult Social Care Operations,Supplies and Services,"6,360.26",Nov-22
Slough Borough Council,2585,Comitted Care Services Limited,M26E,Adult Social Care Operations,Supplies and Services,"1,488.00",Nov-22
Slough Borough Council,2585,Comitted Care Services Limited,M26E,Adult Social Care Operations,Supplies and Services,"1,615.01",Nov-22
Slough Borough Council,2585,Comitted Care Services Limited,M26E,Adult Social Care Operations,Supplies and Services,"1,562.91",Nov-22
Slough Borough Council,2585,Comitted Care Services Limited,M26E,Adult Social Care Operations,Supplies and Services,"1,615.01",Nov-22
Slough Borough Council,2585,Comitted Care Services Limited,M26E,Adult Social Care Operations,Supplies and Services,"6,360.66",Nov-22
Slough Borough Council,2585,Comitted Care Services Limited,M26E,Adult Social Care Operations,Supplies and Services,"6,105.26",Nov-22
Slough Borough Council,2585,Comitted Care Services Limited,M26E,Adult Social Care Operations,Supplies and Services,"6,572.27",Nov-22
Slough Borough Council,2585,Comitted Care Services Limited,M26E,Adult Social Care Operations,Supplies and Services,"1,615.01",Nov-22
Slough Borough Council,2585,Comitted Care Services Limited,M26E,Adult Social Care Operations,Supplies and Services,"1,562.91",Nov-22
Slough Borough Council,2585,Comitted Care Services Limited,M26E,Adult Social Care Operations,Supplies and Services,"1,488.00",Nov-22
Slough Borough Council,2585,Comitted Care Services Limited,M26E,Adult Social Care Operations,Supplies and Services,"6,308.77",Nov-22
Slough Borough Council,2585,Comitted Care Services Limited,M26E,Adult Social Care Operations,Supplies and Services,"1,440.00",Nov-22
Slough Borough Council,2585,Comitted Care Services Limited,M26E,Adult Social Care Operations,Supplies and Services,"1,488.00",Nov-22
Slough Borough Council,2585,Comitted Care Services Limited,M26E,Adult Social Care Operations,Supplies and Services,"1,440.00",Nov-22
Slough Borough Council,2585,Comitted Care Services Limited,M26E,Adult Social Care Operations,Supplies and Services,"6,572.69",Nov-22
Slough Borough Council,2585,Comitted Care Services Limited,M26E,Adult Social Care Operations,Supplies and Services,"6,308.77",Nov-22
Slough Borough Council,2585,Comitted Care Services Limited,M42E,Adult Social Care Operations,Supplies and Services,"2,380.80",Nov-22
Slough Borough Council,2585,Comitted Care Services Limited,M42E,Adult Social Care Operations,Supplies and Services,"2,198.21",Nov-22
Slough Borough Council,2585,Comitted Care Services Limited,M42E,Adult Social Care Operations,Supplies and Services,"2,127.30",Nov-22
Slough Borough Council,2585,Comitted Care Services Limited,M42E,Adult Social Care Operations,Supplies and Services,"2,198.21",Nov-22
Slough Borough Council,2585,Comitted Care Services Limited,M42E,Adult Social Care Operations,Supplies and Services,"2,198.21",Nov-22
Slough Borough Council,2585,Comitted Care Services Limited,M42E,Adult Social Care Operations,Supplies and Services,"2,127.30",Nov-22
Slough Borough Council,2585,Comitted Care Services Limited,M42E,Adult Social Care Operations,Supplies and Services,"2,387.53",Nov-22
Slough Borough Council,2585,Comitted Care Services Limited,M42E,Adult Social Care Operations,Supplies and Services,"2,304.00",Nov-22
Slough Borough Council,2585,Comitted Care Services Limited,M42E,Adult Social Care Operations,Supplies and Services,"2,380.80",Nov-22
Slough Borough Council,2585,Comitted Care Services Limited,M42E,Adult Social Care Operations,Supplies and Services,"2,304.00",Nov-22
Slough Borough Council,2585,Comitted Care Services Limited,M26E,Adult Social Care Operations,External Receipts,-521.95,Nov-22
Slough Borough Council,2585,Comitted Care Services Limited,M26E,Adult Social Care Operations,External Receipts,-505.11,Nov-22
Slough Borough Council,3840,Community Housing And Therapy,M80F,Adult Social Care Operations,Supplies and Services,"2,615.51",Nov-22
Slough Borough Council,805183,Compass Minerals UK Ltd,D880,Place Operations,Supplies and Services,"2,908.04",Nov-22
Slough Borough Council,807005,Complete Background Screening Ltd,B348,People,Supplies and Services,"1,060.00",Nov-22
Slough Borough Council,1772,Computershare Voucher Services,B348,People,Supplies and Services,"2,261.00",Nov-22
Slough Borough Council,807468,"Connect Managed Services (UK) Ltd, trading as Conn3ct",A106,Customer,Supplies and Services,"47,577.60",Nov-22
Slough Borough Council,807468,"Connect Managed Services (UK) Ltd, trading as Conn3ct",A106,Customer,Supplies and Services,"2,039.25",Nov-22
Slough Borough Council,805278,Countrystyle Recycling Ltd,D342,Place Operations,Supplies and Services,"4,980.00",Nov-22
Slough Borough Council,805278,Countrystyle Recycling Ltd,D342,Place Operations,Supplies and Services,"4,277.30",Nov-22
Slough Borough Council,805278,Countrystyle Recycling Ltd,D342,Place Operations,Supplies and Services,"2,525.00",Nov-22
Slough Borough Council,805278,Countrystyle Recycling Ltd,D342,Place Operations,Supplies and Services,"2,525.00",Nov-22
Slough Borough Council,3670,Craegmoor Birches Grove Priory,M27F,Adult Social Care Operations,Supplies and Services,"1,984.04",Nov-22
Slough Borough Council,3670,Craegmoor Birches Grove Priory,M27F,Adult Social Care Operations,Supplies and Services,"3,823.00",Nov-22
Slough Borough Council,1638,Creative Support Ltd,A02L,Adult Social Care Operations,Supplies and Services,"1,431.90",Nov-22
Slough Borough Council,1638,Creative Support Ltd,A02L,Adult Social Care Operations,Supplies and Services,"1,565.10",Nov-22
Slough Borough Council,1638,Creative Support Ltd,A02L,Adult Social Care Operations,Supplies and Services,"1,165.50",Nov-22
Slough Borough Council,1638,Creative Support Ltd,A02L,Adult Social Care Operations,Supplies and Services,"1,065.60",Nov-22
Slough Borough Council,1638,Creative Support Ltd,A02L,Adult Social Care Operations,Supplies and Services,"1,365.30",Nov-22
Slough Borough Council,1638,Creative Support Ltd,M42E,Adult Social Care Operations,Supplies and Services,"2,214.45",Nov-22
Slough Borough Council,1638,Creative Support Ltd,M42E,Adult Social Care Operations,Supplies and Services,"3,013.65",Nov-22
Slough Borough Council,1638,Creative Support Ltd,M42E,Adult Social Care Operations,Supplies and Services,"1,198.80",Nov-22
Slough Borough Council,1638,Creative Support Ltd,M42E,Adult Social Care Operations,Supplies and Services,"6,993.00",Nov-22
Slough Borough Council,1638,Creative Support Ltd,M42E,Adult Social Care Operations,Supplies and Services,"2,021.04",Nov-22
Slough Borough Council,1638,Creative Support Ltd,M44E,Adult Social Care Operations,Supplies and Services,932.40,Nov-22
Slough Borough Council,1638,Creative Support Ltd,M44E,Adult Social Care Operations,Supplies and Services,"1,465.20",Nov-22
Slough Borough Council,1638,Creative Support Ltd,M44E,Adult Social Care Operations,Supplies and Services,699.30,Nov-22
Slough Borough Council,1638,Creative Support Ltd,M44E,Adult Social Care Operations,Supplies and Services,999.00,Nov-22
Slough Borough Council,806983,Critiqom,H015,Finance & Commercial,Supplies and Services,751.29,Nov-22
Slough Borough Council,806983,Critiqom,B377,Finance & Commercial,Supplies and Services,693.81,Nov-22
Slough Borough Council,806983,Critiqom,B377,Finance & Commercial,Supplies and Services,592.77,Nov-22
Slough Borough Council,806983,Critiqom,B377,Finance & Commercial,Supplies and Services,"1,658.69",Nov-22
Slough Borough Council,806983,Critiqom,B377,Finance & Commercial,Supplies and Services,629.89,Nov-22
Slough Borough Council,806983,Critiqom,H015,Finance & Commercial,Supplies and Services,"1,138.10",Nov-22
Slough Borough Council,806983,Critiqom,H015,Finance & Commercial,Supplies and Services,"1,769.35",Nov-22
Slough Borough Council,806983,Critiqom,H015,Finance & Commercial,Supplies and Services,"1,174.19",Nov-22
Slough Borough Council,806983,Critiqom,H015,Finance & Commercial,Supplies and Services,"1,862.41",Nov-22
Slough Borough Council,806983,Critiqom,H015,Finance & Commercial,Supplies and Services,"1,723.84",Nov-22
Slough Borough Council,808383,Croft Brothers UK Limited,M50A,Place Operations,Supplies and Services,"1,014.06",Nov-22
Slough Borough Council,808383,Croft Brothers UK Limited,M50A,Place Operations,Transport,868.81,Nov-22
Slough Borough Council,806063,Cruise Minibuses Ltd,F123,Education & Inclusion,Supplies and Services,"5,432.00",Nov-22
Slough Borough Council,804319,Culturemix Arts Ltd,F253,Children & Families,Agency Staff,650.00,Nov-22
Slough Borough Council,807288,David Allwood,C322,Community,Supplies and Services,"1,601.00",Nov-22
Slough Borough Council,807288,David Allwood,C322,Community,Supplies and Services,"2,193.75",Nov-22
Slough Borough Council,807440,David Peplow,A04A,Adult Social Care Operations,Supplies and Services,"1,320.00",Nov-22
Slough Borough Council,808612,Delta 4 Services Ltd,B377,Finance & Commercial,Supplies and Services,"5,000.00",Nov-22
Slough Borough Council,808612,Delta 4 Services Ltd,B377,Finance & Commercial,Supplies and Services,"5,000.00",Nov-22
Slough Borough Council,808612,Delta 4 Services Ltd,B377,Finance & Commercial,Supplies and Services,"5,000.00",Nov-22
Slough Borough Council,808612,Delta 4 Services Ltd,B377,Finance & Commercial,Supplies and Services,"10,000.00",Nov-22
Slough Borough Council,804903,Dennis Eagle Limited,D610,Place Operations,Supplies and Services,"18,810.54",Nov-22
Slough Borough Council,804903,Dennis Eagle Limited,D630,Place Operations,Supplies and Services,"1,773.30",Nov-22
Slough Borough Council,804903,Dennis Eagle Limited,D610,Place Operations,Supplies and Services,"1,080.08",Nov-22
Slough Borough Council,804903,Dennis Eagle Limited,D610,Place Operations,Supplies and Services,557.32,Nov-22
Slough Borough Council,3554,Dimensions (Uk) Ltd,M42E,Adult Social Care Operations,Supplies and Services,"7,291.82",Nov-22
Slough Borough Council,3554,Dimensions (Uk) Ltd,M42E,Adult Social Care Operations,Supplies and Services,"5,849.00",Nov-22
Slough Borough Council,3554,Dimensions (Uk) Ltd,M42E,Adult Social Care Operations,Supplies and Services,"6,115.64",Nov-22
Slough Borough Council,3554,Dimensions (Uk) Ltd,M42E,Adult Social Care Operations,Supplies and Services,"7,783.97",Nov-22
Slough Borough Council,3554,Dimensions (Uk) Ltd,M42E,Adult Social Care Operations,Supplies and Services,"7,839.64",Nov-22
Slough Borough Council,3554,Dimensions (Uk) Ltd,M42E,Adult Social Care Operations,Supplies and Services,"7,479.24",Nov-22
Slough Borough Council,3554,Dimensions (Uk) Ltd,M42E,Adult Social Care Operations,Supplies and Services,"6,482.81",Nov-22
Slough Borough Council,3554,Dimensions (Uk) Ltd,M42E,Adult Social Care Operations,Supplies and Services,"6,151.69",Nov-22
Slough Borough Council,3554,Dimensions (Uk) Ltd,M42E,Adult Social Care Operations,Supplies and Services,"7,489.87",Nov-22
Slough Borough Council,805483,Direct Tyre Managenent Ltd,D610,Place Operations,Transport,"3,944.37",Nov-22
Slough Borough Council,805483,Direct Tyre Managenent Ltd,D620,Place Operations,Transport,"1,093.08",Nov-22
Slough Borough Council,803306,Ditton Park Academy,E620,Children & Families,Supplies and Services,"27,791.67",Nov-22
Slough Borough Council,1457,Dr Norman Gordon,D320,Place Operations,Premises,"1,921.75",Nov-22
Slough Borough Council,803177,Early Steps Preschool,F909,Children & Families,Supplies and Services,"6,270.20",Nov-22
Slough Borough Council,803177,Early Steps Preschool,F909,Children & Families,Supplies and Services,"6,270.20",Nov-22
Slough Borough Council,804924,Econ Engineering Limited,D880,Place Operations,Transport,"9,871.70",Nov-22
Slough Borough Council,803301,Eden Girls School,E610,Children & Families,Supplies and Services,"4,500.00",Nov-22
Slough Borough Council,1299,Edf Energy,D413,Place Strategy & Infrastructure,Supplies and Services,"76,718.28",Nov-22
Slough Borough Council,1299,Edf Energy,D413,Place Strategy & Infrastructure,Supplies and Services,"-69,028.18",Nov-22
Slough Borough Council,1299,Edf Energy,D413,Place Strategy & Infrastructure,Supplies and Services,"66,457.79",Nov-22
Slough Borough Council,1299,Edf Energy,D413,Place Strategy & Infrastructure,Supplies and Services,975.03,Nov-22
Slough Borough Council,2159,Edge Training And Consultancy Ltd,A01A,People Adults,Supplies and Services,875.00,Nov-22
Slough Borough Council,806044,Egress Software Technologies Ltd,F200,Education & Inclusion,Supplies and Services,"9,391.20",Nov-22
Slough Borough Council,807001,Elegant Care Services Ltd,M42E,Adult Social Care Operations,Supplies and Services,"6,017.14",Nov-22
Slough Borough Council,807001,Elegant Care Services Ltd,M42E,Adult Social Care Operations,Supplies and Services,"5,794.28",Nov-22
Slough Borough Council,807001,Elegant Care Services Ltd,M42E,Adult Social Care Operations,Supplies and Services,"9,857.14",Nov-22
Slough Borough Council,807001,Elegant Care Services Ltd,M44C,Adult Social Care Operations,Supplies and Services,"6,797.14",Nov-22
Slough Borough Council,806355,Elysium Healthcare,M26E,Adult Social Care Operations,Supplies and Services,"11,044.68",Nov-22
Slough Borough Council,806355,Elysium Healthcare,M26E,Adult Social Care Operations,Supplies and Services,"9,576.52",Nov-22
Slough Borough Council,808611,Emma Holmes,F253,Children & Families,Agency Staff,508.39,Nov-22
Slough Borough Council,3752,Endurance Health,A07R,Adult Social Care Operations,Supplies and Services,963.90,Nov-22
Slough Borough Council,3752,Endurance Health,A07R,Adult Social Care Operations,Supplies and Services,"2,242.58",Nov-22
Slough Borough Council,3752,Endurance Health,A07R,Adult Social Care Operations,Supplies and Services,691.40,Nov-22
Slough Borough Council,3752,Endurance Health,M44C,Adult Social Care Operations,Supplies and Services,"2,249.10",Nov-22
Slough Borough Council,3752,Endurance Health,M44C,Adult Social Care Operations,Supplies and Services,571.20,Nov-22
Slough Borough Council,3752,Endurance Health,M44C,Adult Social Care Operations,Supplies and Services,784.52,Nov-22
Slough Borough Council,3752,Endurance Health,M44C,Adult Social Care Operations,Supplies and Services,622.68,Nov-22
Slough Borough Council,3752,Endurance Health,M44C,Adult Social Care Operations,Supplies and Services,749.70,Nov-22
Slough Borough Council,3752,Endurance Health,M44C,Adult Social Care Operations,Supplies and Services,892.50,Nov-22
Slough Borough Council,3752,Endurance Health,M44C,Adult Social Care Operations,Supplies and Services,946.05,Nov-22
Slough Borough Council,3752,Endurance Health,M44C,Adult Social Care Operations,Supplies and Services,"1,249.50",Nov-22
Slough Borough Council,3752,Endurance Health,M44C,Adult Social Care Operations,Supplies and Services,874.65,Nov-22
Slough Borough Council,3752,Endurance Health,M44C,Adult Social Care Operations,Supplies and Services,"1,124.55",Nov-22
Slough Borough Council,3752,Endurance Health,M44C,Adult Social Care Operations,Supplies and Services,910.35,Nov-22
Slough Borough Council,3752,Endurance Health,M44C,Adult Social Care Operations,Supplies and Services,696.15,Nov-22
Slough Borough Council,3752,Endurance Health,M44C,Adult Social Care Operations,Supplies and Services,"1,249.50",Nov-22
Slough Borough Council,3752,Endurance Health,M44C,Adult Social Care Operations,Supplies and Services,910.37,Nov-22
Slough Borough Council,3752,Endurance Health,M44C,Adult Social Care Operations,Supplies and Services,"1,131.41",Nov-22
Slough Borough Council,3752,Endurance Health,M44C,Adult Social Care Operations,Supplies and Services,"1,124.55",Nov-22
Slough Borough Council,3752,Endurance Health,M44C,Adult Social Care Operations,Supplies and Services,"2,249.10",Nov-22
Slough Borough Council,3752,Endurance Health,M44C,Adult Social Care Operations,Supplies and Services,"1,299.00",Nov-22
Slough Borough Council,3752,Endurance Health,M44C,Adult Social Care Operations,Supplies and Services,"1,124.55",Nov-22
Slough Borough Council,3752,Endurance Health,M44C,Adult Social Care Operations,Supplies and Services,606.90,Nov-22
Slough Borough Council,3752,Endurance Health,M44C,Adult Social Care Operations,Supplies and Services,"1,999.20",Nov-22
Slough Borough Council,3752,Endurance Health,M44C,Adult Social Care Operations,Supplies and Services,634.88,Nov-22
Slough Borough Council,3752,Endurance Health,M44C,Adult Social Care Operations,Supplies and Services,"1,499.40",Nov-22
Slough Borough Council,3752,Endurance Health,M44C,Adult Social Care Operations,Supplies and Services,923.45,Nov-22
Slough Borough Council,3752,Endurance Health,M44C,Adult Social Care Operations,Supplies and Services,"1,124.55",Nov-22
Slough Borough Council,3752,Endurance Health,M44C,Adult Social Care Operations,Supplies and Services,706.28,Nov-22
Slough Borough Council,3752,Endurance Health,M44D,Adult Social Care Operations,Supplies and Services,977.31,Nov-22
Slough Borough Council,3752,Endurance Health,M44D,Adult Social Care Operations,Supplies and Services,"1,178.10",Nov-22
Slough Borough Council,3752,Endurance Health,M44D,Adult Social Care Operations,Supplies and Services,"1,688.63",Nov-22
Slough Borough Council,3752,Endurance Health,M44D,Adult Social Care Operations,Supplies and Services,696.15,Nov-22
Slough Borough Council,3752,Endurance Health,M44D,Adult Social Care Operations,Supplies and Services,867.53,Nov-22
Slough Borough Council,3752,Endurance Health,M44F,Adult Social Care Operations,Supplies and Services,564.96,Nov-22
Slough Borough Council,3752,Endurance Health,M45C,Adult Social Care Operations,Supplies and Services,"1,075.48",Nov-22
Slough Borough Council,3752,Endurance Health,M45C,Adult Social Care Operations,Supplies and Services,"1,749.63",Nov-22
Slough Borough Council,3752,Endurance Health,M45C,Adult Social Care Operations,Supplies and Services,"1,742.79",Nov-22
Slough Borough Council,3752,Endurance Health,M48C,Adult Social Care Operations,Supplies and Services,"2,982.14",Nov-22
Slough Borough Council,3752,Endurance Health,M48C,Adult Social Care Operations,Supplies and Services,874.65,Nov-22
Slough Borough Council,808450,Enhance EHC Limited,F500,Education & Inclusion,Supplies and Services,"2,864.00",Nov-22
Slough Borough Council,805423,Enriched Care,M44F,Adult Social Care Operations,Supplies and Services,"2,529.00",Nov-22
Slough Borough Council,805423,Enriched Care,M44F,Adult Social Care Operations,Supplies and Services,"2,787.00",Nov-22
Slough Borough Council,805423,Enriched Care,M44F,Adult Social Care Operations,Supplies and Services,"4,275.00",Nov-22
Slough Borough Council,805423,Enriched Care,M80F,Adult Social Care Operations,Supplies and Services,"1,701.30",Nov-22
Slough Borough Council,2677,Eton House Residential Home,M25C,Adult Social Care Operations,Supplies and Services,"3,534.00",Nov-22
Slough Borough Council,2677,Eton House Residential Home,M25C,Adult Social Care Operations,Supplies and Services,"3,534.00",Nov-22
Slough Borough Council,2677,Eton House Residential Home,M25C,Adult Social Care Operations,Supplies and Services,"3,534.00",Nov-22
Slough Borough Council,2677,Eton House Residential Home,M25D,Adult Social Care Operations,Supplies and Services,"3,199.64",Nov-22
Slough Borough Council,2677,Eton House Residential Home,M27C,Adult Social Care Operations,Supplies and Services,"3,520.71",Nov-22
Slough Borough Council,2677,Eton House Residential Home,M27C,Adult Social Care Operations,Supplies and Services,"3,407.14",Nov-22
Slough Borough Council,2677,Eton House Residential Home,M27C,Adult Social Care Operations,Supplies and Services,"3,520.71",Nov-22
Slough Borough Council,2677,Eton House Residential Home,M27C,Adult Social Care Operations,Supplies and Services,"2,657.14",Nov-22
Slough Borough Council,808344,Euro Housing UK LTD,H205,Housing (People) Services,Supplies and Services,"12,090.00",Nov-22
Slough Borough Council,806501,Excellent Healthcare Services Ltd,A07R,Adult Social Care Operations,Supplies and Services,595.70,Nov-22
Slough Borough Council,806501,Excellent Healthcare Services Ltd,A07R,Adult Social Care Operations,Supplies and Services,582.94,Nov-22
Slough Borough Council,806501,Excellent Healthcare Services Ltd,M44C,Adult Social Care Operations,Supplies and Services,"1,072.26",Nov-22
Slough Borough Council,806501,Excellent Healthcare Services Ltd,M44C,Adult Social Care Operations,Supplies and Services,"1,250.97",Nov-22
Slough Borough Council,806501,Excellent Healthcare Services Ltd,M44C,Adult Social Care Operations,Supplies and Services,"1,072.26",Nov-22
Slough Borough Council,806501,Excellent Healthcare Services Ltd,M44C,Adult Social Care Operations,Supplies and Services,833.98,Nov-22
Slough Borough Council,806501,Excellent Healthcare Services Ltd,M44C,Adult Social Care Operations,Supplies and Services,595.70,Nov-22
Slough Borough Council,806501,Excellent Healthcare Services Ltd,M44C,Adult Social Care Operations,Supplies and Services,595.70,Nov-22
Slough Borough Council,806501,Excellent Healthcare Services Ltd,M44C,Adult Social Care Operations,Supplies and Services,"2,297.70",Nov-22
Slough Borough Council,806501,Excellent Healthcare Services Ltd,M44C,Adult Social Care Operations,Supplies and Services,714.84,Nov-22
Slough Borough Council,806501,Excellent Healthcare Services Ltd,M44C,Adult Social Care Operations,Supplies and Services,"2,144.52",Nov-22
Slough Borough Council,806501,Excellent Healthcare Services Ltd,M44C,Adult Social Care Operations,Supplies and Services,510.60,Nov-22
Slough Borough Council,806501,Excellent Healthcare Services Ltd,M44D,Adult Social Care Operations,Supplies and Services,595.70,Nov-22
Slough Borough Council,806501,Excellent Healthcare Services Ltd,M44F,Adult Social Care Operations,Supplies and Services,"2,395.57",Nov-22
Slough Borough Council,806501,Excellent Healthcare Services Ltd,M44F,Adult Social Care Operations,Supplies and Services,714.84,Nov-22
Slough Borough Council,806501,Excellent Healthcare Services Ltd,M44F,Adult Social Care Operations,Supplies and Services,953.12,Nov-22
Slough Borough Council,806501,Excellent Healthcare Services Ltd,M45C,Adult Social Care Operations,Supplies and Services,"1,429.68",Nov-22
Slough Borough Council,1992,Facultatieve Technologies Ltd,D320,Place Operations,Premises,"21,020.56",Nov-22
Slough Borough Council,805225,Falcon Surfacing Ltd,D880,Place Operations,Supplies and Services,"119,403.23",Nov-22
Slough Borough Council,805225,Falcon Surfacing Ltd,D880,Place Operations,Supplies and Services,"11,499.58",Nov-22
Slough Borough Council,805225,Falcon Surfacing Ltd,D880,Place Operations,Supplies and Services,"3,775.36",Nov-22
Slough Borough Council,641,Falon Nameplates Limited,D320,Place Operations,Supplies and Services,786.26,Nov-22
Slough Borough Council,4031,Family Support Practise Limited,A03D,Adult Social Care Operations,Supplies and Services,"2,189.25",Nov-22
Slough Borough Council,4031,Family Support Practise Limited,B277,Digital and Strategic IT,Supplies and Services,"1,800.00",Nov-22
Slough Borough Council,4031,Family Support Practise Limited,B277,Digital and Strategic IT,Supplies and Services,"1,800.00",Nov-22
Slough Borough Council,4031,Family Support Practise Limited,B277,Digital and Strategic IT,Supplies and Services,"1,800.00",Nov-22
Slough Borough Council,475,Farnham Road Surgery,A04C,Adult Social Care Operations,Supplies and Services,"14,813.66",Nov-22
Slough Borough Council,808531,Fire Protection Association,J020,Place Management,Indirect Employee Expenses,"1,785.00",Nov-22
Slough Borough Council,808531,Fire Protection Association,J020,Place Management,Indirect Employee Expenses,"1,785.00",Nov-22
Slough Borough Council,808531,Fire Protection Association,J020,Place Management,Indirect Employee Expenses,"1,785.00",Nov-22
Slough Borough Council,808531,Fire Protection Association,J020,Place Management,Indirect Employee Expenses,"1,910.00",Nov-22
Slough Borough Council,1413,First Greater Western Ltd,F123,Education & Inclusion,Supplies and Services,873.00,Nov-22
Slough Borough Council,754,First Steps Day Nursery,F909,Children & Families,Supplies and Services,"10,168.53",Nov-22
Slough Borough Council,754,First Steps Day Nursery,F909,Children & Families,Supplies and Services,"10,168.53",Nov-22
Slough Borough Council,1626,Five Star Radio Cars Limited,F123,Education & Inclusion,Supplies and Services,"1,680.00",Nov-22
Slough Borough Council,1626,Five Star Radio Cars Limited,F123,Education & Inclusion,Supplies and Services,600.00,Nov-22
Slough Borough Council,2519,Fleet Tutors,F449,Education & Inclusion,Supplies and Services,"2,730.00",Nov-22
Slough Borough Council,1204,Forget Me Not,M25C,Adult Social Care Operations,Supplies and Services,"3,800.00",Nov-22
Slough Borough Council,1204,Forget Me Not,M25C,Adult Social Care Operations,Supplies and Services,"3,498.00",Nov-22
Slough Borough Council,1204,Forget Me Not,M25C,Adult Social Care Operations,Supplies and Services,"3,800.00",Nov-22
Slough Borough Council,1204,Forget Me Not,M25C,Adult Social Care Operations,Supplies and Services,"3,498.00",Nov-22
Slough Borough Council,1204,Forget Me Not,M25D,Adult Social Care Operations,Supplies and Services,"3,600.00",Nov-22
Slough Borough Council,1204,Forget Me Not,M25D,Adult Social Care Operations,Supplies and Services,"3,600.00",Nov-22
Slough Borough Council,1204,Forget Me Not,M25D,Adult Social Care Operations,Supplies and Services,"3,600.00",Nov-22
Slough Borough Council,1204,Forget Me Not,M27C,Adult Social Care Operations,Supplies and Services,"3,570.00",Nov-22
Slough Borough Council,1204,Forget Me Not,M27C,Adult Social Care Operations,Supplies and Services,"3,199.76",Nov-22
Slough Borough Council,1204,Forget Me Not,M27C,Adult Social Care Operations,Supplies and Services,"3,570.00",Nov-22
Slough Borough Council,1204,Forget Me Not,M27C,Adult Social Care Operations,Supplies and Services,"3,199.76",Nov-22
Slough Borough Council,806249,Formact Ltd,P006,Capital,Capital Charges,"9,314.67",Nov-22
Slough Borough Council,647,Foxborough Primary School,E620,Children & Families,Supplies and Services,"7,971.67",Nov-22
Slough Borough Council,806480,Frontier NX Limited,A04C,Adult Social Care Operations,Supplies and Services,"2,515.60",Nov-22
Slough Borough Council,806480,Frontier NX Limited,A04C,Adult Social Care Operations,Supplies and Services,586.38,Nov-22
Slough Borough Council,806480,Frontier NX Limited,A04C,Adult Social Care Operations,Supplies and Services,720.07,Nov-22
Slough Borough Council,3120,Frontier Software Plc,B409,People,Supplies and Services,"5,180.00",Nov-22
Slough Borough Council,807125,Futures For Shared Lives,M36E,Adult Social Care Operations,Supplies and Services,"3,325.50",Nov-22
Slough Borough Council,807125,Futures For Shared Lives,M36E,Adult Social Care Operations,Supplies and Services,"3,436.35",Nov-22
Slough Borough Council,1555,Gallagher Bassett,B018,Finance & Commercial,Supplies and Services,"18,960.90",Nov-22
Slough Borough Council,804911,GAP Group Limited,D880,Place Operations,Supplies and Services,924.00,Nov-22
Slough Borough Council,804911,GAP Group Limited,D880,Place Operations,Supplies and Services,682.92,Nov-22
Slough Borough Council,1758,Gas Advisory Services Limited,J606,Place Management,Supplies and Services,840.00,Nov-22
Slough Borough Council,1758,Gas Advisory Services Limited,J606,Place Management,Supplies and Services,"3,111.00",Nov-22
Slough Borough Council,1758,Gas Advisory Services Limited,J606,Place Management,Supplies and Services,"2,320.50",Nov-22
Slough Borough Council,806204,GLOBAL MEDIATION LIMITED,F500,Education & Inclusion,Supplies and Services,800.00,Nov-22
Slough Borough Council,2830,GR Response Healthcare Ltd,A07R,Adult Social Care Operations,Supplies and Services,"2,250.08",Nov-22
Slough Borough Council,2830,GR Response Healthcare Ltd,A07R,Adult Social Care Operations,Supplies and Services,539.92,Nov-22
Slough Borough Council,2830,GR Response Healthcare Ltd,M44C,Adult Social Care Operations,Supplies and Services,"2,546.00",Nov-22
Slough Borough Council,2830,GR Response Healthcare Ltd,M44C,Adult Social Care Operations,Supplies and Services,"2,394.00",Nov-22
Slough Borough Council,2830,GR Response Healthcare Ltd,M44C,Adult Social Care Operations,Supplies and Services,"1,330.00",Nov-22
Slough Borough Council,2830,GR Response Healthcare Ltd,M44C,Adult Social Care Operations,Supplies and Services,"1,643.50",Nov-22
Slough Borough Council,2830,GR Response Healthcare Ltd,M44C,Adult Social Care Operations,Supplies and Services,"1,500.24",Nov-22
Slough Borough Council,2830,GR Response Healthcare Ltd,M44C,Adult Social Care Operations,Supplies and Services,"2,250.08",Nov-22
Slough Borough Council,2830,GR Response Healthcare Ltd,M44C,Adult Social Care Operations,Supplies and Services,"2,000.32",Nov-22
Slough Borough Council,2830,GR Response Healthcare Ltd,M44C,Adult Social Care Operations,Supplies and Services,"2,749.60",Nov-22
Slough Borough Council,2830,GR Response Healthcare Ltd,M44C,Adult Social Care Operations,Supplies and Services,"2,394.00",Nov-22
Slough Borough Council,2830,GR Response Healthcare Ltd,M44C,Adult Social Care Operations,Supplies and Services,"2,394.00",Nov-22
Slough Borough Council,2830,GR Response Healthcare Ltd,M44D,Adult Social Care Operations,Supplies and Services,"2,432.00",Nov-22
Slough Borough Council,2830,GR Response Healthcare Ltd,M44D,Adult Social Care Operations,Supplies and Services,"1,596.00",Nov-22
Slough Borough Council,2830,GR Response Healthcare Ltd,M44D,Adult Social Care Operations,Supplies and Services,"2,250.08",Nov-22
Slough Borough Council,2830,GR Response Healthcare Ltd,M44D,Adult Social Care Operations,Supplies and Services,"2,089.34",Nov-22
Slough Borough Council,2830,GR Response Healthcare Ltd,M44D,Adult Social Care Operations,Supplies and Services,931.00,Nov-22
Slough Borough Council,2830,GR Response Healthcare Ltd,M44E,Adult Social Care Operations,Supplies and Services,532.00,Nov-22
Slough Borough Council,2830,GR Response Healthcare Ltd,M44F,Adult Social Care Operations,Supplies and Services,570.92,Nov-22
Slough Borough Council,2830,GR Response Healthcare Ltd,M44F,Adult Social Care Operations,Supplies and Services,"2,128.00",Nov-22
Slough Borough Council,2830,GR Response Healthcare Ltd,M45C,Adult Social Care Operations,Supplies and Services,"2,394.00",Nov-22
Slough Borough Council,2830,GR Response Healthcare Ltd,M45C,Adult Social Care Operations,Supplies and Services,723.06,Nov-22
Slough Borough Council,2830,GR Response Healthcare Ltd,M48C,Adult Social Care Operations,Supplies and Services,"3,002.00",Nov-22
Slough Borough Council,2830,GR Response Healthcare Ltd,A06C,Adult Social Care Commissioning,Supplies and Services,"9,400.00",Nov-22
Slough Borough Council,2830,GR Response Healthcare Ltd,A06C,Adult Social Care Commissioning,Supplies and Services,"9,300.00",Nov-22
Slough Borough Council,807255,Green Corridor,F558,Children & Families,Supplies and Services,"1,624.00",Nov-22
Slough Borough Council,804577,Green Monarch ZC2016 c/o Savills(UK) Limited,H205,Housing (People) Services,Premises,"3,583.33",Nov-22
Slough Borough Council,808378,Greensleeves Care,M17C,Adult Social Care Operations,Supplies and Services,"3,497.49",Nov-22
Slough Borough Council,808464,Greenstone Care,M51C,Adult Social Care Operations,Supplies and Services,"1,800.00",Nov-22
Slough Borough Council,808464,Greenstone Care,M51C,Adult Social Care Operations,Supplies and Services,"1,980.00",Nov-22
Slough Borough Council,808464,Greenstone Care,M51C,Adult Social Care Operations,Supplies and Services,"1,680.00",Nov-22
Slough Borough Council,805069,Grove Academy,E610,Children & Families,Supplies and Services,"26,677.00",Nov-22
Slough Borough Council,804447,Grundon Waste Management Limited,D342,Place Operations,Supplies and Services,"438,443.40",Nov-22
Slough Borough Council,3228,H Plus Care Ltd,M18C,Adult Social Care Operations,Supplies and Services,"5,142.87",Nov-22
Slough Borough Council,3228,H Plus Care Ltd,M25C,Adult Social Care Operations,Supplies and Services,"5,357.13",Nov-22
Slough Borough Council,3228,H Plus Care Ltd,M26E,Adult Social Care Operations,Supplies and Services,"5,142.87",Nov-22
Slough Borough Council,806681,Hako Machines Ltd,D620,Place Operations,Supplies and Services,597.42,Nov-22
Slough Borough Council,1381,Haybrook College,E610,Children & Families,Supplies and Services,"84,275.74",Nov-22
Slough Borough Council,3784,Haybrook College Pru,E610,Children & Families,Supplies and Services,"38,200.00",Nov-22
Slough Borough Council,803248,Haybrook College Trust,F123,Education & Inclusion,Supplies and Services,"49,320.00",Nov-22
Slough Borough Council,803248,Haybrook College Trust,F123,Education & Inclusion,Supplies and Services,"49,320.00",Nov-22
Slough Borough Council,808639,Hazel Care Services Ltd,M42E,Adult Social Care Operations,Supplies and Services,"1,648.92",Nov-22
Slough Borough Council,808639,Hazel Care Services Ltd,M42E,Adult Social Care Operations,Supplies and Services,"4,259.71",Nov-22
Slough Borough Council,808639,Hazel Care Services Ltd,M42E,Adult Social Care Operations,Supplies and Services,"1,358.55",Nov-22
Slough Borough Council,808639,Hazel Care Services Ltd,M42E,Adult Social Care Operations,Supplies and Services,"4,679.45",Nov-22
Slough Borough Council,803753,Healthcare Homes,M15D,Adult Social Care Operations,Supplies and Services,"2,734.29",Nov-22
Slough Borough Council,803753,Healthcare Homes,M15D,Adult Social Care Operations,Supplies and Services,"2,843.66",Nov-22
Slough Borough Council,803753,Healthcare Homes,M17C,Adult Social Care Operations,Supplies and Services,"4,871.43",Nov-22
Slough Borough Council,803753,Healthcare Homes,M17C,Adult Social Care Operations,Supplies and Services,"4,714.29",Nov-22
Slough Borough Council,803753,Healthcare Homes,M17C,Adult Social Care Operations,Supplies and Services,"2,544.86",Nov-22
Slough Borough Council,803753,Healthcare Homes,M17C,Adult Social Care Operations,Supplies and Services,"4,714.29",Nov-22
Slough Borough Council,803753,Healthcare Homes,M17C,Adult Social Care Operations,Supplies and Services,"4,285.71",Nov-22
Slough Borough Council,803753,Healthcare Homes,M17C,Adult Social Care Operations,Supplies and Services,"1,414.29",Nov-22
Slough Borough Council,803753,Healthcare Homes,M17C,Adult Social Care Operations,Supplies and Services,"4,871.43",Nov-22
Slough Borough Council,803753,Healthcare Homes,M17C,Adult Social Care Operations,Supplies and Services,"4,714.29",Nov-22
Slough Borough Council,803753,Healthcare Homes,M18C,Adult Social Care Operations,Supplies and Services,"4,871.43",Nov-22
Slough Borough Council,803753,Healthcare Homes,M18C,Adult Social Care Operations,Supplies and Services,"2,042.86",Nov-22
Slough Borough Council,803753,Healthcare Homes,M18C,Adult Social Care Operations,Supplies and Services,"4,714.29",Nov-22
Slough Borough Council,803753,Healthcare Homes,M18C,Adult Social Care Operations,Supplies and Services,"4,714.29",Nov-22
Slough Borough Council,803753,Healthcare Homes,M18C,Adult Social Care Operations,Supplies and Services,"4,714.29",Nov-22
Slough Borough Council,803753,Healthcare Homes,M18C,Adult Social Care Operations,Supplies and Services,"4,714.39",Nov-22
Slough Borough Council,803753,Healthcare Homes,M18C,Adult Social Care Operations,Supplies and Services,"3,285.71",Nov-22
Slough Borough Council,803753,Healthcare Homes,M27C,Adult Social Care Operations,Supplies and Services,"3,000.00",Nov-22
Slough Borough Council,808596,Healthy Streets Ltd,D105,Place Strategy & Infrastructure,Indirect Employee Expenses,500.00,Nov-22
Slough Borough Council,807682,Help and Care,A02C,Adult Social Care Commissioning,Supplies and Services,"16,109.74",Nov-22
Slough Borough Council,803447,Herewards House Residential Home,M27C,Adult Social Care Operations,Supplies and Services,"2,785.71",Nov-22
Slough Borough Council,805818,Hestia Housing & Support,H254,Place Regulation,Supplies and Services,"53,610.81",Nov-22
Slough Borough Council,850,Holy Family Catholic Primary School,E250,Children & Families,Supplies and Services,"181,188.89",Nov-22
Slough Borough Council,807737,Homelink Healthcare Limited,B324,Finance & Commercial,Supplies and Services,"3,609.60",Nov-22
Slough Borough Council,807737,Homelink Healthcare Limited,B324,Finance & Commercial,Government Grants,"4,997.91",Nov-22
Slough Borough Council,351,Imperial Polythene Products Ltd,D620,Place Operations,Supplies and Services,"3,185.00",Nov-22
Slough Borough Council,807666,Independence Home and Domicilary Care,M44F,Adult Social Care Operations,Supplies and Services,"3,348.00",Nov-22
Slough Borough Council,807666,Independence Home and Domicilary Care,M44F,Adult Social Care Operations,Supplies and Services,"3,381.17",Nov-22
Slough Borough Council,807666,Independence Home and Domicilary Care,M44F,Adult Social Care Operations,Supplies and Services,"2,940.66",Nov-22
Slough Borough Council,807666,Independence Home and Domicilary Care,M44F,Adult Social Care Operations,Supplies and Services,"1,544.58",Nov-22
Slough Borough Council,807496,Info Technology Supply Ltd,C104,Community,Supplies and Services,"2,510.75",Nov-22
Slough Borough Council,803651,Insight Direct (UK) Ltd,B282,Digital and Strategic IT,Supplies and Services,"25,618.50",Nov-22
Slough Borough Council,803651,Insight Direct (UK) Ltd,B282,Digital and Strategic IT,Supplies and Services,"1,691.00",Nov-22
Slough Borough Council,803651,Insight Direct (UK) Ltd,B282,Digital and Strategic IT,Supplies and Services,651.00,Nov-22
Slough Borough Council,803651,Insight Direct (UK) Ltd,B342,Digital and Strategic IT,Supplies and Services,939.40,Nov-22
Slough Borough Council,808173,Intercountry Adoption Centre,M04A,People Children Management,Transport,"6,500.00",Nov-22
Slough Borough Council,808422,Intersect Survey Ltd,P238,Capital,Capital Charges,"28,000.00",Nov-22
Slough Borough Council,3500,Iqra Slough Islamic Primary School,E480,Children & Families,Supplies and Services,"102,586.37",Nov-22
Slough Borough Council,998,Iron Mountain Uk Ltd,B282,Digital and Strategic IT,Supplies and Services,589.73,Nov-22
Slough Borough Council,2919,Islamic Shakhsiyah Foundation,F909,Children & Families,Supplies and Services,"9,007.09",Nov-22
Slough Borough Council,807346,Jacaranda,M44F,Adult Social Care Operations,Supplies and Services,"4,379.00",Nov-22
Slough Borough Council,753,Jack In The Box Day Nursery,F909,Children & Families,Supplies and Services,"11,997.83",Nov-22
Slough Borough Council,753,Jack In The Box Day Nursery,F909,Children & Families,Supplies and Services,"11,997.83",Nov-22
Slough Borough Council,733,James Elliman  School,E620,Children & Families,Supplies and Services,"31,958.33",Nov-22
Slough Borough Council,805666,James Rosental,C322,Community,Supplies and Services,"1,764.00",Nov-22
Slough Borough Council,805226,JD Surfacing & Civil Engineering Limited,D880,Place Operations,Supplies and Services,840.00,Nov-22
Slough Borough Council,805226,JD Surfacing & Civil Engineering Limited,D880,Place Operations,Supplies and Services,"12,570.00",Nov-22
Slough Borough Council,805226,JD Surfacing & Civil Engineering Limited,D880,Place Operations,Supplies and Services,"14,940.00",Nov-22
Slough Borough Council,805226,JD Surfacing & Civil Engineering Limited,D880,Place Operations,Supplies and Services,"2,200.00",Nov-22
Slough Borough Council,805226,JD Surfacing & Civil Engineering Limited,D880,Place Operations,Supplies and Services,"4,751.51",Nov-22
Slough Borough Council,805226,JD Surfacing & Civil Engineering Limited,D880,Place Operations,Supplies and Services,"1,937.51",Nov-22
Slough Borough Council,805226,JD Surfacing & Civil Engineering Limited,D880,Place Operations,Supplies and Services,"3,756.76",Nov-22
Slough Borough Council,805226,JD Surfacing & Civil Engineering Limited,D880,Place Operations,Supplies and Services,"9,920.00",Nov-22
Slough Borough Council,805226,JD Surfacing & Civil Engineering Limited,D880,Place Operations,Supplies and Services,"1,855.00",Nov-22
Slough Borough Council,805226,JD Surfacing & Civil Engineering Limited,D880,Place Operations,Supplies and Services,"10,890.00",Nov-22
Slough Borough Council,805226,JD Surfacing & Civil Engineering Limited,D880,Place Operations,Supplies and Services,"8,232.00",Nov-22
Slough Borough Council,805226,JD Surfacing & Civil Engineering Limited,D880,Place Operations,Supplies and Services,"2,200.00",Nov-22
Slough Borough Council,805226,JD Surfacing & Civil Engineering Limited,D880,Place Operations,Supplies and Services,"6,460.00",Nov-22
Slough Borough Council,805226,JD Surfacing & Civil Engineering Limited,D880,Place Operations,Supplies and Services,"3,758.88",Nov-22
Slough Borough Council,805226,JD Surfacing & Civil Engineering Limited,D880,Place Operations,Supplies and Services,"2,200.00",Nov-22
Slough Borough Council,805226,JD Surfacing & Civil Engineering Limited,D880,Place Operations,Supplies and Services,840.00,Nov-22
Slough Borough Council,805226,JD Surfacing & Civil Engineering Limited,D880,Place Operations,Supplies and Services,"4,799.22",Nov-22
Slough Borough Council,805226,JD Surfacing & Civil Engineering Limited,D880,Place Operations,Supplies and Services,"12,810.00",Nov-22
Slough Borough Council,805226,JD Surfacing & Civil Engineering Limited,D880,Place Operations,Supplies and Services,"8,950.00",Nov-22
Slough Borough Council,805226,JD Surfacing & Civil Engineering Limited,D880,Place Operations,Supplies and Services,"13,010.00",Nov-22
Slough Borough Council,805226,JD Surfacing & Civil Engineering Limited,D880,Place Operations,Supplies and Services,"1,688.34",Nov-22
Slough Borough Council,805226,JD Surfacing & Civil Engineering Limited,D880,Place Operations,Supplies and Services,"2,200.00",Nov-22
Slough Borough Council,805226,JD Surfacing & Civil Engineering Limited,D880,Place Operations,Supplies and Services,"9,980.00",Nov-22
Slough Borough Council,807308,JLA Total Care Ltd,H205,Housing (People) Services,Supplies and Services,675.65,Nov-22
Slough Borough Council,807453,John F Hunt Regeneration Ltd,P405,Capital,Capital Charges,"11,362.13",Nov-22
Slough Borough Council,807453,John F Hunt Regeneration Ltd,P405,Capital,Capital Charges,"23,321.12",Nov-22
Slough Borough Council,2200,Joshua Pilmore,C322,Community,Supplies and Services,"1,724.00",Nov-22
Slough Borough Council,2200,Joshua Pilmore,C322,Community,Supplies and Services,693.00,Nov-22
Slough Borough Council,201,Kamal Enterprises Ltd,A04C,Adult Social Care Operations,Supplies and Services,729.00,Nov-22
Slough Borough Council,201,Kamal Enterprises Ltd,A04C,Adult Social Care Operations,Supplies and Services,514.00,Nov-22
Slough Borough Council,803815,Kathys Childcare,F909,Children & Families,Supplies and Services,"2,434.88",Nov-22
Slough Borough Council,803815,Kathys Childcare,F909,Children & Families,Supplies and Services,"2,434.88",Nov-22
Slough Borough Council,2620,Kcare Nursing Agency Ltd,M44C,Adult Social Care Operations,Supplies and Services,"2,421.25",Nov-22
Slough Borough Council,2620,Kcare Nursing Agency Ltd,M44C,Adult Social Care Operations,Supplies and Services,885.38,Nov-22
Slough Borough Council,2620,Kcare Nursing Agency Ltd,M44C,Adult Social Care Operations,Supplies and Services,"1,340.14",Nov-22
Slough Borough Council,2620,Kcare Nursing Agency Ltd,M44D,Adult Social Care Operations,Supplies and Services,"1,611.00",Nov-22
Slough Borough Council,2620,Kcare Nursing Agency Ltd,M44D,Adult Social Care Operations,Supplies and Services,774.58,Nov-22
Slough Borough Council,2620,Kcare Nursing Agency Ltd,M48C,Adult Social Care Operations,Supplies and Services,"4,000.00",Nov-22
Slough Borough Council,2620,Kcare Nursing Agency Ltd,M48C,Adult Social Care Operations,Supplies and Services,"1,053.62",Nov-22
Slough Borough Council,2620,Kcare Nursing Agency Ltd,M48C,Adult Social Care Operations,Supplies and Services,"4,000.00",Nov-22
Slough Borough Council,804887,KCare Nursing Agency Ltd Supported House Living,M42F,Adult Social Care Operations,Supplies and Services,"2,926.00",Nov-22
Slough Borough Council,804887,KCare Nursing Agency Ltd Supported House Living,M44F,Adult Social Care Operations,Supplies and Services,"2,493.50",Nov-22
Slough Borough Council,804887,KCare Nursing Agency Ltd Supported House Living,M44F,Adult Social Care Operations,Supplies and Services,"2,493.50",Nov-22
Slough Borough Council,804875,Kennel Lane School,F551,Children & Families,Supplies and Services,"22,179.00",Nov-22
Slough Borough Council,804875,Kennel Lane School,F551,Children & Families,Supplies and Services,"26,689.00",Nov-22
Slough Borough Council,808146,Kents Hill Care Home,M18C,Adult Social Care Operations,Supplies and Services,"3,764.29",Nov-22
Slough Borough Council,807742,Khalsa Primary School,E620,Children & Families,Supplies and Services,"14,542.67",Nov-22
Slough Borough Council,803916,Kharis Solutions,A07R,Adult Social Care Operations,Supplies and Services,"2,206.26",Nov-22
Slough Borough Council,803916,Kharis Solutions,M42E,Adult Social Care Operations,Supplies and Services,"7,188.00",Nov-22
Slough Borough Council,803916,Kharis Solutions,M44C,Adult Social Care Operations,Supplies and Services,"1,961.12",Nov-22
Slough Borough Council,803916,Kharis Solutions,M44C,Adult Social Care Operations,Supplies and Services,"2,346.34",Nov-22
Slough Borough Council,803916,Kharis Solutions,M44C,Adult Social Care Operations,Supplies and Services,"1,470.84",Nov-22
Slough Borough Council,803916,Kharis Solutions,M44D,Adult Social Care Operations,Supplies and Services,"2,206.26",Nov-22
Slough Borough Council,803916,Kharis Solutions,M48C,Adult Social Care Operations,Supplies and Services,"2,276.30",Nov-22
Slough Borough Council,807176,Konflux Theatre Education,D509,Place Strategy & Infrastructure,Supplies and Services,"1,275.00",Nov-22
Slough Borough Council,804546,Korn Ferry,B348,People,Indirect Employee Expenses,"1,232.00",Nov-22
Slough Borough Council,1728,Kristiina Smith,C322,Community,Supplies and Services,"2,686.00",Nov-22
Slough Borough Council,808609,Langhams Partnership LTD,H205,Housing (People) Services,Supplies and Services,"1,950.00",Nov-22
Slough Borough Council,3001,Langley Haven Care Homes Ltd,M25C,Adult Social Care Operations,Supplies and Services,"3,488.40",Nov-22
Slough Borough Council,3001,Langley Haven Care Homes Ltd,M25C,Adult Social Care Operations,Supplies and Services,"3,488.40",Nov-22
Slough Borough Council,3001,Langley Haven Care Homes Ltd,M25D,Adult Social Care Operations,Supplies and Services,"3,488.40",Nov-22
Slough Borough Council,3001,Langley Haven Care Homes Ltd,M25D,Adult Social Care Operations,Supplies and Services,"3,488.40",Nov-22
Slough Borough Council,3001,Langley Haven Care Homes Ltd,M26E,Adult Social Care Operations,Supplies and Services,"3,600.00",Nov-22
Slough Borough Council,3001,Langley Haven Care Homes Ltd,M26E,Adult Social Care Operations,Supplies and Services,"3,600.00",Nov-22
Slough Borough Council,3001,Langley Haven Care Homes Ltd,M27C,Adult Social Care Operations,Supplies and Services,"3,488.40",Nov-22
Slough Borough Council,3001,Langley Haven Care Homes Ltd,M27C,Adult Social Care Operations,Supplies and Services,"3,488.40",Nov-22
Slough Borough Council,3001,Langley Haven Care Homes Ltd,M27C,Adult Social Care Operations,Supplies and Services,"3,488.40",Nov-22
Slough Borough Council,3001,Langley Haven Care Homes Ltd,M27F,Adult Social Care Operations,Supplies and Services,"1,821.43",Nov-22
Slough Borough Council,3001,Langley Haven Care Homes Ltd,M27F,Adult Social Care Operations,Supplies and Services,"3,257.14",Nov-22
Slough Borough Council,3001,Langley Haven Care Homes Ltd,M27F,Adult Social Care Operations,Supplies and Services,"3,488.40",Nov-22
Slough Borough Council,3001,Langley Haven Care Homes Ltd,M27F,Adult Social Care Operations,Supplies and Services,"3,488.40",Nov-22
Slough Borough Council,3001,Langley Haven Care Homes Ltd,M27F,Adult Social Care Operations,Supplies and Services,"3,488.40",Nov-22
Slough Borough Council,3001,Langley Haven Care Homes Ltd,M27F,Adult Social Care Operations,Supplies and Services,"3,488.40",Nov-22
Slough Borough Council,3001,Langley Haven Care Homes Ltd,M29C,Adult Social Care Operations,Supplies and Services,"3,488.40",Nov-22
Slough Borough Council,3001,Langley Haven Care Homes Ltd,M29C,Adult Social Care Operations,Supplies and Services,"2,441.88",Nov-22
Slough Borough Council,803686,Lascelles Park Nursery,F909,Children & Families,Supplies and Services,"17,552.68",Nov-22
Slough Borough Council,803686,Lascelles Park Nursery,F909,Children & Families,Supplies and Services,"17,552.68",Nov-22
Slough Borough Council,1077,Lavat Consulting Limited,P242,Capital,Capital Charges,"3,750.00",Nov-22
Slough Borough Council,808423,Leo�s Circus CIC,F382,Children & Families,Supplies and Services,"1,085.28",Nov-22
Slough Borough Council,3482,Leonard Cheshire Disability,M25D,Adult Social Care Operations,Supplies and Services,"5,699.36",Nov-22
Slough Borough Council,3482,Leonard Cheshire Disability,M26E,Adult Social Care Operations,Supplies and Services,"6,367.67",Nov-22
Slough Borough Council,365,Lexisnexis Butterworths,B240,Business Services,Supplies and Services,"1,052.00",Nov-22
Slough Borough Council,301,Liberata Uk Limited,B048,Finance & Commercial,Supplies and Services,"9,691.92",Nov-22
Slough Borough Council,397,Liquidlogic,A03D,Adult Social Care Operations,Supplies and Services,"5,119.54",Nov-22
Slough Borough Council,804692,Little Diamonds Pre School,F909,Children & Families,Supplies and Services,"15,180.00",Nov-22
Slough Borough Council,804692,Little Diamonds Pre School,F909,Children & Families,Supplies and Services,"15,000.00",Nov-22
Slough Borough Council,3791,Littledown Pru,E610,Children & Families,Supplies and Services,"17,100.00",Nov-22
Slough Borough Council,667,Littledown School,E610,Children & Families,Supplies and Services,"2,693.15",Nov-22
Slough Borough Council,804544,London Borough of Harrow,B096,Governance,Indirect Employee Expenses,"129,549.41",Nov-22
Slough Borough Council,804544,London Borough of Harrow,M99C,Children & Families,Supplies and Services,"2,135.71",Nov-22
Slough Borough Council,1282,Long Close School,F909,Children & Families,Supplies and Services,"6,859.24",Nov-22
Slough Borough Council,1282,Long Close School,F909,Children & Families,Supplies and Services,"6,859.24",Nov-22
Slough Borough Council,2302,Look Ahead Care And Support,M42F,Adult Social Care Operations,Supplies and Services,"25,457.04",Nov-22
Slough Borough Council,2302,Look Ahead Care And Support,M42F,Adult Social Care Operations,Supplies and Services,"1,772.76",Nov-22
Slough Borough Council,2302,Look Ahead Care And Support,M42F,Adult Social Care Operations,Supplies and Services,"28,184.58",Nov-22
Slough Borough Council,2302,Look Ahead Care And Support,M42F,Adult Social Care Operations,Supplies and Services,"27,275.40",Nov-22
Slough Borough Council,2302,Look Ahead Care And Support,M42F,Adult Social Care Operations,Supplies and Services,"28,184.58",Nov-22
Slough Borough Council,2302,Look Ahead Care And Support,M42F,Adult Social Care Operations,Supplies and Services,"21,330.56",Nov-22
Slough Borough Council,2302,Look Ahead Care And Support,M42F,Adult Social Care Operations,Supplies and Services,"1,772.76",Nov-22
Slough Borough Council,2302,Look Ahead Care And Support,M42F,Adult Social Care Operations,Supplies and Services,"28,184.58",Nov-22
Slough Borough Council,2302,Look Ahead Care And Support,M42F,Adult Social Care Operations,Supplies and Services,"27,275.40",Nov-22
Slough Borough Council,2302,Look Ahead Care And Support,M42F,Adult Social Care Operations,Supplies and Services,"28,184.58",Nov-22
Slough Borough Council,2302,Look Ahead Care And Support,M44F,Adult Social Care Operations,Supplies and Services,"2,828.56",Nov-22
Slough Borough Council,2302,Look Ahead Care And Support,M44F,Adult Social Care Operations,Supplies and Services,"2,439.82",Nov-22
Slough Borough Council,2302,Look Ahead Care And Support,M44F,Adult Social Care Operations,Supplies and Services,819.29,Nov-22
Slough Borough Council,2302,Look Ahead Care And Support,M44F,Adult Social Care Operations,Supplies and Services,"1,808.41",Nov-22
Slough Borough Council,2302,Look Ahead Care And Support,M44F,Adult Social Care Operations,Supplies and Services,"1,808.85",Nov-22
Slough Borough Council,2302,Look Ahead Care And Support,M44F,Adult Social Care Operations,Supplies and Services,"1,808.41",Nov-22
Slough Borough Council,2302,Look Ahead Care And Support,M44F,Adult Social Care Operations,Supplies and Services,"2,540.84",Nov-22
Slough Borough Council,2302,Look Ahead Care And Support,M44F,Adult Social Care Operations,Supplies and Services,"1,565.81",Nov-22
Slough Borough Council,2302,Look Ahead Care And Support,M44F,Adult Social Care Operations,Supplies and Services,"1,567.71",Nov-22
Slough Borough Council,2302,Look Ahead Care And Support,M44F,Adult Social Care Operations,Supplies and Services,"1,567.71",Nov-22
Slough Borough Council,2302,Look Ahead Care And Support,M44F,Adult Social Care Operations,Supplies and Services,"1,565.81",Nov-22
Slough Borough Council,2302,Look Ahead Care And Support,M44F,Adult Social Care Operations,Supplies and Services,"1,567.71",Nov-22
Slough Borough Council,2302,Look Ahead Care And Support,M44F,Adult Social Care Operations,Supplies and Services,"1,565.81",Nov-22
Slough Borough Council,2302,Look Ahead Care And Support,M44F,Adult Social Care Operations,Supplies and Services,"3,030.60",Nov-22
Slough Borough Council,2302,Look Ahead Care And Support,M44F,Adult Social Care Operations,Supplies and Services,"2,540.84",Nov-22
Slough Borough Council,2302,Look Ahead Care And Support,M44F,Adult Social Care Operations,Supplies and Services,"3,131.62",Nov-22
Slough Borough Council,2302,Look Ahead Care And Support,M44F,Adult Social Care Operations,Supplies and Services,"3,131.62",Nov-22
Slough Borough Council,2302,Look Ahead Care And Support,M44F,Adult Social Care Operations,Supplies and Services,"3,131.62",Nov-22
Slough Borough Council,2302,Look Ahead Care And Support,M44F,Adult Social Care Operations,Supplies and Services,819.29,Nov-22
Slough Borough Council,2302,Look Ahead Care And Support,M44F,Adult Social Care Operations,Supplies and Services,"1,808.41",Nov-22
Slough Borough Council,2302,Look Ahead Care And Support,M44F,Adult Social Care Operations,Supplies and Services,"1,808.85",Nov-22
Slough Borough Council,2302,Look Ahead Care And Support,M44F,Adult Social Care Operations,Supplies and Services,"1,808.41",Nov-22
Slough Borough Council,2302,Look Ahead Care And Support,M44F,Adult Social Care Operations,Supplies and Services,"1,567.71",Nov-22
Slough Borough Council,2302,Look Ahead Care And Support,M44F,Adult Social Care Operations,Supplies and Services,"1,750.07",Nov-22
Slough Borough Council,2302,Look Ahead Care And Support,M44F,Adult Social Care Operations,Supplies and Services,"1,567.71",Nov-22
Slough Borough Council,2302,Look Ahead Care And Support,M44F,Adult Social Care Operations,Supplies and Services,"1,565.81",Nov-22
Slough Borough Council,2302,Look Ahead Care And Support,M44F,Adult Social Care Operations,Supplies and Services,"1,567.71",Nov-22
Slough Borough Council,2302,Look Ahead Care And Support,M44F,Adult Social Care Operations,Supplies and Services,"1,565.81",Nov-22
Slough Borough Council,2302,Look Ahead Care And Support,M44F,Adult Social Care Operations,Supplies and Services,"2,540.84",Nov-22
Slough Borough Council,2302,Look Ahead Care And Support,M44F,Adult Social Care Operations,Supplies and Services,"3,030.60",Nov-22
Slough Borough Council,2302,Look Ahead Care And Support,M44F,Adult Social Care Operations,Supplies and Services,"2,540.84",Nov-22
Slough Borough Council,2302,Look Ahead Care And Support,H211,Adult Social Care Operations,Supplies and Services,"13,982.80",Nov-22
Slough Borough Council,2302,Look Ahead Care And Support,H211,Adult Social Care Operations,Supplies and Services,816.68,Nov-22
Slough Borough Council,2302,Look Ahead Care And Support,H211,Adult Social Care Operations,Supplies and Services,556.19,Nov-22
Slough Borough Council,2302,Look Ahead Care And Support,H211,Adult Social Care Operations,Supplies and Services,"1,376.87",Nov-22
Slough Borough Council,2302,Look Ahead Care And Support,H211,Adult Social Care Operations,Supplies and Services,"13,978.80",Nov-22
Slough Borough Council,2302,Look Ahead Care And Support,H211,Adult Social Care Operations,Supplies and Services,"13,982.80",Nov-22
Slough Borough Council,2302,Look Ahead Care And Support,H211,Adult Social Care Operations,Supplies and Services,816.68,Nov-22
Slough Borough Council,2302,Look Ahead Care And Support,H211,Adult Social Care Operations,Supplies and Services,556.19,Nov-22
Slough Borough Council,2302,Look Ahead Care And Support,H211,Adult Social Care Operations,Supplies and Services,"13,982.80",Nov-22
Slough Borough Council,2302,Look Ahead Care And Support,H211,Adult Social Care Operations,Supplies and Services,"1,372.87",Nov-22
Slough Borough Council,2302,Look Ahead Care And Support,H211,Adult Social Care Operations,Supplies and Services,"13,982.80",Nov-22
Slough Borough Council,2302,Look Ahead Care And Support,H211,Adult Social Care Operations,Supplies and Services,816.68,Nov-22
Slough Borough Council,2302,Look Ahead Care And Support,H211,Adult Social Care Operations,Supplies and Services,556.19,Nov-22
Slough Borough Council,2302,Look Ahead Care And Support,H211,Adult Social Care Operations,Supplies and Services,"13,982.80",Nov-22
Slough Borough Council,2302,Look Ahead Care And Support,H211,Adult Social Care Operations,Supplies and Services,816.68,Nov-22
Slough Borough Council,2302,Look Ahead Care And Support,H211,Adult Social Care Operations,Supplies and Services,556.19,Nov-22
Slough Borough Council,2302,Look Ahead Care And Support,H211,Adult Social Care Operations,Supplies and Services,"13,982.80",Nov-22
Slough Borough Council,2302,Look Ahead Care And Support,H211,Adult Social Care Operations,Supplies and Services,"1,372.87",Nov-22
Slough Borough Council,2302,Look Ahead Care And Support,H211,Adult Social Care Operations,Supplies and Services,"13,982.80",Nov-22
Slough Borough Council,2302,Look Ahead Care And Support,H211,Adult Social Care Operations,Supplies and Services,816.68,Nov-22
Slough Borough Council,2302,Look Ahead Care And Support,H211,Adult Social Care Operations,Supplies and Services,556.19,Nov-22
Slough Borough Council,808567,Lydia Simpson,C322,Community,Supplies and Services,720.00,Nov-22
Slough Borough Council,1195,Lynch Hill (Foundation Primary) School,E620,Children & Families,Supplies and Services,"22,933.33",Nov-22
Slough Borough Council,1771,Lynch Hill Academy,E620,Children & Families,Supplies and Services,"15,375.00",Nov-22
Slough Borough Council,3424,M D Homes,M15F,Adult Social Care Operations,Supplies and Services,"4,714.29",Nov-22
Slough Borough Council,807217,Macadamia Support Limited,M42E,Adult Social Care Operations,Supplies and Services,"6,931.20",Nov-22
Slough Borough Council,807217,Macadamia Support Limited,M42E,Adult Social Care Operations,Supplies and Services,"6,713.00",Nov-22
Slough Borough Council,807217,Macadamia Support Limited,M42E,Adult Social Care Operations,Supplies and Services,"3,973.00",Nov-22
Slough Borough Council,807217,Macadamia Support Limited,M42E,Adult Social Care Operations,Supplies and Services,"7,308.00",Nov-22
Slough Borough Council,807217,Macadamia Support Limited,M42E,Adult Social Care Operations,Supplies and Services,"3,589.12",Nov-22
Slough Borough Council,807217,Macadamia Support Limited,M42E,Adult Social Care Operations,Supplies and Services,"9,373.00",Nov-22
Slough Borough Council,807217,Macadamia Support Limited,M42E,Adult Social Care Operations,Supplies and Services,"9,373.00",Nov-22
Slough Borough Council,807217,Macadamia Support Limited,M42E,Adult Social Care Operations,Supplies and Services,"9,373.00",Nov-22
Slough Borough Council,807217,Macadamia Support Limited,M44C,Adult Social Care Operations,Supplies and Services,"3,591.56",Nov-22
Slough Borough Council,807217,Macadamia Support Limited,M44D,Adult Social Care Operations,Supplies and Services,"5,523.00",Nov-22
Slough Borough Council,1874,Maccabee Pets Hotel,H253,Community,Supplies and Services,"2,580.00",Nov-22
Slough Borough Council,1874,Maccabee Pets Hotel,H253,Community,Supplies and Services,"1,860.00",Nov-22
Slough Borough Council,1941,Manor Green School,F551,Children & Families,Supplies and Services,"15,490.00",Nov-22
Slough Borough Council,3768,Marish Academy Trust,F200,Education & Inclusion,Salaries and Wages-Employees Expenses,660.00,Nov-22
Slough Borough Council,3768,Marish Academy Trust,B191,Business Services,Premises,"2,426.29",Nov-22
Slough Borough Council,3768,Marish Academy Trust,B191,Business Services,Premises,718.80,Nov-22
Slough Borough Council,529,Marish Primary School,E620,Children & Families,Supplies and Services,"87,447.03",Nov-22
Slough Borough Council,1886,Matrix Scm,B023,Finance & Commercial,Agency Staff,"506,560.21",Nov-22
Slough Borough Council,1886,Matrix Scm,B023,Finance & Commercial,Agency Staff,"496,372.95",Nov-22
Slough Borough Council,1886,Matrix Scm,B023,Finance & Commercial,Agency Staff,"499,554.33",Nov-22
Slough Borough Council,1886,Matrix Scm,B023,Finance & Commercial,Agency Staff,"447,146.54",Nov-22
Slough Borough Council,1886,Matrix Scm,B023,Finance & Commercial,Agency Staff,"390,877.56",Nov-22
Slough Borough Council,807009,Medigold Health Consultancy Ltd,B349,Customer,Salaries and Wages-Employees Expenses,"5,211.25",Nov-22
Slough Borough Council,805981,Metastreet Limited,H219,Place Regulation,Supplies and Services,"10,000.00",Nov-22
Slough Borough Council,2237,Metts Ltd,M50A,Place Operations,Transport,591.09,Nov-22
Slough Borough Council,1496,Mighty Acorns Day Nursery Ltd,F909,Children & Families,Supplies and Services,"16,235.90",Nov-22
Slough Borough Council,1496,Mighty Acorns Day Nursery Ltd,F909,Children & Families,Supplies and Services,"16,235.90",Nov-22
Slough Borough Council,808571,Miguel MaTu LTD,F146,Children & Families,Indirect Employee Expenses,"1,848.00",Nov-22
Slough Borough Council,805121,MMCG (2) Limited,A02E,Adult Social Care Operations,Supplies and Services,"3,442.50",Nov-22
Slough Borough Council,805121,MMCG (2) Limited,A02E,Adult Social Care Operations,Supplies and Services,"-3,327.75",Nov-22
Slough Borough Council,805121,MMCG (2) Limited,A03E,Adult Social Care Operations,Supplies and Services,"4,057.57",Nov-22
Slough Borough Council,805121,MMCG (2) Limited,A03E,Adult Social Care Operations,Supplies and Services,"2,776.89",Nov-22
Slough Borough Council,805121,MMCG (2) Limited,A03E,Adult Social Care Operations,Supplies and Services,"4,245.77",Nov-22
Slough Borough Council,805121,MMCG (2) Limited,A03E,Adult Social Care Operations,Supplies and Services,"4,245.77",Nov-22
Slough Borough Council,805121,MMCG (2) Limited,A03E,Adult Social Care Operations,Supplies and Services,"7,541.37",Nov-22
Slough Borough Council,805121,MMCG (2) Limited,A03E,Adult Social Care Operations,Supplies and Services,"4,192.79",Nov-22
Slough Borough Council,805121,MMCG (2) Limited,M15D,Adult Social Care Operations,Supplies and Services,"3,699.54",Nov-22
Slough Borough Council,805121,MMCG (2) Limited,M15D,Adult Social Care Operations,Supplies and Services,"3,699.54",Nov-22
Slough Borough Council,805121,MMCG (2) Limited,M15D,Adult Social Care Operations,Supplies and Services,"-3,557.25",Nov-22
Slough Borough Council,805121,MMCG (2) Limited,M15F,Adult Social Care Operations,Supplies and Services,"3,699.54",Nov-22
Slough Borough Council,805121,MMCG (2) Limited,M15F,Adult Social Care Operations,Supplies and Services,"2,834.73",Nov-22
Slough Borough Council,805121,MMCG (2) Limited,M17C,Adult Social Care Operations,Supplies and Services,"3,699.54",Nov-22
Slough Borough Council,805121,MMCG (2) Limited,M17C,Adult Social Care Operations,Supplies and Services,"3,825.00",Nov-22
Slough Borough Council,805121,MMCG (2) Limited,M17C,Adult Social Care Operations,Supplies and Services,"-3,442.50",Nov-22
Slough Borough Council,805121,MMCG (2) Limited,M17C,Adult Social Care Operations,Supplies and Services,"3,580.20",Nov-22
Slough Borough Council,805121,MMCG (2) Limited,M17C,Adult Social Care Operations,Supplies and Services,"-3,557.25",Nov-22
Slough Borough Council,805121,MMCG (2) Limited,M17C,Adult Social Care Operations,Supplies and Services,"4,562.80",Nov-22
Slough Borough Council,805121,MMCG (2) Limited,M17C,Adult Social Care Operations,Supplies and Services,"3,699.54",Nov-22
Slough Borough Council,805121,MMCG (2) Limited,M18C,Adult Social Care Operations,Supplies and Services,"3,699.54",Nov-22
Slough Borough Council,805121,MMCG (2) Limited,M18C,Adult Social Care Operations,Supplies and Services,"3,612.33",Nov-22
Slough Borough Council,805121,MMCG (2) Limited,M18C,Adult Social Care Operations,Supplies and Services,"3,901.50",Nov-22
Slough Borough Council,805121,MMCG (2) Limited,M18C,Adult Social Care Operations,Supplies and Services,"-4,245.77",Nov-22
Slough Borough Council,805121,MMCG (2) Limited,M18C,Adult Social Care Operations,Supplies and Services,"-4,387.30",Nov-22
Slough Borough Council,805121,MMCG (2) Limited,M18C,Adult Social Care Operations,Supplies and Services,"-4,245.77",Nov-22
Slough Borough Council,805121,MMCG (2) Limited,M18C,Adult Social Care Operations,Supplies and Services,"-1,981.36",Nov-22
Slough Borough Council,805121,MMCG (2) Limited,M18C,Adult Social Care Operations,Supplies and Services,"3,580.20",Nov-22
Slough Borough Council,805121,MMCG (2) Limited,M18C,Adult Social Care Operations,Supplies and Services,"3,580.20",Nov-22
Slough Borough Council,805121,MMCG (2) Limited,M18C,Adult Social Care Operations,Supplies and Services,"3,699.54",Nov-22
Slough Borough Council,805121,MMCG (2) Limited,M18C,Adult Social Care Operations,Supplies and Services,"4,562.80",Nov-22
Slough Borough Council,805121,MMCG (2) Limited,M18C,Adult Social Care Operations,Supplies and Services,"3,699.54",Nov-22
Slough Borough Council,805121,MMCG (2) Limited,M18C,Adult Social Care Operations,Supplies and Services,"4,415.61",Nov-22
Slough Borough Council,805121,MMCG (2) Limited,M18C,Adult Social Care Operations,Supplies and Services,"3,699.54",Nov-22
Slough Borough Council,805121,MMCG (2) Limited,M25C,Adult Social Care Operations,Supplies and Services,"3,580.20",Nov-22
Slough Borough Council,805121,MMCG (2) Limited,M25C,Adult Social Care Operations,Supplies and Services,"3,699.54",Nov-22
Slough Borough Council,805121,MMCG (2) Limited,M25C,Adult Social Care Operations,Supplies and Services,"3,699.54",Nov-22
Slough Borough Council,805121,MMCG (2) Limited,M25C,Adult Social Care Operations,Supplies and Services,"3,699.54",Nov-22
Slough Borough Council,805121,MMCG (2) Limited,M27C,Adult Social Care Operations,Supplies and Services,"1,005.55",Nov-22
Slough Borough Council,805121,MMCG (2) Limited,M27C,Adult Social Care Operations,Supplies and Services,"3,580.20",Nov-22
Slough Borough Council,805121,MMCG (2) Limited,M27C,Adult Social Care Operations,Supplies and Services,"3,580.20",Nov-22
Slough Borough Council,805121,MMCG (2) Limited,M27C,Adult Social Care Operations,Supplies and Services,"3,699.54",Nov-22
Slough Borough Council,805121,MMCG (2) Limited,M27C,Adult Social Care Operations,Supplies and Services,"3,699.54",Nov-22
Slough Borough Council,805121,MMCG (2) Limited,M27C,Adult Social Care Operations,Supplies and Services,"3,699.54",Nov-22
Slough Borough Council,805121,MMCG (2) Limited,M27C,Adult Social Care Operations,Supplies and Services,"3,699.54",Nov-22
Slough Borough Council,805121,MMCG (2) Limited,M27C,Adult Social Care Operations,Supplies and Services,"3,699.54",Nov-22
Slough Borough Council,805121,MMCG (2) Limited,M27C,Adult Social Care Operations,Supplies and Services,"3,699.54",Nov-22
Slough Borough Council,805121,MMCG (2) Limited,M27C,Adult Social Care Operations,Supplies and Services,"3,699.54",Nov-22
Slough Borough Council,805121,MMCG (2) Limited,M28C,Adult Social Care Operations,Supplies and Services,"3,580.20",Nov-22
Slough Borough Council,805121,MMCG (2) Limited,M29C,Adult Social Care Operations,Supplies and Services,"4,415.61",Nov-22
Slough Borough Council,805121,MMCG (2) Limited,M29C,Adult Social Care Operations,Supplies and Services,"3,557.25",Nov-22
Slough Borough Council,805121,MMCG (2) Limited,M29C,Adult Social Care Operations,Supplies and Services,688.50,Nov-22
Slough Borough Council,805121,MMCG (2) Limited,M29C,Adult Social Care Operations,Supplies and Services,"4,562.80",Nov-22
Slough Borough Council,805089,Molly McGibbon,C322,Community,Supplies and Services,702.00,Nov-22
Slough Borough Council,804815,Molly Southall,C322,Community,Supplies and Services,702.00,Nov-22
Slough Borough Council,2115,Montagu Evans Llp,B086,Place Strategy & Infrastructure,Capital Charges,"11,584.25",Nov-22
Slough Borough Council,2115,Montagu Evans Llp,B086,Place Strategy & Infrastructure,Capital Charges,"12,207.61",Nov-22
Slough Borough Council,1140,Montem Guesthouse,H205,Housing (People) Services,Supplies and Services,"1,550.00",Nov-22
Slough Borough Council,1140,Montem Guesthouse,H205,Housing (People) Services,Supplies and Services,"1,705.00",Nov-22
Slough Borough Council,1140,Montem Guesthouse,H205,Housing (People) Services,Supplies and Services,"1,705.00",Nov-22
Slough Borough Council,1140,Montem Guesthouse,H205,Housing (People) Services,Supplies and Services,"1,550.00",Nov-22
Slough Borough Council,1140,Montem Guesthouse,H205,Housing (People) Services,Supplies and Services,"1,705.00",Nov-22
Slough Borough Council,1140,Montem Guesthouse,H205,Housing (People) Services,Supplies and Services,"1,550.00",Nov-22
Slough Borough Council,1140,Montem Guesthouse,H205,Housing (People) Services,Supplies and Services,"1,240.00",Nov-22
Slough Borough Council,1140,Montem Guesthouse,H205,Housing (People) Services,Supplies and Services,"1,395.00",Nov-22
Slough Borough Council,1140,Montem Guesthouse,H205,Housing (People) Services,Supplies and Services,"1,550.00",Nov-22
Slough Borough Council,1140,Montem Guesthouse,H205,Housing (People) Services,Supplies and Services,"1,085.00",Nov-22
Slough Borough Council,1140,Montem Guesthouse,H205,Housing (People) Services,Supplies and Services,"1,550.00",Nov-22
Slough Borough Council,1140,Montem Guesthouse,H205,Housing (People) Services,Supplies and Services,"1,457.00",Nov-22
Slough Borough Council,1140,Montem Guesthouse,H205,Housing (People) Services,Supplies and Services,"1,395.00",Nov-22
Slough Borough Council,1140,Montem Guesthouse,H205,Housing (People) Services,Supplies and Services,"1,550.00",Nov-22
Slough Borough Council,1140,Montem Guesthouse,H205,Housing (People) Services,Supplies and Services,"1,550.00",Nov-22
Slough Borough Council,1140,Montem Guesthouse,H205,Housing (People) Services,Supplies and Services,"1,550.00",Nov-22
Slough Borough Council,1140,Montem Guesthouse,H205,Housing (People) Services,Supplies and Services,"1,395.00",Nov-22
Slough Borough Council,1140,Montem Guesthouse,H205,Housing (People) Services,Supplies and Services,"1,820.00",Nov-22
Slough Borough Council,1140,Montem Guesthouse,H205,Housing (People) Services,Supplies and Services,"1,395.00",Nov-22
Slough Borough Council,1140,Montem Guesthouse,H205,Housing (People) Services,Supplies and Services,"1,550.00",Nov-22
Slough Borough Council,1140,Montem Guesthouse,H205,Housing (People) Services,Supplies and Services,"1,705.00",Nov-22
Slough Borough Council,1140,Montem Guesthouse,H205,Housing (People) Services,Supplies and Services,"1,705.00",Nov-22
Slough Borough Council,1140,Montem Guesthouse,H205,Housing (People) Services,Supplies and Services,"1,705.00",Nov-22
Slough Borough Council,1140,Montem Guesthouse,H205,Housing (People) Services,Supplies and Services,"1,550.00",Nov-22
Slough Borough Council,1140,Montem Guesthouse,H205,Housing (People) Services,Supplies and Services,"1,550.00",Nov-22
Slough Borough Council,1140,Montem Guesthouse,H205,Housing (People) Services,Supplies and Services,"1,705.00",Nov-22
Slough Borough Council,1140,Montem Guesthouse,H205,Housing (People) Services,Supplies and Services,"1,705.00",Nov-22
Slough Borough Council,1140,Montem Guesthouse,H205,Housing (People) Services,Supplies and Services,"1,755.00",Nov-22
Slough Borough Council,1140,Montem Guesthouse,H205,Housing (People) Services,Supplies and Services,"1,457.00",Nov-22
Slough Borough Council,1140,Montem Guesthouse,H205,Housing (People) Services,Supplies and Services,"1,860.00",Nov-22
Slough Borough Council,1140,Montem Guesthouse,H205,Housing (People) Services,Supplies and Services,"1,395.00",Nov-22
Slough Borough Council,1140,Montem Guesthouse,H205,Housing (People) Services,Supplies and Services,"1,395.00",Nov-22
Slough Borough Council,1140,Montem Guesthouse,H205,Housing (People) Services,Supplies and Services,"2,015.00",Nov-22
Slough Borough Council,1140,Montem Guesthouse,H205,Housing (People) Services,Supplies and Services,"1,457.00",Nov-22
Slough Borough Council,1140,Montem Guesthouse,H205,Housing (People) Services,Supplies and Services,"1,550.00",Nov-22
Slough Borough Council,1140,Montem Guesthouse,H205,Housing (People) Services,Supplies and Services,"1,457.00",Nov-22
Slough Borough Council,1140,Montem Guesthouse,H205,Housing (People) Services,Supplies and Services,"1,395.00",Nov-22
Slough Borough Council,3302,Montem Primary School,E620,Children & Families,Supplies and Services,"23,686.87",Nov-22
Slough Borough Council,1702,Moonlight Pharmacy,A04C,Adult Social Care Operations,Supplies and Services,614.57,Nov-22
Slough Borough Council,807432,MPD FM Limited,A07M,Mental Health Services,Agency Staff,"6,626.70",Nov-22
Slough Borough Council,807432,MPD FM Limited,H216,Housing (People) Services,Supplies and Services,"6,901.32",Nov-22
Slough Borough Council,807432,MPD FM Limited,H216,Housing (People) Services,Supplies and Services,"6,793.86",Nov-22
Slough Borough Council,807432,MPD FM Limited,H216,Housing (People) Services,Supplies and Services,"7,008.78",Nov-22
Slough Borough Council,807432,MPD FM Limited,H216,Housing (People) Services,Supplies and Services,"6,674.46",Nov-22
Slough Borough Council,806484,Mrs Parwinder Kaur Bhandal,H205,Housing (People) Services,Supplies and Services,"7,936.00",Nov-22
Slough Borough Council,807939,MSLFIT LTD,C322,Community,Supplies and Services,702.00,Nov-22
Slough Borough Council,806858,MUDDY BOOTS DAY NURSERY LTD,F909,Children & Families,Supplies and Services,"6,081.95",Nov-22
Slough Borough Council,806858,MUDDY BOOTS DAY NURSERY LTD,F909,Children & Families,Supplies and Services,"6,081.95",Nov-22
Slough Borough Council,805369,NAS Services Limited,M42E,Adult Social Care Operations,Supplies and Services,"8,170.11",Nov-22
Slough Borough Council,1945,Neem Tree Care Ltd,M17C,Adult Social Care Operations,Supplies and Services,"3,488.40",Nov-22
Slough Borough Council,1945,Neem Tree Care Ltd,M17C,Adult Social Care Operations,Supplies and Services,"3,488.40",Nov-22
Slough Borough Council,805932,NHS East Berkshire CCG,A04C,Adult Social Care Operations,Supplies and Services,"20,286.27",Nov-22
Slough Borough Council,1864,Noahs Ark Environmental Services Ltd,H253,Community,Salaries and Wages,"1,480.00",Nov-22
Slough Borough Council,1864,Noahs Ark Environmental Services Ltd,H253,Community,Supplies and Services,"2,674.66",Nov-22
Slough Borough Council,807860,Nominet UK,B282,Digital and Strategic IT,Supplies and Services,765.94,Nov-22
Slough Borough Council,805330,Norden Farm Centre Trust Limited,B175,Business Services,External Receipts,"1,188.00",Nov-22
Slough Borough Council,2515,Norfolk County Council,P194,Capital,Capital Charges,"2,337.00",Nov-22
Slough Borough Council,2515,Norfolk County Council,P194,Capital,Capital Charges,738.00,Nov-22
Slough Borough Council,803985,Normans Musical Instruments,F253,Children & Families,Supplies and Services,"1,230.00",Nov-22
Slough Borough Council,3717,Norwood Schools Limited,M26E,Adult Social Care Operations,Supplies and Services,"4,253.92",Nov-22
Slough Borough Council,3717,Norwood Schools Limited,M26E,Adult Social Care Operations,External Receipts,-641.20,Nov-22
Slough Borough Council,803238,Oasis Care and Training Agency,A07R,Adult Social Care Operations,Supplies and Services,859.52,Nov-22
Slough Borough Council,803238,Oasis Care and Training Agency,M44C,Adult Social Care Operations,Supplies and Services,"1,443.96",Nov-22
Slough Borough Council,803238,Oasis Care and Training Agency,M44C,Adult Social Care Operations,Supplies and Services,"1,443.96",Nov-22
Slough Borough Council,803238,Oasis Care and Training Agency,M44C,Adult Social Care Operations,Supplies and Services,"2,165.96",Nov-22
Slough Borough Council,803238,Oasis Care and Training Agency,M44C,Adult Social Care Operations,Supplies and Services,575.88,Nov-22
Slough Borough Council,803238,Oasis Care and Training Agency,M44C,Adult Social Care Operations,Supplies and Services,"2,045.60",Nov-22
Slough Borough Council,803238,Oasis Care and Training Agency,M44C,Adult Social Care Operations,Supplies and Services,739.16,Nov-22
Slough Borough Council,803238,Oasis Care and Training Agency,M44C,Adult Social Care Operations,Supplies and Services,"1,082.96",Nov-22
Slough Borough Council,803238,Oasis Care and Training Agency,M44C,Adult Social Care Operations,Supplies and Services,722.00,Nov-22
Slough Borough Council,803238,Oasis Care and Training Agency,M44C,Adult Social Care Operations,Supplies and Services,928.28,Nov-22
Slough Borough Council,803238,Oasis Care and Training Agency,M44C,Adult Social Care Operations,Supplies and Services,601.64,Nov-22
Slough Borough Council,803238,Oasis Care and Training Agency,M44C,Adult Social Care Operations,Supplies and Services,962.64,Nov-22
Slough Borough Council,803238,Oasis Care and Training Agency,M44C,Adult Social Care Operations,Supplies and Services,842.32,Nov-22
Slough Borough Council,803238,Oasis Care and Training Agency,M44C,Adult Social Care Operations,Supplies and Services,962.64,Nov-22
Slough Borough Council,803238,Oasis Care and Training Agency,M44C,Adult Social Care Operations,Supplies and Services,"1,151.72",Nov-22
Slough Borough Council,803238,Oasis Care and Training Agency,M44C,Adult Social Care Operations,Supplies and Services,"2,681.64",Nov-22
Slough Borough Council,803238,Oasis Care and Training Agency,M44C,Adult Social Care Operations,Supplies and Services,"2,784.80",Nov-22
Slough Borough Council,803238,Oasis Care and Training Agency,M44D,Adult Social Care Operations,Supplies and Services,979.84,Nov-22
Slough Borough Council,803238,Oasis Care and Training Agency,M44D,Adult Social Care Operations,Supplies and Services,670.40,Nov-22
Slough Borough Council,803238,Oasis Care and Training Agency,M44D,Adult Social Care Operations,Supplies and Services,"1,323.64",Nov-22
Slough Borough Council,803238,Oasis Care and Training Agency,M44D,Adult Social Care Operations,Supplies and Services,842.32,Nov-22
Slough Borough Council,803238,Oasis Care and Training Agency,M44D,Adult Social Care Operations,Supplies and Services,"2,165.96",Nov-22
Slough Borough Council,803238,Oasis Care and Training Agency,M44D,Adult Social Care Operations,Supplies and Services,842.32,Nov-22
Slough Borough Council,803238,Oasis Care and Training Agency,M44D,Adult Social Care Operations,Supplies and Services,"1,340.84",Nov-22
Slough Borough Council,803238,Oasis Care and Training Agency,M44F,Adult Social Care Operations,Supplies and Services,"4,331.88",Nov-22
Slough Borough Council,803238,Oasis Care and Training Agency,M44F,Adult Social Care Operations,Supplies and Services,"1,375.20",Nov-22
Slough Borough Council,803238,Oasis Care and Training Agency,M45C,Adult Social Care Operations,Supplies and Services,"2,165.96",Nov-22
Slough Borough Council,803238,Oasis Care and Training Agency,M45C,Adult Social Care Operations,Supplies and Services,601.64,Nov-22
Slough Borough Council,803238,Oasis Care and Training Agency,M85F,Adult Social Care Operations,Supplies and Services,550.08,Nov-22
Slough Borough Council,1767,Olive Tree Montessori Ltd,F909,Children & Families,Supplies and Services,"20,748.05",Nov-22
Slough Borough Council,1767,Olive Tree Montessori Ltd,F909,Children & Families,Supplies and Services,"5,156.15",Nov-22
Slough Borough Council,3603,Olympia Transport Limited,F123,Education & Inclusion,Supplies and Services,"1,650.03",Nov-22
Slough Borough Council,3603,Olympia Transport Limited,F123,Education & Inclusion,Supplies and Services,"6,726.48",Nov-22
Slough Borough Council,804687,Optalis Limited,M42E,Adult Social Care Operations,Supplies and Services,"4,807.26",Nov-22
Slough Borough Council,804687,Optalis Limited,M42E,Adult Social Care Operations,Supplies and Services,"5,642.13",Nov-22
Slough Borough Council,804687,Optalis Limited,M42E,Adult Social Care Operations,Supplies and Services,"4,807.26",Nov-22
Slough Borough Council,803490,Optimum Specialised Home Limited,M26E,Adult Social Care Operations,Supplies and Services,"8,400.00",Nov-22
Slough Borough Council,803490,Optimum Specialised Home Limited,M26E,Adult Social Care Operations,Supplies and Services,"7,200.00",Nov-22
Slough Borough Council,803490,Optimum Specialised Home Limited,M26E,Adult Social Care Operations,Supplies and Services,"7,180.00",Nov-22
Slough Borough Council,803960,Orchard Hill College,F558,Children & Families,Supplies and Services,"9,538.73",Nov-22
Slough Borough Council,803960,Orchard Hill College,F558,Children & Families,Supplies and Services,"13,200.43",Nov-22
Slough Borough Council,803960,Orchard Hill College,F558,Children & Families,Supplies and Services,"7,962.26",Nov-22
Slough Borough Council,803960,Orchard Hill College,F558,Children & Families,Supplies and Services,"4,400.00",Nov-22
Slough Borough Council,803960,Orchard Hill College,F558,Children & Families,Supplies and Services,"9,943.17",Nov-22
Slough Borough Council,803960,Orchard Hill College,F558,Children & Families,Supplies and Services,"9,470.25",Nov-22
Slough Borough Council,803960,Orchard Hill College,F558,Children & Families,Supplies and Services,"13,066.46",Nov-22
Slough Borough Council,803960,Orchard Hill College,F558,Children & Families,Supplies and Services,"13,307.06",Nov-22
Slough Borough Council,803960,Orchard Hill College,F558,Children & Families,Supplies and Services,"13,636.90",Nov-22
Slough Borough Council,803960,Orchard Hill College,F558,Children & Families,Supplies and Services,"13,769.84",Nov-22
Slough Borough Council,803960,Orchard Hill College,F558,Children & Families,Supplies and Services,"7,847.91",Nov-22
Slough Borough Council,803960,Orchard Hill College,F558,Children & Families,Supplies and Services,"17,868.22",Nov-22
Slough Borough Council,803960,Orchard Hill College,F558,Children & Families,Supplies and Services,"13,747.01",Nov-22
Slough Borough Council,803960,Orchard Hill College,F558,Children & Families,Supplies and Services,"13,541.56",Nov-22
Slough Borough Council,805011,Osborne Property Services Limited,J607,Place Management,Premises,"169,047.01",Nov-22
Slough Borough Council,805011,Osborne Property Services Limited,J015,Place Management,Premises,"46,567.00",Nov-22
Slough Borough Council,805011,Osborne Property Services Limited,J015,Place Management,Premises,"49,424.56",Nov-22
Slough Borough Council,805011,Osborne Property Services Limited,J606,Place Management,Supplies and Services,"100,345.43",Nov-22
Slough Borough Council,805011,Osborne Property Services Limited,P409,Capital,Capital Charges,"20,931.50",Nov-22
Slough Borough Council,805011,Osborne Property Services Limited,P409,Capital,Capital Charges,"4,618.28",Nov-22
Slough Borough Council,805011,Osborne Property Services Limited,P409,Capital,Capital Charges,"35,640.70",Nov-22
Slough Borough Council,805011,Osborne Property Services Limited,P413,Capital,Capital Charges,"31,420.00",Nov-22
Slough Borough Council,805011,Osborne Property Services Limited,P417,Capital,Capital Charges,"96,185.90",Nov-22
Slough Borough Council,805011,Osborne Property Services Limited,P417,Capital,Capital Charges,"19,249.20",Nov-22
Slough Borough Council,805011,Osborne Property Services Limited,P419,Capital,Capital Charges,"27,744.18",Nov-22
Slough Borough Council,805011,Osborne Property Services Limited,P419,Capital,Capital Charges,"17,652.47",Nov-22
Slough Borough Council,805011,Osborne Property Services Limited,P421,Capital,Capital Charges,"14,643.25",Nov-22
Slough Borough Council,805011,Osborne Property Services Limited,P422,Capital,Capital Charges,"56,424.52",Nov-22
Slough Borough Council,805011,Osborne Property Services Limited,P422,Capital,Capital Charges,"38,131.32",Nov-22
Slough Borough Council,805011,Osborne Property Services Limited,P431,Capital,Capital Charges,"78,099.96",Nov-22
Slough Borough Council,805011,Osborne Property Services Limited,P431,Capital,Capital Charges,"208,022.83",Nov-22
Slough Borough Council,805011,Osborne Property Services Limited,P433,Capital,Capital Charges,"12,804.04",Nov-22
Slough Borough Council,805011,Osborne Property Services Limited,P433,Capital,Capital Charges,"5,490.40",Nov-22
Slough Borough Council,805011,Osborne Property Services Limited,P547,Capital,Capital Charges,"39,498.65",Nov-22
Slough Borough Council,805011,Osborne Property Services Limited,J607,Place Management,Supplies and Services,"110,471.43",Nov-22
Slough Borough Council,805011,Osborne Property Services Limited,J606,Place Management,Supplies and Services,"253,814.12",Nov-22
Slough Borough Council,805011,Osborne Property Services Limited,J606,Place Management,Supplies and Services,"253,814.12",Nov-22
Slough Borough Council,805011,Osborne Property Services Limited,J607,Place Management,Supplies and Services,"1,292.11",Nov-22
Slough Borough Council,3371,Our Lady Of Peace Catholic Primary and Nursery School,E340,Children & Families,Supplies and Services,"8,265.64",Nov-22
Slough Borough Council,680,Oxford House Community Care,M44C,Adult Social Care Operations,Supplies and Services,629.40,Nov-22
Slough Borough Council,680,Oxford House Community Care,M44C,Adult Social Care Operations,Supplies and Services,"1,396.67",Nov-22
Slough Borough Council,680,Oxford House Community Care,M44C,Adult Social Care Operations,Supplies and Services,546.00,Nov-22
Slough Borough Council,680,Oxford House Community Care,M44C,Adult Social Care Operations,Supplies and Services,"1,176.54",Nov-22
Slough Borough Council,680,Oxford House Community Care,M44C,Adult Social Care Operations,Supplies and Services,609.16,Nov-22
Slough Borough Council,680,Oxford House Community Care,M44C,Adult Social Care Operations,Supplies and Services,"1,228.50",Nov-22
Slough Borough Council,680,Oxford House Community Care,M44C,Adult Social Care Operations,Supplies and Services,"1,305.04",Nov-22
Slough Borough Council,680,Oxford House Community Care,M44C,Adult Social Care Operations,Supplies and Services,643.50,Nov-22
Slough Borough Council,680,Oxford House Community Care,M44C,Adult Social Care Operations,Supplies and Services,"1,213.40",Nov-22
Slough Borough Council,680,Oxford House Community Care,M44C,Adult Social Care Operations,Supplies and Services,926.04,Nov-22
Slough Borough Council,680,Oxford House Community Care,M44C,Adult Social Care Operations,Supplies and Services,"3,003.00",Nov-22
Slough Borough Council,680,Oxford House Community Care,M44C,Adult Social Care Operations,Supplies and Services,"1,075.46",Nov-22
Slough Borough Council,680,Oxford House Community Care,M44C,Adult Social Care Operations,Supplies and Services,"2,730.00",Nov-22
Slough Borough Council,680,Oxford House Community Care,M44C,Adult Social Care Operations,Supplies and Services,"1,093.13",Nov-22
Slough Borough Council,680,Oxford House Community Care,M44C,Adult Social Care Operations,Supplies and Services,"1,471.68",Nov-22
Slough Borough Council,680,Oxford House Community Care,M44C,Adult Social Care Operations,Supplies and Services,"1,338.36",Nov-22
Slough Borough Council,680,Oxford House Community Care,M44C,Adult Social Care Operations,Supplies and Services,"2,730.00",Nov-22
Slough Borough Council,680,Oxford House Community Care,M44D,Adult Social Care Operations,Supplies and Services,965.26,Nov-22
Slough Borough Council,680,Oxford House Community Care,M44D,Adult Social Care Operations,Supplies and Services,682.50,Nov-22
Slough Borough Council,680,Oxford House Community Care,M44D,Adult Social Care Operations,Supplies and Services,685.20,Nov-22
Slough Borough Council,680,Oxford House Community Care,M44D,Adult Social Care Operations,Supplies and Services,819.00,Nov-22
Slough Borough Council,680,Oxford House Community Care,M44D,Adult Social Care Operations,Supplies and Services,"1,234.49",Nov-22
Slough Borough Council,680,Oxford House Community Care,M44F,Adult Social Care Operations,Supplies and Services,516.19,Nov-22
Slough Borough Council,680,Oxford House Community Care,M45C,Adult Social Care Operations,Supplies and Services,"2,455.03",Nov-22
Slough Borough Council,680,Oxford House Community Care,M47D,Adult Social Care Operations,Supplies and Services,702.00,Nov-22
Slough Borough Council,680,Oxford House Community Care,M48C,Adult Social Care Operations,Supplies and Services,803.37,Nov-22
Slough Borough Council,680,Oxford House Community Care,M48C,Adult Social Care Operations,Supplies and Services,"1,092.00",Nov-22
Slough Borough Council,518,Oxford House Nursing Home,M15D,Adult Social Care Operations,Supplies and Services,"3,235.76",Nov-22
Slough Borough Council,518,Oxford House Nursing Home,M15D,Adult Social Care Operations,Supplies and Services,"3,235.76",Nov-22
Slough Borough Council,518,Oxford House Nursing Home,M18C,Adult Social Care Operations,Supplies and Services,"3,235.76",Nov-22
Slough Borough Council,518,Oxford House Nursing Home,M18C,Adult Social Care Operations,Supplies and Services,"3,235.76",Nov-22
Slough Borough Council,518,Oxford House Nursing Home,M28C,Adult Social Care Operations,Supplies and Services,"3,052.60",Nov-22
Slough Borough Council,807512,Panagiotis Pavlopoulos,C322,Community,Supplies and Services,858.00,Nov-22
Slough Borough Council,807442,Pantheon Care Ltd,M44F,Adult Social Care Operations,Supplies and Services,"1,700.00",Nov-22
Slough Borough Council,807442,Pantheon Care Ltd,M44F,Adult Social Care Operations,Supplies and Services,"1,600.00",Nov-22
Slough Borough Council,2520,Paradigm Housing Group Ltd,H205,Housing (People) Services,Premises,"11,485.23",Nov-22
Slough Borough Council,2520,Paradigm Housing Group Ltd,H205,Housing (People) Services,Premises,"11,047.89",Nov-22
Slough Borough Council,808421,Paramjit Saib,F253,Children & Families,Agency Staff,985.42,Nov-22
Slough Borough Council,2509,Parvaaz Project,M44E,Adult Social Care Operations,Supplies and Services,678.60,Nov-22
Slough Borough Council,2509,Parvaaz Project,M44E,Adult Social Care Operations,Supplies and Services,678.60,Nov-22
Slough Borough Council,2509,Parvaaz Project,M44E,Adult Social Care Operations,Supplies and Services,678.60,Nov-22
Slough Borough Council,2509,Parvaaz Project,M44E,Adult Social Care Operations,Supplies and Services,678.60,Nov-22
Slough Borough Council,2509,Parvaaz Project,M50E,Adult Social Care Operations,Supplies and Services,800.40,Nov-22
Slough Borough Council,2509,Parvaaz Project,M50E,Adult Social Care Operations,Supplies and Services,800.40,Nov-22
Slough Borough Council,2509,Parvaaz Project,M50E,Adult Social Care Operations,Supplies and Services,800.40,Nov-22
Slough Borough Council,2509,Parvaaz Project,M50E,Adult Social Care Operations,Supplies and Services,800.40,Nov-22
Slough Borough Council,1468,Patrol,D123,Place Strategy & Infrastructure,Supplies and Services,"4,520.70",Nov-22
Slough Borough Council,1468,Patrol,D123,Place Strategy & Infrastructure,Supplies and Services,"8,982.90",Nov-22
Slough Borough Council,824,Penn Wood Primary and Nursery School,E450,Children & Families,Supplies and Services,"326,897.43",Nov-22
Slough Borough Council,808606,Pentwyn House Nursing Home,M18C,Adult Social Care Operations,Supplies and Services,"4,071.30",Nov-22
Slough Borough Council,807611,Peopletoo Ltd,A01D,Adult Social Care Operations,Supplies and Services,"24,575.00",Nov-22
Slough Borough Council,1504,Permanent Futures Limited,F410,Children & Families,Supplies and Services,"1,350.00",Nov-22
Slough Borough Council,1504,Permanent Futures Limited,F410,Children & Families,Supplies and Services,"1,350.00",Nov-22
Slough Borough Council,1504,Permanent Futures Limited,F410,Children & Families,Supplies and Services,"1,350.00",Nov-22
Slough Borough Council,1504,Permanent Futures Limited,F640,Children & Families,Supplies and Services,"1,000.00",Nov-22
Slough Borough Council,1504,Permanent Futures Limited,F640,Children & Families,Supplies and Services,"1,500.00",Nov-22
Slough Borough Council,807727,Phoenix Infant Academy c/o Thames Learning Trust,E620,Children & Families,Supplies and Services,"16,039.95",Nov-22
Slough Borough Council,803498,Phoenix Software,B342,Digital and Strategic IT,Supplies and Services,"5,000.00",Nov-22
Slough Borough Council,3359,Pippins School,E370,Children & Families,Supplies and Services,"12,681.96",Nov-22
Slough Borough Council,807120,PJ Care Limited,M15D,Adult Social Care Operations,Supplies and Services,"9,514.50",Nov-22
Slough Borough Council,806875,Portsmouth City Council,A04C,Adult Social Care Operations,Supplies and Services,"1,000.00",Nov-22
Slough Borough Council,803487,Power Data Associates,D413,Place Strategy & Infrastructure,Supplies and Services,"4,200.00",Nov-22
Slough Borough Council,2537,Pre School Stars,F909,Children & Families,Supplies and Services,"6,682.55",Nov-22
Slough Borough Council,2537,Pre School Stars,F909,Children & Families,Supplies and Services,"6,682.55",Nov-22
Slough Borough Council,807164,Premier Tail Lifts LTD,M50A,Place Operations,Transport,934.85,Nov-22
Slough Borough Council,849,Priory Primary School,E380,Children & Families,Supplies and Services,"406,506.29",Nov-22
Slough Borough Council,808180,Proact,B342,Digital and Strategic IT,Capital Charges,"1,968.68",Nov-22
Slough Borough Council,808180,Proact,P084,Capital,Capital Charges,"2,200.00",Nov-22
Slough Borough Council,1138,Qed Slough Ltd,F868,Children & Families,Supplies and Services,"591,676.16",Nov-22
Slough Borough Council,1138,Qed Slough Ltd,F868,Children & Families,Supplies and Services,"4,332.48",Nov-22
Slough Borough Council,805746,Qfree (Bristol) UK Ltd,D500,Place Strategy & Infrastructure,Premises,"1,592.00",Nov-22
Slough Borough Council,805746,Qfree (Bristol) UK Ltd,D500,Place Strategy & Infrastructure,Premises,"1,592.00",Nov-22
Slough Borough Council,808200,Quest Recovery Services Ltd,A07R,Adult Social Care Operations,Supplies and Services,672.00,Nov-22
Slough Borough Council,808200,Quest Recovery Services Ltd,M44C,Adult Social Care Operations,Supplies and Services,"2,016.00",Nov-22
Slough Borough Council,808200,Quest Recovery Services Ltd,M44C,Adult Social Care Operations,Supplies and Services,"1,456.00",Nov-22
Slough Borough Council,808200,Quest Recovery Services Ltd,M44C,Adult Social Care Operations,Supplies and Services,724.00,Nov-22
Slough Borough Council,808200,Quest Recovery Services Ltd,M44E,Adult Social Care Operations,Supplies and Services,"1,792.00",Nov-22
Slough Borough Council,1942,Quickson (South & West) Ltd,P185,Capital,Capital Charges,"5,980.00",Nov-22
Slough Borough Council,2685,R.E.A.C.H,M26E,Adult Social Care Operations,Supplies and Services,"7,142.07",Nov-22
Slough Borough Council,2685,R.E.A.C.H,M26E,Adult Social Care Operations,Supplies and Services,"5,271.12",Nov-22
Slough Borough Council,2685,R.E.A.C.H,M26E,Adult Social Care Operations,Supplies and Services,"7,667.52",Nov-22
Slough Borough Council,2685,R.E.A.C.H,M26E,Adult Social Care Operations,Supplies and Services,"10,591.40",Nov-22
Slough Borough Council,2685,R.E.A.C.H,M26E,Adult Social Care Operations,Supplies and Services,919.96,Nov-22
Slough Borough Council,2685,R.E.A.C.H,M26E,Adult Social Care Operations,Supplies and Services,"5,556.80",Nov-22
Slough Borough Council,2685,R.E.A.C.H,M26E,Adult Social Care Operations,External Receipts,-574.80,Nov-22
Slough Borough Council,2685,R.E.A.C.H,M26E,Adult Social Care Operations,External Receipts,-641.20,Nov-22
Slough Borough Council,805444,Reading Transport Ltd,D512,Place Strategy & Infrastructure,Supplies and Services,"6,137.74",Nov-22
Slough Borough Council,806766,Red Brick Care Ltd,A07R,Adult Social Care Operations,Supplies and Services,867.00,Nov-22
Slough Borough Council,806766,Red Brick Care Ltd,A07R,Adult Social Care Operations,Supplies and Services,833.00,Nov-22
Slough Borough Council,806766,Red Brick Care Ltd,M44C,Adult Social Care Operations,Supplies and Services,"2,142.00",Nov-22
Slough Borough Council,806766,Red Brick Care Ltd,M44C,Adult Social Care Operations,Supplies and Services,"2,142.00",Nov-22
Slough Borough Council,806766,Red Brick Care Ltd,M45C,Adult Social Care Operations,Supplies and Services,"3,094.00",Nov-22
Slough Borough Council,808145,Redacted,F123,Education & Inclusion,Supplies and Services,715.50,Nov-22
Slough Borough Council,808246,Redacted,F123,Education & Inclusion,Supplies and Services,560.00,Nov-22
Slough Borough Council,806541,Redacted,F909,Children & Families,Supplies and Services,"20,229.02",Nov-22
Slough Borough Council,806541,Redacted,F909,Children & Families,Supplies and Services,"21,029.02",Nov-22
Slough Borough Council,3903,Redacted,F909,Children & Families,Supplies and Services,"1,377.04",Nov-22
Slough Borough Council,3903,Redacted,F909,Children & Families,Supplies and Services,"1,377.04",Nov-22
Slough Borough Council,805403,Redacted,F909,Children & Families,Supplies and Services,593.25,Nov-22
Slough Borough Council,805403,Redacted,F909,Children & Families,Supplies and Services,593.25,Nov-22
Slough Borough Council,3173,Redacted,F909,Children & Families,Supplies and Services,605.36,Nov-22
Slough Borough Council,3173,Redacted,F909,Children & Families,Supplies and Services,605.36,Nov-22
Slough Borough Council,808110,Redacted,F909,Children & Families,Supplies and Services,593.25,Nov-22
Slough Borough Council,808110,Redacted,F909,Children & Families,Supplies and Services,593.25,Nov-22
Slough Borough Council,3934,Redacted,F909,Children & Families,Supplies and Services,605.36,Nov-22
Slough Borough Council,3934,Redacted,F909,Children & Families,Supplies and Services,605.36,Nov-22
Slough Borough Council,806720,Redacted,F909,Children & Families,Supplies and Services,593.25,Nov-22
Slough Borough Council,806720,Redacted,F909,Children & Families,Supplies and Services,593.25,Nov-22
Slough Borough Council,3209,Redacted,F909,Children & Families,Supplies and Services,593.25,Nov-22
Slough Borough Council,3209,Redacted,F909,Children & Families,Supplies and Services,593.25,Nov-22
Slough Borough Council,804707,Redacted,F909,Children & Families,Supplies and Services,605.36,Nov-22
Slough Borough Council,804707,Redacted,F909,Children & Families,Supplies and Services,605.36,Nov-22
Slough Borough Council,804705,Redacted,F909,Children & Families,Supplies and Services,"1,810.20",Nov-22
Slough Borough Council,804705,Redacted,F909,Children & Families,Supplies and Services,"1,810.20",Nov-22
Slough Borough Council,808289,Redacted,F909,Children & Families,Supplies and Services,779.67,Nov-22
Slough Borough Council,803824,Redacted,F909,Children & Families,Supplies and Services,"1,969.42",Nov-22
Slough Borough Council,803824,Redacted,F909,Children & Families,Supplies and Services,"2,348.02",Nov-22
Slough Borough Council,807475,Redacted,F909,Children & Families,Supplies and Services,"4,983.50",Nov-22
Slough Borough Council,807475,Redacted,F909,Children & Families,Supplies and Services,"4,983.50",Nov-22
Slough Borough Council,3251,Redacted,F909,Children & Families,Supplies and Services,536.75,Nov-22
Slough Borough Council,3251,Redacted,F909,Children & Families,Supplies and Services,536.75,Nov-22
Slough Borough Council,803853,Redacted,F909,Children & Families,Supplies and Services,839.43,Nov-22
Slough Borough Council,803853,Redacted,F909,Children & Families,Supplies and Services,839.43,Nov-22
Slough Borough Council,807647,Redacted,F909,Children & Families,Supplies and Services,871.71,Nov-22
Slough Borough Council,807647,Redacted,F909,Children & Families,Supplies and Services,871.71,Nov-22
Slough Borough Council,807836,Redacted,F909,Children & Families,Supplies and Services,"1,513.57",Nov-22
Slough Borough Council,807836,Redacted,F909,Children & Families,Supplies and Services,"1,513.57",Nov-22
Slough Borough Council,803874,Redacted,F909,Children & Families,Supplies and Services,621.50,Nov-22
Slough Borough Council,803874,Redacted,F909,Children & Families,Supplies and Services,621.50,Nov-22
Slough Borough Council,803819,Redacted,F909,Children & Families,Supplies and Services,656.11,Nov-22
Slough Borough Council,805806,Redacted,F909,Children & Families,Supplies and Services,593.25,Nov-22
Slough Borough Council,805806,Redacted,F909,Children & Families,Supplies and Services,593.25,Nov-22
Slough Borough Council,806854,Reed Specialist Recruitment,B033,People,Salaries and Wages,626.70,Nov-22
Slough Borough Council,806854,Reed Specialist Recruitment,B033,People,Salaries and Wages,783.38,Nov-22
Slough Borough Council,806854,Reed Specialist Recruitment,B033,People,Salaries and Wages,783.38,Nov-22
Slough Borough Council,806854,Reed Specialist Recruitment,B033,People,Salaries and Wages,783.38,Nov-22
Slough Borough Council,2229,Reliance High-Tech Limited (T/A Reliance Project),A07S,Adult Social Care Operations,Supplies and Services,839.16,Nov-22
Slough Borough Council,808302,Reliant Care Limited,M44C,Adult Social Care Operations,Supplies and Services,"3,124.71",Nov-22
Slough Borough Council,807562,Renovo Farnborough Limited,M25D,Adult Social Care Operations,Supplies and Services,"8,433.64",Nov-22
Slough Borough Council,3486,Response Organisation,M42F,Adult Social Care Operations,Supplies and Services,567.28,Nov-22
Slough Borough Council,3486,Response Organisation,M42F,Adult Social Care Operations,Supplies and Services,503.44,Nov-22
Slough Borough Council,3486,Response Organisation,M42F,Adult Social Care Operations,Supplies and Services,567.28,Nov-22
Slough Borough Council,3486,Response Organisation,M42F,Adult Social Care Operations,Supplies and Services,567.28,Nov-22
Slough Borough Council,3486,Response Organisation,M42F,Adult Social Care Operations,Supplies and Services,567.28,Nov-22
Slough Borough Council,3486,Response Organisation,M42F,Adult Social Care Operations,Supplies and Services,567.28,Nov-22
Slough Borough Council,3486,Response Organisation,M42F,Adult Social Care Operations,Supplies and Services,567.28,Nov-22
Slough Borough Council,2529,Richmond Fellowship,M27F,Adult Social Care Operations,Supplies and Services,"1,920.00",Nov-22
Slough Borough Council,1558,Ricoh Uk Limited,B342,Digital and Strategic IT,Supplies and Services,"86,652.00",Nov-22
Slough Borough Council,805200,RJ Morgan Fencing Ltd,B089,Place Strategy & Infrastructure,Supplies and Services,"5,503.35",Nov-22
Slough Borough Council,805200,RJ Morgan Fencing Ltd,B089,Place Strategy & Infrastructure,Supplies and Services,"2,590.14",Nov-22
Slough Borough Council,805200,RJ Morgan Fencing Ltd,B089,Place Strategy & Infrastructure,Supplies and Services,"2,000.00",Nov-22
Slough Borough Council,1553,Robyn Baker,C322,Community,Supplies and Services,775.50,Nov-22
Slough Borough Council,806930,Roselight Healthcare Service Limited,M42F,Adult Social Care Operations,Supplies and Services,"3,340.00",Nov-22
Slough Borough Council,806930,Roselight Healthcare Service Limited,M42F,Adult Social Care Operations,Supplies and Services,"2,360.00",Nov-22
Slough Borough Council,806930,Roselight Healthcare Service Limited,M44D,Adult Social Care Operations,Supplies and Services,"1,749.64",Nov-22
Slough Borough Council,806930,Roselight Healthcare Service Limited,M44F,Adult Social Care Operations,Supplies and Services,"2,600.00",Nov-22
Slough Borough Council,806930,Roselight Healthcare Service Limited,M44F,Adult Social Care Operations,Supplies and Services,"1,670.00",Nov-22
Slough Borough Council,806930,Roselight Healthcare Service Limited,M44F,Adult Social Care Operations,Supplies and Services,"1,722.00",Nov-22
Slough Borough Council,806930,Roselight Healthcare Service Limited,M44F,Adult Social Care Operations,Supplies and Services,"1,506.00",Nov-22
Slough Borough Council,806930,Roselight Healthcare Service Limited,M44F,Adult Social Care Operations,Supplies and Services,"1,765.16",Nov-22
Slough Borough Council,806930,Roselight Healthcare Service Limited,M44F,Adult Social Care Operations,Supplies and Services,"1,930.00",Nov-22
Slough Borough Council,806930,Roselight Healthcare Service Limited,M44F,Adult Social Care Operations,Supplies and Services,"1,724.72",Nov-22
Slough Borough Council,692,Ross Stonecraft Ltd,D320,Place Operations,Supplies and Services,500.00,Nov-22
Slough Borough Council,696,Royal Borough Of Windsor And Maidenhead,F552,Children & Families,Supplies and Services,"2,500.00",Nov-22
Slough Borough Council,356,Royal Mail Group Ltd,B240,Business Services,Supplies and Services,"7,558.91",Nov-22
Slough Borough Council,804860,Royal Masonic Benevolent Institution,M18C,Adult Social Care Operations,Supplies and Services,"4,071.43",Nov-22
Slough Borough Council,804860,Royal Masonic Benevolent Institution,M18C,Adult Social Care Operations,Supplies and Services,"4,207.14",Nov-22
Slough Borough Council,2168,RSM UK Risk Assurance Services LLP,B132,Finance & Commercial,Supplies and Services,"7,150.00",Nov-22
Slough Borough Council,2168,RSM UK Risk Assurance Services LLP,B132,Finance & Commercial,Supplies and Services,"24,050.00",Nov-22
Slough Borough Council,2168,RSM UK Risk Assurance Services LLP,B132,Finance & Commercial,Supplies and Services,"24,050.00",Nov-22
Slough Borough Council,2168,RSM UK Risk Assurance Services LLP,B146,Finance & Commercial,Supplies and Services,"37,887.50",Nov-22
Slough Borough Council,2168,RSM UK Risk Assurance Services LLP,B146,Finance & Commercial,Supplies and Services,"8,550.00",Nov-22
Slough Borough Council,842,Ryvers Primary School,E620,Children & Families,Supplies and Services,"21,305.00",Nov-22
Slough Borough Council,808515,S R Estate Holding Limited,H205,Housing (People) Services,Supplies and Services,"1,650.00",Nov-22
Slough Borough Council,808515,S R Estate Holding Limited,H205,Housing (People) Services,Supplies and Services,"1,705.00",Nov-22
Slough Borough Council,806398,Saba Park UK Services Limited,D123,Place Strategy & Infrastructure,Premises,"13,104.23",Nov-22
Slough Borough Council,806398,Saba Park UK Services Limited,D122,Place Strategy & Infrastructure,Supplies and Services,"3,132.70",Nov-22
Slough Borough Council,806398,Saba Park UK Services Limited,D123,Place Strategy & Infrastructure,Supplies and Services,"3,076.20",Nov-22
Slough Borough Council,806398,Saba Park UK Services Limited,D010,Place Strategy & Infrastructure,Supplies and Services,"14,000.00",Nov-22
Slough Borough Council,805875,Salutem Shared Services,M25D,Adult Social Care Operations,Supplies and Services,"5,988.20",Nov-22
Slough Borough Council,805875,Salutem Shared Services,M25D,Adult Social Care Operations,Supplies and Services,"5,988.20",Nov-22
Slough Borough Council,805875,Salutem Shared Services,M26E,Adult Social Care Operations,Supplies and Services,"3,757.80",Nov-22
Slough Borough Council,805875,Salutem Shared Services,M26E,Adult Social Care Operations,Supplies and Services,607.76,Nov-22
Slough Borough Council,805875,Salutem Shared Services,M26E,Adult Social Care Operations,External Receipts,-607.76,Nov-22
Slough Borough Council,804350,Sandra�s Childcare,F909,Children & Families,Supplies and Services,"1,271.25",Nov-22
Slough Borough Council,804350,Sandra�s Childcare,F909,Children & Families,Supplies and Services,"1,271.25",Nov-22
Slough Borough Council,1580,Savills (UK) Ltd,P431,Capital,Capital Charges,"41,493.60",Nov-22
Slough Borough Council,1661,Scottish And Southern Electricity,P235,Capital,Capital Charges,"150,723.18",Nov-22
Slough Borough Council,807397,Scottish Power Energy Retail Ltd,P242,Capital,Capital Charges,"10,330.63",Nov-22
Slough Borough Council,807397,Scottish Power Energy Retail Ltd,P242,Capital,Capital Charges,"10,327.84",Nov-22
Slough Borough Council,807397,Scottish Power Energy Retail Ltd,P242,Capital,Capital Charges,"8,158.99",Nov-22
Slough Borough Council,807269,Section 20 Solutions Ltd,K089,Place Regulation,Supplies and Services,"19,500.00",Nov-22
Slough Borough Council,3169,Seeability,M26E,Adult Social Care Operations,Supplies and Services,"11,377.00",Nov-22
Slough Borough Council,759,Segro Plc,B082,Place Strategy & Infrastructure,Supplies and Services,525.00,Nov-22
Slough Borough Council,803999,Sequence Care Group,M26E,Adult Social Care Operations,Supplies and Services,"12,717.93",Nov-22
Slough Borough Council,803999,Sequence Care Group,M26E,Adult Social Care Operations,Supplies and Services,"12,307.62",Nov-22
Slough Borough Council,808140,Service to the Aged Ltd,M15D,Adult Social Care Operations,Supplies and Services,"3,642.90",Nov-22
Slough Borough Council,808140,Service to the Aged Ltd,M15D,Adult Social Care Operations,Supplies and Services,"3,764.24",Nov-22
Slough Borough Council,807856,Shally Singh,H205,Housing (People) Services,Supplies and Services,"5,500.00",Nov-22
Slough Borough Council,807856,Shally Singh,H205,Housing (People) Services,Supplies and Services,"12,012.00",Nov-22
Slough Borough Council,1853,Shamita Ray,C322,Community,Supplies and Services,504.00,Nov-22
Slough Borough Council,805203,Shorts Agricultural Services Ltd,D342,Place Operations,Supplies and Services,"12,579.69",Nov-22
Slough Borough Council,805203,Shorts Agricultural Services Ltd,D342,Place Operations,Supplies and Services,"10,411.22",Nov-22
Slough Borough Council,805807,Siemens Mobility Limited,D500,Place Strategy & Infrastructure,Premises,"2,753.25",Nov-22
Slough Borough Council,807082,Simone Surveys Limited,P235,Capital,Capital Charges,"2,700.00",Nov-22
Slough Borough Council,804922,SIMPSON ENVIRONMENTAL SERVICE LTD,B082,Place Strategy & Infrastructure,Premises,"7,177.21",Nov-22
Slough Borough Council,3333,Slk Services,F123,Education & Inclusion,Supplies and Services,"5,168.00",Nov-22
Slough Borough Council,1459,Slough And Eton C E School,E610,Children & Families,Supplies and Services,"26,166.67",Nov-22
Slough Borough Council,807834,Slough Children First,M99C,Children & Families,Supplies and Services,"6,024.38",Nov-22
Slough Borough Council,807834,Slough Children First,M99C,Children & Families,Supplies and Services,"27,933.00",Nov-22
Slough Borough Council,807834,Slough Children First,M99C,Children & Families,Supplies and Services,"714,000.00",Nov-22
Slough Borough Council,807834,Slough Children First,M99C,Children & Families,Supplies and Services,"2,619,512.80",Nov-22
Slough Borough Council,807834,Slough Children First,M99C,Children & Families,Supplies and Services,"3,373.32",Nov-22
Slough Borough Council,807834,Slough Children First,M99C,Children & Families,Supplies and Services,"41,591.41",Nov-22
Slough Borough Council,807834,Slough Children First,M99C,Children & Families,Supplies and Services,"4,140.00",Nov-22
Slough Borough Council,807834,Slough Children First,M99C,Children & Families,Supplies and Services,"26,675.00",Nov-22
Slough Borough Council,807834,Slough Children First,M99C,Children & Families,Supplies and Services,"7,500.00",Nov-22
Slough Borough Council,807834,Slough Children First,M99C,Children & Families,Supplies and Services,"60,525.75",Nov-22
Slough Borough Council,807834,Slough Children First,M99C,Children & Families,Supplies and Services,"22,500.00",Nov-22
Slough Borough Council,807834,Slough Children First,M99C,Children & Families,Supplies and Services,"13,325.00",Nov-22
Slough Borough Council,807834,Slough Children First,M99C,Children & Families,Supplies and Services,"66,666.64",Nov-22
Slough Borough Council,807834,Slough Children First,M99C,Children & Families,Supplies and Services,543.94,Nov-22
Slough Borough Council,276,Slough Community Transport & Shopmobility,F123,Education & Inclusion,Supplies and Services,"24,426.66",Nov-22
Slough Borough Council,1913,Slough Crossroads Caring For Carers,M44C,Adult Social Care Operations,Supplies and Services,744.00,Nov-22
Slough Borough Council,1913,Slough Crossroads Caring For Carers,M44C,Adult Social Care Operations,Supplies and Services,"1,120.00",Nov-22
Slough Borough Council,1913,Slough Crossroads Caring For Carers,M44E,Adult Social Care Operations,Supplies and Services,600.00,Nov-22
Slough Borough Council,1913,Slough Crossroads Caring For Carers,M44E,Adult Social Care Operations,Supplies and Services,"1,040.00",Nov-22
Slough Borough Council,1119,Slough Cvs,A02C,Adult Social Care Commissioning,Supplies and Services,"118,312.75",Nov-22
Slough Borough Council,3503,Slough Day Nursery,F909,Children & Families,Supplies and Services,"3,025.95",Nov-22
Slough Borough Council,3503,Slough Day Nursery,F909,Children & Families,Supplies and Services,"3,010.95",Nov-22
Slough Borough Council,1554,Socotec UK Ltd,D308,Place Operations,Supplies and Services,"1,901.50",Nov-22
Slough Borough Council,382,Softcat Plc,B282,Digital and Strategic IT,Supplies and Services,"25,000.00",Nov-22
Slough Borough Council,382,Softcat Plc,B282,Digital and Strategic IT,Supplies and Services,"3,600.00",Nov-22
Slough Borough Council,382,Softcat Plc,B342,Digital and Strategic IT,Supplies and Services,"3,600.00",Nov-22
Slough Borough Council,114,Solutions 4 Health Ltd,A01P,Public Health,Supplies and Services,"229,057.81",Nov-22
Slough Borough Council,114,Solutions 4 Health Ltd,A01P,Public Health,Supplies and Services,"229,057.81",Nov-22
Slough Borough Council,114,Solutions 4 Health Ltd,A01P,Public Health,Supplies and Services,"51,833.33",Nov-22
Slough Borough Council,1598,Sorbon Estates Limited,H205,Housing (People) Services,Premises,"24,163.32",Nov-22
Slough Borough Council,808407,SOS Electricals & Services Ltd,P093,Capital,Capital Charges,"88,352.30",Nov-22
Slough Borough Council,805742,Southern Tyre Recycling Ltd,D342,Place Operations,Supplies and Services,543.75,Nov-22
Slough Borough Council,804781,Sports and Leisure Management Ltd,C322,Community,Premises,"2,534.39",Nov-22
Slough Borough Council,804781,Sports and Leisure Management Ltd,C322,Community,Premises,"1,172.92",Nov-22
Slough Borough Council,804781,Sports and Leisure Management Ltd,C025,Community,Supplies and Services,"28,495.00",Nov-22
Slough Borough Council,1875,Ss & Kk. Hothi,H205,Housing (People) Services,Premises,"15,816.66",Nov-22
Slough Borough Council,1875,Ss & Kk. Hothi,H205,Housing (People) Services,Premises,"11,771.25",Nov-22
Slough Borough Council,808548,St Anns School,F552,Children & Families,Supplies and Services,"24,836.00",Nov-22
Slough Borough Council,803165,St Anthony�s Catholic Primary School & Nursery,E620,Children & Families,Supplies and Services,"17,183.87",Nov-22
Slough Borough Council,2918,St Bernard�S Rc Preparatory School,F909,Children & Families,Supplies and Services,"14,635.90",Nov-22
Slough Borough Council,2918,St Bernard�S Rc Preparatory School,F909,Children & Families,Supplies and Services,"11,351.76",Nov-22
Slough Borough Council,3383,St Bernards Catholic Grammar School,E550,Children & Families,Supplies and Services,"503,598.58",Nov-22
Slough Borough Council,3547,St Ethelberts School,E620,Children & Families,Supplies and Services,"19,426.66",Nov-22
Slough Borough Council,1378,St Josephs Catholic High School,E610,Children & Families,Supplies and Services,"17,375.00",Nov-22
Slough Borough Council,806584,St Mattews Ltd,M15F,Adult Social Care Operations,Supplies and Services,"3,964.29",Nov-22
Slough Borough Council,1445,Stallcombe House,M26E,Adult Social Care Operations,Supplies and Services,"5,922.00",Nov-22
Slough Borough Council,1445,Stallcombe House,M26E,Adult Social Care Operations,Supplies and Services,"5,922.00",Nov-22
Slough Borough Council,1445,Stallcombe House,M26E,Adult Social Care Operations,Supplies and Services,"5,922.00",Nov-22
Slough Borough Council,1445,Stallcombe House,M26E,Adult Social Care Operations,Supplies and Services,"5,922.00",Nov-22
Slough Borough Council,1445,Stallcombe House,M26E,Adult Social Care Operations,Supplies and Services,"5,922.00",Nov-22
Slough Borough Council,1445,Stallcombe House,M26E,Adult Social Care Operations,Supplies and Services,"5,922.00",Nov-22
Slough Borough Council,1445,Stallcombe House,M26E,Adult Social Care Operations,Supplies and Services,"5,922.00",Nov-22
Slough Borough Council,1445,Stallcombe House,M26E,Adult Social Care Operations,Supplies and Services,"5,922.00",Nov-22
Slough Borough Council,1445,Stallcombe House,M26E,Adult Social Care Operations,Supplies and Services,"5,922.00",Nov-22
Slough Borough Council,1445,Stallcombe House,M26E,Adult Social Care Operations,Supplies and Services,"5,922.00",Nov-22
Slough Borough Council,1445,Stallcombe House,M26E,Adult Social Care Operations,Supplies and Services,"5,922.00",Nov-22
Slough Borough Council,1445,Stallcombe House,M26E,Adult Social Care Operations,Supplies and Services,"5,922.00",Nov-22
Slough Borough Council,1445,Stallcombe House,M26E,Adult Social Care Operations,Supplies and Services,"5,922.00",Nov-22
Slough Borough Council,1445,Stallcombe House,M26E,Adult Social Care Operations,Supplies and Services,"5,922.00",Nov-22
Slough Borough Council,1445,Stallcombe House,M26E,Adult Social Care Operations,Supplies and Services,"5,922.00",Nov-22
Slough Borough Council,468,Stannah Lift Services Ltd,P006,Capital,Capital Charges,"6,746.00",Nov-22
Slough Borough Council,804910,Stennetts Limited,D630,Place Operations,Supplies and Services,"5,070.00",Nov-22
Slough Borough Council,804910,Stennetts Limited,D750,Place Operations,Supplies and Services,"1,000.00",Nov-22
Slough Borough Council,804910,Stennetts Limited,D880,Place Operations,Supplies and Services,"1,365.00",Nov-22
Slough Borough Council,1332,STM Environmental Limited,D308,Place Operations,Supplies and Services,"2,021.16",Nov-22
Slough Borough Council,806876,Stopford Information Systems,D332,Customer,Supplies and Services,"8,400.00",Nov-22
Slough Borough Council,808619,Studybugs,F420,Children & Families,Supplies and Services,"14,000.00",Nov-22
Slough Borough Council,807889,Sunrise Transport Ltd,F123,Education & Inclusion,Supplies and Services,"4,820.00",Nov-22
